{"text_format":"1","workbook":"xlsx","n_sheets":2,"sheets":["Bilan d'activité du laboratoire","Classeur"],"not_rendered":{"charts":0,"images":1,"macros":1,"external_links":0,"defined_names":89,"comments":1,"pivot_tables":0},"unopened":[],"bounds":{"document_bytes":16777216,"sheet_cells":100000,"rows_first":2000,"rows_last":500,"rows_between":2000,"halvings":0,"cell_chars":16384,"cell_head_chars":4096},"cells_cut":0,"cells_raw":0,"read":"whole","date_system":"1900"}

{"sheet":"Bilan d'activité du laboratoire","index":0,"n_rows":182,"n_cols":57,"rows_kept":182,"cut":false,"hidden":false,"merged":[[178,19,178,33],[179,19,179,33],[180,19,180,33],[181,19,181,33],[156,7,156,17],[157,7,157,17],[159,7,159,17],[160,7,160,17],[161,7,161,17],[177,19,177,33],[170,25,170,27],[171,25,171,27],[172,25,172,27],[165,33,165,34],[159,27,159,31],[159,23,159,25],[160,23,160,25],[161,23,161,25],[174,27,175,33],[167,21,167,23],[167,29,167,31],[168,29,168,31],[170,29,170,31],[172,21,172,23],[152,7,152,17],[141,7,141,13],[141,15,141,19],[132,7,132,13],[136,7,136,13],[137,7,137,13],[137,15,137,19],[139,7,139,13],[139,15,139,19],[140,7,140,13],[140,15,140,19],[60,17,60,19],[61,17,61,19],[63,17,63,19],[64,17,64,19],[65,17,65,19],[132,15,132,19],[136,15,136,19],[150,7,150,17],[151,7,151,17],[122,15,122,19],[123,15,123,19],[127,7,127,13],[127,15,127,19],[128,7,128,13],[128,15,128,19],[130,7,130,13],[130,15,130,19],[131,7,131,13],[131,15,131,19],[23,17,23,25],[25,17,25,25],[42,17,42,19],[43,17,43,19],[45,17,45,19],[46,17,46,19],[47,17,47,19],[51,17,51,19],[52,17,52,19],[34,27,34,33],[58,33,58,34],[29,21,30,25],[161,27,161,31],[105,23,105,32],[112,27,112,31],[110,21,110,25],[156,23,156,25],[157,23,157,25],[110,27,110,31],[147,23,147,25],[148,23,148,25],[150,23,150,25],[151,23,151,25],[152,23,152,25],[171,29,171,31],[172,29,172,31],[145,23,145,32],[150,27,150,31],[151,27,151,31],[152,27,152,31],[119,27,119,31],[47,29,47,31],[54,29,54,31],[171,21,171,23],[107,13,107,19],[171,5,171,7],[172,5,172,7],[90,5,90,15],[171,9,171,19],[172,9,172,19],[111,5,111,7],[111,9,111,11],[112,5,112,7],[112,9,112,11],[110,13,110,19],[134,2,134,13],[154,2,154,13],[170,9,170,19],[118,7,118,13],[119,7,119,13],[118,15,118,19],[119,15,119,19],[121,7,121,13],[122,7,122,13],[123,7,123,13],[121,15,121,19],[107,5,107,7],[107,9,107,11],[101,27,101,31],[102,27,102,31],[103,27,103,31],[101,21,101,25],[170,21,170,23],[140,23,140,25],[141,23,141,25],[141,27,141,31],[137,27,137,31],[139,27,139,31],[140,27,140,31],[114,23,114,34],[105,33,105,34],[121,27,121,31],[122,27,122,31],[116,33,116,34],[125,23,125,32],[125,33,125,34],[108,21,108,25],[108,27,108,31],[130,23,130,25],[121,23,121,25],[116,23,116,32],[125,2,125,13],[116,2,116,13],[130,27,130,31],[128,23,128,25],[127,23,127,25],[118,27,118,31],[123,27,123,31],[118,23,118,25],[122,23,122,25],[123,23,123,25],[119,23,119,25],[111,13,111,19],[111,21,111,25],[108,13,108,19],[114,2,114,16],[108,9,108,11],[108,5,108,7],[131,23,131,25],[132,23,132,25],[154,23,154,32],[165,23,165,32],[163,23,163,34],[145,33,145,34],[136,23,136,25],[132,27,132,31],[136,27,136,31],[143,23,143,34],[134,23,134,32],[134,33,134,34],[139,23,139,25],[154,33,154,34],[107,21,107,25],[107,27,107,31],[88,5,88,15],[88,29,88,31],[102,21,102,25],[103,21,103,25],[101,9,101,11],[101,5,101,7],[90,21,90,23],[91,21,91,23],[92,21,92,23],[98,9,98,11],[99,9,99,11],[99,13,99,19],[90,29,90,31],[91,5,91,15],[99,5,99,7],[88,21,88,23],[96,2,96,15],[105,2,105,15],[88,17,88,19],[90,17,90,19],[91,17,91,19],[92,17,92,19],[54,5,54,15],[45,5,45,15],[46,5,46,15],[47,5,47,15],[49,23,49,32],[58,23,58,32],[49,2,49,13],[45,29,45,31],[46,29,46,31],[55,5,55,15],[55,29,55,31],[51,5,51,15],[45,21,45,23],[46,21,46,23],[47,21,47,23],[51,29,51,31],[52,5,52,15],[52,29,52,31],[58,2,58,13],[54,17,54,19],[55,17,55,19],[56,17,56,19],[1,1,1,35],[21,3,21,5],[43,29,43,31],[42,29,42,31],[37,2,37,15],[37,23,37,34],[40,33,40,34],[40,23,40,32],[40,2,40,13],[38,23,38,34],[38,2,38,15],[2,1,4,15],[27,16,27,34],[35,27,35,33],[25,3,25,5],[2,23,4,35],[42,5,42,15],[43,5,43,15],[42,21,42,23],[43,21,43,23],[7,25,7,27],[8,25,8,27],[32,27,32,33],[33,27,33,33],[10,2,10,15],[10,16,10,34],[27,2,27,15],[23,3,23,5],[29,27,30,33],[7,29,8,33],[25,7,25,15],[49,33,49,34],[87,5,87,15],[67,33,67,34],[56,5,56,15],[56,29,56,31],[67,2,67,13],[72,5,72,15],[72,29,72,31],[82,5,82,15],[82,29,82,31],[83,5,83,15],[83,29,83,31],[74,5,74,15],[74,29,74,31],[79,5,79,15],[79,29,79,31],[76,33,76,34],[85,2,85,13],[85,23,85,32],[69,29,69,31],[69,5,69,15],[81,5,81,15],[85,33,85,34],[87,29,87,31],[70,5,70,15],[81,29,81,31],[82,21,82,23],[83,21,83,23],[87,21,87,23],[70,17,70,19],[72,17,72,19],[73,17,73,19],[74,17,74,19],[78,17,78,19],[79,17,79,19],[81,17,81,19],[82,17,82,19],[83,17,83,19],[87,17,87,19],[69,17,69,19],[168,21,168,23],[168,25,168,27],[156,27,156,31],[60,5,60,15],[60,29,60,31],[61,5,61,15],[61,29,61,31],[70,29,70,31],[78,5,78,15],[78,29,78,31],[73,5,73,15],[73,29,73,31],[67,23,67,32],[65,5,65,15],[65,29,65,31],[63,5,63,15],[63,29,63,31],[64,5,64,15],[64,29,64,31],[76,23,76,32],[76,2,76,13],[127,27,127,31],[128,27,128,31],[91,29,91,31],[94,23,94,34],[94,2,94,16],[92,29,92,31],[92,5,92,15],[111,27,111,31],[112,13,112,19],[112,21,112,25],[101,13,101,19],[102,13,102,19],[103,13,103,19],[102,9,102,11],[103,9,103,11],[102,5,102,7],[103,5,103,7],[110,5,110,7],[110,9,110,11],[98,5,98,7],[96,33,96,34],[96,23,96,32],[98,27,98,31],[99,27,99,31],[98,21,98,25],[99,21,99,25],[98,13,98,19],[35,5,35,19],[174,3,175,7],[165,2,165,13],[163,2,163,16],[170,5,170,7],[168,9,168,19],[167,5,167,7],[168,5,168,7],[65,21,65,23],[69,21,69,23],[70,21,70,23],[72,21,72,23],[73,21,73,23],[74,21,74,23],[78,21,78,23],[79,21,79,23],[81,21,81,23],[137,23,137,25],[167,9,167,19],[167,25,167,27],[143,2,143,16],[157,27,157,31],[145,2,145,13],[160,27,160,31],[181,4,181,16],[25,27,25,33],[147,27,147,31],[148,27,148,31],[147,7,147,17],[148,7,148,17],[131,27,131,31],[51,21,51,23],[52,21,52,23],[54,21,54,23],[55,21,55,23],[56,21,56,23],[60,21,60,23],[61,21,61,23],[63,21,63,23],[64,21,64,23],[29,5,29,19],[30,5,30,19],[32,21,32,25],[33,21,33,25],[34,21,34,25],[35,21,35,25],[32,5,32,19],[33,5,33,19],[0,1,0,35],[177,17,177,18],[178,17,178,18],[179,17,179,18],[180,17,180,18],[177,4,177,16],[178,4,178,16],[179,4,179,16],[180,4,180,16],[12,3,13,5],[19,3,19,5],[21,27,21,33],[23,27,23,33],[23,7,23,15],[15,3,17,5],[12,27,13,33],[12,7,13,25],[15,27,17,33],[15,7,15,25],[17,7,17,25],[19,27,19,33],[21,7,21,25],[19,7,19,25],[34,5,34,19]]}
[null,"Ministère de l’Enseignement Supérieur et de la Recherche Scientifique"]
[null,"Direction Générale de la Recherche Scientifique et du Développement Technologique"]
[null,"Bilan d’activité du laboratoire",null,null,null,null,null,null,null,null,null,null,null,null,null,null,null,null,null,null,null,null,null,"حصيلة نشاطات المخبر"]
[]
[]
[]
[]
[null,null,null,null,null,null,null,null,null,null,null,null,null,null,null,null,null,null,null,null,null,null,null,null,null,"رمز المخبر"]
[null,null,null,null,null,null,null,null,null,null,null,null,null,null,null,null,null,null,null,null,null,null,null,null,null,"Code du laboratoire "]
[]
[null,null,"Identification du Laboratoire",null,null,null,null,null,null,null,null,null,null,null,null,null,"التعريف بالمخبر"]
[]
[null,null,null," Etablissement de rattachement",null,null,null,null,null,null,null,null,null,null,null,null,null,null,null,null,null,null,null,null,null,null,null," مؤسسة الإلحاق"]
[null,null,null,null,null,null,null,null,null,null,null,null,null,null,null,null,null,null,null,null,null,null,null,null,null,null,null,null,null,null,null,null,null,null,null,null,null,null,{"$f":"IF(H13=\"\",\"listevide\",SUBSTITUTE(H13,\" \",\"_\"))","v":"listevide"}]
[]
[null,null,null," Intitulé du Laboratoire ",null,null,null,null,null,null,null,null,null,null,null,null,null,null,null,null,null,null,null,null,null,null,null," اسم المخبر"]
[]
[]
[]
[null,null,null," Acronyme du Laboratoire",null,null,null,null,null,null,null,null,null,null,null,null,null,null,null,null,null,null,null,null,null,null,null," الاسم المختزل للمخبر"]
[]
[null,null,null," Site Web ou URL",null,null,null,null,null,null,null,null,null,null,null,null,null,null,null,null,null,null,null,null,null,null,null," العنوان الإلكتروني"]
[]
[null,null,null," Grand Domaine",null,null,null,null,null,null,null,null,null,null,null,null,null,null,null,null,null,null,null,null,null,null,null," الميدان الأساسي"]
[]
[null,null,null," Nom et Prénom du Directeur",null,null,null,null,null,null,null,null,null,null,null,null,null,null,null,null,null,null,null,null,null,null,null," لقب و اسم المدير"]
[]
[null,null,"Equipes de recherche",null,null,null,null,null,null,null,null,null,null,null,null,null,"فرق البحث"]
[]
[null,null,null,"الفرقة",null," اسم الفرقة ",null,null,null,null,null,null,null,null,null,null,null,null,null,null,null,"Nom et  prénom du chef d'équipe",null,null,null,null,null,"لقب و اسم مدير الفرقة "]
[null,null,null,"Equipe",null,"     Intitulé de l'équipe"]
[]
[null,null,null,1,null,null,null,null,null,null,null,null,null,null,null,null,null,null,null,null,null,null,null,null,null,null,"   "]
[null,null,null,2]
[null,null,null,3]
[null,null,null,4,null,null,null,null,null,null,null,null,null,null,null,null,null,null,null,null,null,null,null,null,null,null,null,null,null,null,null,null,null,null,null,null,null,null,null,null,null,null,1]
[]
[null,null,"1. Organisation de manifestations scientifiques",null,null,null,null,null,null,null,null,null,null,null,null,null,null,null,null,null,null,null,null,"1. تنظيم التظاهرات العلمية"]
[null,null,"a) Conférence scientifique ou workshop",null,null,null,null,null,null,null,null,null,null,null,null,null,null,null,null,null,null,null,null,"أ) محاضرة علمية أو درس في ورشة عمل"]
[]
[null,null,"Exceptionnel : Congrès Mondial",null,null,null,null,null,null,null,null,null,null,null,null,null,null,null,null,null,null,null,null,"استثنائي : المؤتمر العالمي مع الأعمال المنشورة",null,null,null,null,null,null,null,null,null,"500 pts/نقطة"]
[null,null,"                                                      ",null,null,null,null,null,null,null,null,null,null,null,null,null,null,null,null,null,null,null,null,null,null,null,null," "]
[null,null,null,"رقم",null,"إسم المحاضرة",null,null,null,null,null,null,null,null,null,null,null,"العنوان الإلكتروني",null,null,null,"المكان و الفترة",null,null,null,"السنة",null,"# الشركاء المنظمون",null,"حصة التعاون",null,null,null,"القيمة"]
[null,null,null,"N°",null,"Nom de la Conférence",null,null,null,null,null,null,null,null,null,null,null,"URL",null,null,null,"Lieu et période",null,null,null,"Année",null,"# Partenaire",null,"Part de collab.",null,null,null,"Valeur"]
[]
[null,null,null,1,null,null,null,null,null,null,null,null,null,null,null,null,null,null,null,null,null,null,null,null,null,null,null,null,null,{"$f":"IF(AB46=\"\",\"\",100%/AB46)","v":""},null,null,null,{"$f":"IF(AD46=\"\",\"\",AD46*500)","v":""},null,null,null,null,{"$f":"IF(OR(AH46=\"Valeur\",AH46=\"القيمة\"),0,IF(ISERROR(SEARCH(\"/\",AH46)),AH46,0))","v":""}]
[null,null,null,2,null,null,null,null,null,null,null,null,null,null,null,null,null,null,null,null,null,null,null,null,null,null,null,null,null,{"$f":"IF(AB47=\"\",\"\",100%/AB47)","v":""},null,null,null,{"$f":"IF(AD47=\"\",\"\",AD47*500)","v":""},null,null,null,null,{"$f":"IF(OR(AH47=\"Valeur\",AH47=\"القيمة\"),0,IF(ISERROR(SEARCH(\"/\",AH47)),AH47,0))","v":""}]
[null,null,null,3,null,null,null,null,null,null,null,null,null,null,null,null,null,null,null,null,null,null,null,null,null,null,null,null,null,"",null,null,null,"",null,null,null,null,"",null,null,null,null,1]
[null,null,null,null,null,null,null,null,null,null,null,null,null,null,null,null,null,null,null,null,null,null,null,null,null,null,null,null,null,null,null,null,null,null,null,null,null,null,0]
[null,null,"Conférence Mobile (2 continents) avec actes dans le WOS",null,null,null,null,null,null,null,null,null,null,null,null,null,null," A+",null,null,null,null,null,"محاضرة متنقلة (قارتين) مع الأعمال المنشورة ضمن WOS",null,null,null,null,null,null,null,null,null,"200 pts/نقطة","200 pts/ نقطة",null,null,null,0]
[null,null,null,null,null,null,null,null,null,null,null,null,null,null,null,null,null,null,null,null,null,null,null,null,null,null,null,null,null,null,null,null,null,null,null,null,null,null,0]
[null,null,null,"رقم",null,"إسم المحاضرة",null,null,null,null,null,null,null,null,null,null,null,"العنوان الإلكتروني",null,null,null,"المكان و الفترة",null,null,null,"السنة",null,"# الشركاء المنظمون",null,"حصة التعاون",null,null,null,"القيمة",null,null,null,null,0]
[null,null,null,"N°",null,"Nom de la Conférence",null,null,null,null,null,null,null,null,null,null,null,"URL",null,null,null,"Lieu et période",null,null,null,"Année",null,"# Partenaire",null,"Part de collab.",null,null,null,"Valeur",null,null,null,null,0]
[null,null,null,null,null,null,null,null,null,null,null,null,null,null,null,null,null,null,null,null,null,null,null,null,null,null,null,null,null,null,null,null,null,null,null,null,null,null,0]
[null,null,null,1,null,null,null,null,null,null,null,null,null,null,null,null,null,null,null,null,null,null,null,null,null,null,null,null,null,{"$f":"IF(AB55=\"\",\"\",100%/AB55)","v":""},null,null,null,{"$f":"IF(AD55=\"\",\"\",AD55*200)","v":""},null,null,null,null,""]
[null,null,null,2,null,null,null,null,null,null,null,null,null,null,null,null,null,null,null,null,null,null,null,null,null,null,null,null,null,{"$f":"IF(AB56=\"\",\"\",100%/AB56)","v":""},null,null,null,{"$f":"IF(AD56=\"\",\"\",AD56*200)","v":""},null,null,null,null,""]
[null,null,null,3,null,null,null,null,null,null,null,null,null,null,null,null,null,null,null,null,null,null,null,null,null,null,null,null,null,"",null,null,null,"",null,null,null,null,"",null,null,null,null,null,1]
[null,null,null,null,null,null,null,null,null,null,null,null,null,null,null,null,null,null,null,null,null,null,null,null,null,null,null,null,null,null,null,null,null,null,null,null,null,null,0]
[null,null,"Conférence Mobile (2 continents) avec actes",null,null,null,null,null,null,null,null,null,null,null,null,null,null,"A ",null,null,null,null,null,"محاضرة متنقلة (قارتين) مع الأعمال المنشورة",null,null,null,null,null,null,null,null,null,"150 pts/نقطة","150 pts/ نقطة",null,null,null,0]
[null,null,null,null,null,null,null,null,null,null,null,null,null,null,null,null,null,null,null,null,null,null,null,null,null,null,null,null,null,null,null,null,null,null,null,null,null,null,0]
[null,null,null,"رقم",null,"إسم المحاضرة",null,null,null,null,null,null,null,null,null,null,null,"العنوان الإلكتروني",null,null,null,"المكان و الفترة",null,null,null,"السنة",null,"# الشركاء المنظمون",null,"حصة التعاون",null,null,null,"القيمة",null,null,null,null,0]
[null,null,null,"N°",null,"Nom de la Conférence",null,null,null,null,null,null,null,null,null,null,null,"URL",null,null,null,"Lieu et période",null,null,null,"Année",null,"# Partenaire",null,"Part de collab.",null,null,null,"Valeur",null,null,null,null,0]
[null,null,null,null,null,null,null,null,null,null,null,null,null,null,null,null,null,null,null,null,null,null,null,null,null,null,null,null,null,null,null,null,null,null,null,null,null,null,0]
[null,null,null,1,null,null,null,null,null,null,null,null,null,null,null,null,null,null,null,null,null,null,null,null,null,null,null,null,null,{"$f":"IF(AB64=\"\",\"\",100%/AB64)","v":""},null,null,null,{"$f":"IF(AD64=\"\",\"\",AD64*150)","v":""},null,null,null,null,""]
[null,null,null,2,null,null,null,null,null,null,null,null,null,null,null,null,null,null,null,null,null,null,null,null,null,null,null,null,null,{"$f":"IF(AB65=\"\",\"\",100%/AB65)","v":""},null,null,null,{"$f":"IF(AD65=\"\",\"\",AD65*150)","v":""},null,null,null,null,""]
[null,null,null,3,null,null,null,null,null,null,null,null,null,null,null,null,null,null,null,null,null,null,null,null,null,null,null,null,null,"",null,null,null,"",null,null,null,null,"",null,null,null,null,null,null,1]
[null,null,null,null,null,null,null,null,null,null,null,null,null,null,null,null,null,null,null,null,null,null,null,null,null,null,null,null,null,null,null,null,null,null,null,null,null,null,0]
[null,null,"Conférence internationale avec actes dans le WOS",null,null,null,null,null,null,null,null,null,null,null,null,null,null,"B+",null,null,null,null,null,"محاضرة مع الأعمال المنشورة ضمن WOS",null,null,null,null,null,null,null,null,null,"100 pts/نقطة","100 pts/ نقطة",null,null,null,0]
[null,null,null,null,null,null,null,null,null,null,null,null,null,null,null,null,null,null,null,null,null,null,null,null,null,null,null,null,null,null,null,null,null,null,null,null,null,null,0]
[null,null,null,"رقم",null,"إسم المحاضرة",null,null,null,null,null,null,null,null,null,null,null,"العنوان الإلكتروني",null,null,null,"المكان و الفترة",null,null,null,"السنة",null,"# الشركاء المنظمون",null,"حصة التعاون",null,null,null,"القيمة",null,null,null,null,0]
[null,null,null,"N°",null,"Nom de la Conférence",null,null,null,null,null,null,null,null,null,null,null,"URL",null,null,null,"Lieu et période",null,null,null,"Année",null,"# Partenaire",null,"Part de collab.",null,null,null,"Valeur",null,null,null,null,0]
[null,null,null,null,null,null,null,null,null,null,null,null,null,null,null,null,null,null,null,null,null,null,null,null,null,null,null,null,null,null,null,null,null,null,null,null,null,null,0]
[null,null,null,1,null,null,null,null,null,null,null,null,null,null,null,null,null,null,null,null,null,null,null,null,null,null,null,null,null,{"$f":"IF(AB73=\"\",\"\",100%/AB73)","v":""},null,null,null,{"$f":"IF(AD73=\"\",\"\",AD73*100)","v":""},null,null,null,null,""]
[null,null,null,2,null,null,null,null,null,null,null,null,null,null,null,null,null,null,null,null,null,null,null,null,null,null,null,null,null,{"$f":"IF(AB74=\"\",\"\",100%/AB74)","v":""},null,null,null,{"$f":"IF(AD74=\"\",\"\",AD74*100)","v":""},null,null,null,null,""]
[null,null,null,3,null,null,null,null,null,null,null,null,null,null,null,null,null,null,null,null,null,null,null,null,null,null,null,null,null,"",null,null,null,"",null,null,null,null,"",null,null,null,null,null,null,null,1]
[null,null,null,null,null,null,null,null,null,null,null,null,null,null,null,null,null,null,null,null,null,null,null,null,null,null,null,null,null,null,null,null,null,null,null,null,null,null,0]
[null,null,"Conférence internationale avec actes",null,null,null,null,null,null,null,null,null,null,null,null,null,null,"B",null,null,null,null,null,"محاضرة دولية مع الأعمال المنشورة",null,null,null,null,null,null,null,null,null,"60 pts/نقطة","60 pts/ نقطة",null,null,null,0]
[null,null,null,null,null,null,null,null,null,null,null,null,null,null,null,null,null,null,null,null,null,null,null,null,null,null,null,null,null,null,null,null,null,null,null,null,null,null,0]
[null,null,null,"رقم",null,"إسم المحاضرة",null,null,null,null,null,null,null,null,null,null,null,"العنوان الإلكتروني",null,null,null,"المكان و الفترة",null,null,null,"السنة",null,"# الشركاء المنظمون",null,"حصة التعاون",null,null,null,"القيمة",null,null,null,null,0]
[null,null,null,"N°",null,"Nom de la Conférence",null,null,null,null,null,null,null,null,null,null,null,"URL",null,null,null,"Lieu et période",null,null,null,"Année",null,"# Partenaire",null,"Part de collab.",null,null,null,"Valeur",null,null,null,null,0]
[null,null,null,null,null,null,null,null,null,null,null,null,null,null,null,null,null,null,null,null,null,null,null,null,null,null,null,null,null,null,null,null,null,null,null,null,null,null,0]
[null,null,null,1,null,null,null,null,null,null,null,null,null,null,null,null,null,null,null,null,null,null,null,null,null,null,null,null,null,{"$f":"IF(AB82=\"\",\"\",100%/AB82)","v":""},null,null,null,{"$f":"IF(AD82=\"\",\"\",AD82*60)","v":""},null,null,null,null,""]
[null,null,null,2,null,null,null,null,null,null,null,null,null,null,null,null,null,null,null,null,null,null,null,null,null,null,null,null,null,{"$f":"IF(AB83=\"\",\"\",100%/AB83)","v":""},null,null,null,{"$f":"IF(AD83=\"\",\"\",AD83*60)","v":""},null,null,null,null,""]
[null,null,null,3,null,null,null,null,null,null,null,null,null,null,null,null,null,null,null,null,null,null,null,null,null,null,null,null,null,"",null,null,null,"",null,null,null,null,"",null,null,null,null,null,null,null,null,1]
[null,null,null,null,null,null,null,null,null,null,null,null,null,null,null,null,null,null,null,null,null,null,null,null,null,null,null,null,null,null,null,null,null,null,null,null,null,null,0]
[null,null,"Conférence nationale avec actes",null,null,null,null,null,null,null,null,null,null,null,null,null,null,"D",null,null,null,null,null,"محاضرة وطنية مع الأعمال المنشورة",null,null,null,null,null,null,null,null,null,"30 pts/نقطة","30 pts/ نقطة",null,null,null,0]
[null,null,null,null,null,null,null,null,null,null,null,null,null,null,null,null,null,null,null,null,null,null,null,null,null,null,null,null,null,null,null,null,null,null,null,null,null,null,0]
[null,null,null,"رقم",null,"إسم المحاضرة",null,null,null,null,null,null,null,null,null,null,null,"العنوان الإلكتروني",null,null,null,"المكان و الفترة",null,null,null,"السنة",null,"# الشركاء المنظمون",null,"حصة التعاون",null,null,null,"القيمة",null,null,null,null,0]
[null,null,null,"N°",null,"Nom de la Conférence",null,null,null,null,null,null,null,null,null,null,null,"URL",null,null,null,"Lieu et période",null,null,null,"Année",null,"# Partenaire",null,"Part de collab.",null,null,null,"Valeur",null,null,null,null,0]
[null,null,null,null,null,null,null,null,null,null,null,null,null,null,null,null,null,null,null,null,null,null,null,null,null,null,null,null,null,null,null,null,null,null,null,null,null,null,0]
[null,null,null,1,null,null,null,null,null,null,null,null,null,null,null,null,null,null,null,null,null,null,null,null,null,null,null,null,null,{"$f":"IF(AB91=\"\",\"\",100%/AB91)","v":""},null,null,null,{"$f":"IF(AD91=\"\",\"\",AD91*30)","v":""},null,null,null,null,""]
[null,null,null,2,null,null,null,null,null,null,null,null,null,null,null,null,null,null,null,null,null,null,null,null,null,null,null,null,null,{"$f":"IF(AB92=\"\",\"\",100%/AB92)","v":""},null,null,null,{"$f":"IF(AD92=\"\",\"\",AD92*30)","v":""},null,null,null,null,""]
[null,null,null,3,null,null,null,null,null,null,null,null,null,null,null,null,null,null,null,null,null,null,null,null,null,null,null,null,null,"",null,null,null,"",null,null,null,null,"",null,null,null,null,null,null,null,null,null,1]
[null,null,null,null,null,null,null,null,null,null,null,null,null,null,null,null,null,null,null,null,null,null,null,null,null,null,null,null,null,null,null,null,null,null,null,null,null,null,0]
[null,null,"b) Organisation de périples scientifiques, de salons ou autres activités pour la diffusion de la science et de la technologie et/ou la diffusion de la culture scientifique",null,null,null,null,null,null,null,null,null,null,null,null,null,null,null,null,null,null,null,null,"ب) تنظيم قوافل علمية ومعارض ونشاطات أخرى بهدف نشر العلوم والتكنولوجيا و/أو نشر الثقافة العلمية",null,null,null,null,null,null,null,null,null,null,null,null,null,null,0]
[null,null,null,null,null,null,null,null,null,null,null,null,null,null,null,null,null,null,null,null,null,null,null,null,null,null,null,null,null,null,null,null,null,null,null,null,null,null,0]
[null,null,"Exceptionnel : organisation de périples scientifiques avec des personnalités de premier rang mondial",null,null,null,null,null,null,null,null,null,null,null,null,null,null,"Exp",null,null,null,null,null,"استثنائي : تنظيم قوافل علمية مع شخصيات عالمية بارزة",null,null,null,null,null,null,null,null,null,"500 pts/نقطة","500 pts/ نقطة",null,null,null,0]
[null,null,null,null,null,null,null,null,null,null,null,null,null,null,null,null,null,null,null,null,null,null,null,null,null,null,null,null,null,null,null,null,null,null,null,null,null,null,0]
[null,null,null,"رقم",null,"المسسؤول على مستوى المخبر",null,null,null,"إسم الحدث",null,null,null,"وصف القافلة",null,null,null,null,null,null,null,"إسم الباحث أو الباحثين",null,null,null,null,null,"مكان و فترة القافلة",null,null,null,null,null,"القيمة",null,null,null,null,0]
[null,null,null,"N°",null,"Responsable au niveau du labo",null,null,null,"Nom de l'événement",null,null,null,"Description du périple",null,null,null,null,null,null,null,"Nom du ou des chercheur(s)",null,null,null,null,null,"Lieu et période du périple",null,null,null,null,null,"Valeur",null,null,null,null,0]
[null,null,null,null,null,null,null,null,null,null,null,null,null,null,null,null,null,null,null,null,null,null,null,null,null,null,null,null,null,null,null,null,null,null,null,null,null,null,0]
[null,null,null,1,null,null,null,null,null,null,null,null,null,null,null,null,null,null,null,null,null,null,null,null,null,null,null,null,null,null,null,null,null,{"$f":"IF(AND(F102<>\"\",J102<>\"\",N102<>\"\"),500,\"\")","v":""},null,null,null,null,""]
[null,null,null,2,null,null,null,null,null,null,null,null,null,null,null,null,null,null,null,null,null,null,null,null,null,null,null,null,null,null,null,null,null,{"$f":"IF(AND(F103<>\"\",J103<>\"\",N103<>\"\"),500,\"\")","v":""},null,null,null,null,""]
[null,null,null,3,null,null,null,null,null,null,null,null,null,null,null,null,null,null,null,null,null,null,null,null,null,null,null,null,null,null,null,null,null,"",null,null,null,null,"",null,null,null,null,null,null,null,null,null,null,1]
[null,null,null,null,null,null,null,null,null,null,null,null,null,null,null,null,null,null,null,null,null,null,null,null,null,null,null,null,null,null,null,null,null,null,null,null,null,null,0]
[null,null,"Organisation de cycles de conférences grand public, de salons d’innovation ou de vulgarisation",null,null,null,null,null,null,null,null,null,null,null,null,null,null,"A",null,null,null,null,null,"تنظيم سلسلة محاضرات للجمهور العريض، معارض الابتكار أو التعميم",null,null,null,null,null,null,null,null,null,"200 pts/نقطة","200 pts/ نقطة",null,null,null,0]
[null,null,null,null,null,null,null,null,null,null,null,null,null,null,null,null,null,null,null,null,null,null,null,null,null,null,null,null,null,null,null,null,null,null,null,null,null,null,0]
[null,null,null,"رقم",null,"المسسؤول على مستوى المخبر",null,null,null,"إسم الحدث",null,null,null,"وصف القافلة",null,null,null,null,null,null,null,"إسم الباحث أو الباحثين",null,null,null,null,null,"فترة القافلة",null,null,null,null,null,"القيمة",null,null,null,null,0]
[null,null,null,"N°",null,"Responsable au niveau du labo",null,null,null,"Nom de l'événement",null,null,null,"Description du périple",null,null,null,null,null,null,null,"Nom du ou des chercheur(s)",null,null,null,null,null,"Période du périple",null,null,null,null,null,"Valeur",null,null,null,null,0]
[null,null,null,null,null,null,null,null,null,null,null,null,null,null,null,null,null,null,null,null,null,null,null,null,null,null,null,null,null,null,null,null,null,null,null,null,null,null,0]
[null,null,null,1,null,null,null,null,null,null,null,null,null,null,null,null,null,null,null,null,null,null,null,null,null,null,null,null,null,null,null,null,null,{"$f":"IF(AND(F111<>\"\",J111<>\"\",N111<>\"\"),200,\"\")","v":""},null,null,null,null,{"$f":"IF(OR(AH111=\"Valeur\",AH111=\"القيمة\"),0,IF(ISERROR(SEARCH(\"/\",AH111)),AH111,0))","v":""}]
[null,null,null,2,null,null,null,null,null,null,null,null,null,null,null,null,null,null,null,null,null,null,null,null,null,null,null,null,null,null,null,null,null,{"$f":"IF(AND(F112<>\"\",J112<>\"\",N112<>\"\"),200,\"\")","v":""},null,null,null,null,""]
[null,null,null,3,null,null,null,null,null,null,null,null,null,null,null,null,null,null,null,null,null,null,null,null,null,null,null,null,null,null,null,null,null,"",null,null,null,null,"",null,null,null,null,null,null,null,null,null,null,null,1]
[null,null,null,null,null,null,null,null,null,null,null,null,null,null,null,null,null,null,null,null,null,null,null,null,null,null,null,null,null,null,null,null,null,null,null,null,null,null,0]
[null,null,"c) Edition de revue",null,null,null,null,null,null,null,null,null,null,null,null,null,null,null,null,null,null,null,null,"ج) نشر المجلة",null,null,null,null,null,null,null,null,null,null,null,null,null,null,0]
[null,null,null,null,null,null,null,null,null,null,null,null,null,null,null,null,null,null,null,null,null,null,null,null,null,null,null,null,null,null,null,null,null,null,null,null,null,null,0]
[null,null,"Edition d’une revue WOS",null,null,null,null,null,null,null,null,null,null,null,null,"A",null,null,null,null,null,null,null,"نشر مجلة من صنف WOS  ",null,null,null,null,null,null,null,null,null,"100 pts/نقطة","100 pts/ نقطة",null,null,null,0]
[null,null,null,null,null,null,null,null,null,null,null,null,null,null,null,null,null,null,null,null,null,null,null,null,null,null,null,null,null,null,null,null,null,null,null,null,null,null,0]
[null,null,null,"رقم",null,"ر دمك",null,"عنوان المجلة",null,null,null,null,null,null,null,"أعضاء هيئة التحرير",null,null,null,null,null,"السنة",null,"العنوان الإلكتروني",null,null,null,"الناشر التجاري",null,null,null,null,null,"القيمة",null,null,null,null,0]
[null,null,null,"N°",null,"ISSN",null,"Titre de la revue",null,null,null,null,null,null,null,"Editorial board membre de l'équipe",null,null,null,null,null,"Année",null,"URL",null,null,null,"Editeur commercial",null,null,null,null,null,"Valeur",null,null,null,null,0]
[null,null,null,null,null,null,null,null,null,null,null,null,null,null,null,null,null,null,null,null,null,null,null,null,null,null,null,null,null,null,null,null,null,null,null,null,null,null,0]
[null,null,null,1,null,null,null,null,null,null,null,null,null,null,null,null,null,null,null,null,null,null,null,null,null,null,null,null,null,null,null,null,null,{"$f":"IF(AND(F122<>\"\",H122<>\"\",X122<>\"\"),100,\"\")","v":""},null,null,null,null,""]
[null,null,null,2,null,null,null,null,null,null,null,null,null,null,null,null,null,null,null,null,null,null,null,null,null,null,null,null,null,null,null,null,null,{"$f":"IF(AND(F123<>\"\",H123<>\"\",X123<>\"\"),100,\"\")","v":""},null,null,null,null,""]
[null,null,null,3,null,null,null,null,null,null,null,null,null,null,null,null,null,null,null,null,null,null,null,null,null,null,null,null,null,null,null,null,null,"",null,null,null,null,"",null,null,null,null,null,null,null,null,null,null,null,null,1]
[null,null,null,null,null,null,null,null,null,null,null,null,null,null,null,null,null,null,null,null,null,null,null,null,null,null,null,null,null,null,null,null,null,null,null,null,null,null,0]
[null,null,"Edition d’une revue de catégorie",null,null,null,null,null,null,null,null,null,null,null,null,"B",null,null,null,null,null,null,null,"نشر مجلة من صنف",null,null,null,null,null,null,null,null,null,"200 pts/نقطة","200 pts/ نقطة",null,null,null,0]
[null,null,null,null,null,null,null,null,null,null,null,null,null,null,null,null,null,null,null,null,null,null,null,null,null,null,null,null,null,null,null,null,null,null,null,null,null,null,0]
[null,null,null,"رقم",null,"ر دمك",null,"عنوان المجلة",null,null,null,null,null,null,null,"أعضاء هيئة التحرير",null,null,null,null,null,"السنة",null,"العنوان الإلكتروني",null,null,null,"الناشر التجاري",null,null,null,null,null,"القيمة",null,null,null,null,0]
[null,null,null,"N°",null,"ISSN",null,"Titre de la revue",null,null,null,null,null,null,null,"Editorial board membre de l'équipe",null,null,null,null,null,"Année",null,"URL",null,null,null,"Editeur commercial",null,null,null,null,null,"Valeur",null,null,null,null,0]
[null,null,null,null,null,null,null,null,null,null,null,null,null,null,null,null,null,null,null,null,null,null,null,null,null,null,null,null,null,null,null,null,null,null,null,null,null,null,0]
[null,null,null,1,null,null,null,null,null,null,null,null,null,null,null,null,null,null,null,null,null,null,null,null,null,null,null,null,null,null,null,null,null,{"$f":"IF(AND(F131<>\"\",H131<>\"\",X131<>\"\"),200,\"\")","v":""},null,null,null,null,""]
[null,null,null,2,null,null,null,null,null,null,null,null,null,null,null,null,null,null,null,null,null,null,null,null,null,null,null,null,null,null,null,null,null,{"$f":"IF(AND(F132<>\"\",H132<>\"\",X132<>\"\"),200,\"\")","v":""},null,null,null,null,""]
[null,null,null,3,null,null,null,null,null,null,null,null,null,null,null,null,null,null,null,null,null,null,null,null,null,null,null,null,null,null,null,null,null,"",null,null,null,null,"",null,null,null,null,null,null,null,null,null,null,null,null,null,1]
[null,null,null,null,null,null,null,null,null,null,null,null,null,null,null,null,null,null,null,null,null,null,null,null,null,null,null,null,null,null,null,null,null,null,null,null,null,null,0]
[null,null,"Edition d’une revue de catégorie C ou D",null,null,null,null,null,null,null,null,null,null,null,null,"C",null,null,null,null,null,null,null,"C أو Dمجلة من صنف  نشر",null,null,null,null,null,null,null,null,null,"80 pts/نقطة","80 pts/ نقطة",null,null,null,0]
[null,null,null,null,null,null,null,null,null,null,null,null,null,null,null,null,null,null,null,null,null,null,null,null,null,null,null,null,null,null,null,null,null,null,null,null,null,null,0]
[null,null,null,"رقم",null,"ر دمك",null,"عنوان المجلة",null,null,null,null,null,null,null,"أعضاء هيئة التحرير",null,null,null,null,null,"السنة",null,"العنوان الإلكتروني",null,null,null,"الناشر التجاري",null,null,null,null,null,"القيمة",null,null,null,null,0]
[null,null,null,"N°",null,"ISSN",null,"Titre de la revue",null,null,null,null,null,null,null,"Editorial board membre de l'équipe",null,null,null,null,null,"Année",null,"URL",null,null,null,"Editeur commercial",null,null,null,null,null,"Valeur",null,null,null,null,0]
[null,null,null,null,null,null,null,null,null,null,null,null,null,null,null,null,null,null,null,null,null,null,null,null,null,null,null,null,null,null,null,null,null,null,null,null,null,null,0]
[null,null,null,1,null,null,null,null,null,null,null,null,null,null,null,null,null,null,null,null,null,null,null,null,null,null,null,null,null,null,null,null,null,{"$f":"IF(AND(F140<>\"\",H140<>\"\",X140<>\"\"),80,\"\")","v":""},null,null,null,null,""]
[null,null,null,2,null,null,null,null,null,null,null,null,null,null,null,null,null,null,null,null,null,null,null,null,null,null,null,null,null,null,null,null,null,{"$f":"IF(AND(F141<>\"\",H141<>\"\",X141<>\"\"),80,\"\")","v":""},null,null,null,null,""]
[null,null,null,3,null,null,null,null,null,null,null,null,null,null,null,null,null,null,null,null,null,null,null,null,null,null,null,null,null,null,null,null,null,"",null,null,null,null,"",null,null,null,null,null,null,null,null,null,null,null,null,null,null,1]
[null,null,null,null,null,null,null,null,null,null,null,null,null,null,null,null,null,null,null,null,null,null,null,null,null,null,null,null,null,null,null,null,null,null,null,null,null,null,0]
[null,null,"2. Formation",null,null,null,null,null,null,null,null,null,null,null,null,null,null,null,null,null,null,null,null,"2. التكوين",null,null,null,null,null,null,null,null,null,null,null,null,null,null,0]
[null,null,null,null,null,null,null,null,null,null,null,null,null,null,null,null,null,null,null,null,null,null,null,null,null,null,null,null,null,null,null,null,null,null,null,null,null,null,0]
[null,null,"Formations doctorales en cours de validité",null,null,null,null,null,null,null,null,null,null,null,null,null,null,null,null,null,null,null,null,"التكوين الساري في الدكتوراه",null,null,null,null,null,null,null,null,null,"100 pts/نقطة","200 pts/ نقطة",null,null,null,0]
[null,null,null,null,null,null,null,null,null,null,null,null,null,null,null,null,null,null,null,null,null,null,null,null,null,null,null,null,null,null,null,null,null,null,null,null,null,null,0]
[null,null,null,"رقم",null,"رقم الإعتماد",null,"اسم التكوين في الدكتوراه",null,null,null,null,null,null,null,null,null,null,null," # طلبة الدكتوراه المعتمدين","عدد","السنة",null,"المسؤول",null,null,null,"الفترة",null,null,null,null,null,"القيمة",null,null,null,null,0]
[null,null,null,"N°",null,"N° d'Agrement",null,"Intitulé de la formation doctorale",null,null,null,null,null,null,null,null,null,null,null,"# Doctorant engagés",null,"Année",null,"Responsable",null,null,null,"Période",null,null,null,null,null,"Valeur",null,null,null,null,0]
[null,null,null,null,null,null,null,null,null,null,null,null,null,null,null,null,null,null,null,null,null,null,null,null,null,null,null,null,null,null,null,null,null,null,null,null,null,null,0]
[null,null,null,1,null,null,null,null,null,null,null,null,null,null,null,null,null,null,null,null,null,null,null,null,null,null,null,null,null,null,null,null,null,{"$f":"IF(AND(F151<>\"\",H151<>\"\"),100,\"\")","v":""},null,null,null,null,""]
[null,null,null,2,null,null,null,null,null,null,null,null,null,null,null,null,null,null,null,null,null,null,null,null,null,null,null,null,null,null,null,null,null,{"$f":"IF(AND(F152<>\"\",H152<>\"\"),100,\"\")","v":""},null,null,null,null,""]
[null,null,null,3,null,null,null,null,null,null,null,null,null,null,null,null,null,null,null,null,null,null,null,null,null,null,null,null,null,null,null,null,null,"",null,null,null,null,"",null,null,null,null,null,null,null,null,null,null,null,null,null,null,null,1]
[null,null,null,null,null,null,null,null,null,null,null,null,null,null,null,null,null,null,null,null,null,null,null,null,null,null,null,null,null,null,null,null,null,null,null,null,null,null,0]
[null,null,"Formations Master en cours de validité",null,null,null,null,null,null,null,null,null,null,null,null,null,null,null,null,null,null,null,null,"التكوين الساري في الماستر ",null,null,null,null,null,null,null,null,null,"100 pts/نقطة","200 pts/ نقطة",null,null,null,0]
[null,null,null,null,null,null,null,null,null,null,null,null,null,null,null,null,null,null,null,null,null,null,null,null,null,null,null,null,null,null,null,null,null,null,null,null,null,null,0]
[null,null,null,"رقم",null,"رقم الإعتماد",null,"اسم الماستر",null,null,null,null,null,null,null,null,null,null,null," # طلبة الدكتوراه المعتمدين",null,"السنة",null,"المسؤول",null,null,null,"الفترة",null,null,null,null,null,"القيمة",null,null,null,null,0]
[null,null,null,"N°",null,"N° d'Agrement",null,"Intitulé du Master",null,null,null,null,null,null,null,null,null,null,null,"# Doctorant engagés",null,"Année",null,"Responsable",null,null,null,"Période",null,null,null,null,null,"Valeur",null,null,null,null,0]
[null,null,null,null,null,null,null,null,null,null,null,null,null,null,null,null,null,null,null,null,null,null,null,null,null,null,null,null,null,null,null,null,null,null,null,null,null,null,0]
[null,null,null,1,null,null,null,null,null,null,null,null,null,null,null,null,null,null,null,null,null,null,null,null,null,null,null,null,null,null,null,null,null,{"$f":"IF(AND(F160<>\"\",H160<>\"\"),100,\"\")","v":""},null,null,null,null,""]
[null,null,null,2,null,null,null,null,null,null,null,null,null,null,null,null,null,null,null,null,null,null,null,null,null,null,null,null,null,null,null,null,null,{"$f":"IF(AND(F161<>\"\",H161<>\"\"),100,\"\")","v":""},null,null,null,null,""]
[null,null,null,3,null,null,null,null,null,null,null,null,null,null,null,null,null,null,null,null,null,null,null,null,null,null,null,null,null,null,null,null,null,"",null,null,null,null,"",null,null,null,null,null,null,null,null,null,null,null,null,null,null,null,null,1]
[null,null,null,null,null,null,null,null,null,null,null,null,null,null,null,null,null,null,null,null,null,null,null,null,null,null,null,null,null,null,null,null,null,null,null,null,null,null,0]
[null,null,"3. Collaboration",null,null,null,null,null,null,null,null,null,null,null,null,null,null,null,null,null,null,null,null,"3. التعاون",null,null,null,null,null,null,null,null,null,null,null,null,null,null,0]
[null,null,null,null,null,null,null,null,null,null,null,null,null,null,null,null,null,null,null,null,null,null,null,null,null,null,null,null,null,null,null,null,null,null,null,null,null,null,0]
[null,null,"Collaboration nationale et internationale avec d’autres entités de recherche",null,null,null,null,null,null,null,null,null,null,null,null,null,null,null,null,null,null,null,null,"التعاون مع كيانات البحث الأخرى علبى المستوى الوطني و الدولي",null,null,null,null,null,null,null,null,null,"(50-150) pts/نقطة","100 pts/ نقطة",null,null,null,0]
[null,null,null,null,null,null,null,null,null,null,null,null,null,null,null,null,null,null,null,null,null,null,null,null,null,null,null,null,null,null,null,null,null,null,null,null,null,null,0]
[null,null,null,"رقم",null,"إسم كيان البحث ",null,null,null," وصف وجيز",null,null,null,null,null,null,null,null,null,null,null,"أبعاد التعاون",null,null,null,"نقطة اتصال المخبر",null,null,null,"نوع التعاون",null,null,null,"القيمة",null,null,null,null,0]
[null,null,null,"N°",null,"Nom de l’entité de recherche ",null,null,null,"Description succinte",null,null,null,null,null,null,null,null,null,null,null,"Dimensions de la collab.",null,null,null,"Point de contact du labo",null,null,null,"Type de collab.",null,null,null,"Valeur",null,null,null,null,0]
[null,null,null,null,null,null,null,null,null,null,null,null,null,null,null,null,null,null,null,null,null,null,null,null,null,null,null,null,null,null,null,null,null,null,null,null,null,null,0]
[null,null,null,1,null,null,null,null,null,null,null,null,null,null,null,null,null,null,null,null,null,null,null,null,null,null,null,null,null,null,null,null,null,{"$f":"IF(V171=\"\",\"\",IF(V171=\"International multilatéral\",150,IF(V171=\"International bilatéral\",120,50)))","v":""},null,null,null,null,""]
[null,null,null,2,null,null,null,null,null,null,null,null,null,null,null,null,null,null,null,null,null,null,null,null,null,null,null,null,null,null,null,null,null,{"$f":"IF(V172=\"\",\"\",IF(V172=\"International multilatéral\",150,IF(V172=\"International bilatéral\",120,50)))","v":""},null,null,null,null,""]
[null,null,null,3,null,null,null,null,null,null,null,null,null,null,null,null,null,null,null,null,null,null,null,null,null,null,null,null,null,null,null,null,null,"",null,null,null,null,"",null,null,null,null,null,null,null,null,null,null,null,null,null,null,null,null,null,1]
[]
[null,null,null,"Tableau récapitulatif ",null,null,null,null,null,null,null,null,null,null,null,null,null,null,null,null,null,null,null,null,null,null,null,"جدول مختصر"]
[]
[]
[null,null,null,null,"Bilan d’activité du laboratoire",null,null,null,null,null,null,null,null,null,null,null,null,"Valeur/القيمة",null,"حصيلة نشاطات المخبر"]
[null,null,null,null,"1. Organisation des manifestations scientifiques",null,null,null,null,null,null,null,null,null,null,null,null,{"$f":"SUM(AM46:AM143)","v":0},null,"1.  تنظيم التظاهرات العلمية"]
[null,null,null,null,"2. Formation",null,null,null,null,null,null,null,null,null,null,null,null,{"$f":"SUM(AM151:AM154)","v":0},null,"2. التكوين"]
[null,null,null,null,"3. Collaboration",null,null,null,null,null,null,null,null,null,null,null,null,{"$f":"SUM(AM171:AM173)","v":0},null,"3. التعاون"]
[null,null,null,null,"Total",null,null,null,null,null,null,null,null,null,null,null,null,{"$f":"SUM(R179:S181)","v":0},null,"مجموع"]

{"sheet":"Classeur","index":1,"n_rows":1444,"n_cols":7,"rows_kept":1444,"cut":false,"hidden":true,"merged":[]}
[null,"Code","Grands domaines (Français)","Grands domaines (Français)","Annee","Collaboration"]
[1,"GD1","Sciences de la nature et de la vie",{"$f":"CONCATENATE(B2,\": \",C2)","v":"GD1: Sciences de la nature et de la vie"},"2011","National",50]
[2,"GD2","Sciences de la terre et de l’univers",{"$f":"CONCATENATE(B3,\": \",C3)","v":"GD2: Sciences de la terre et de l’univers"},"2012","International bilatéral",120]
[3,"GD3","Sciences de la physique","GD3: Sciences de la physique","2013","International multilatéral",150]
[4,"GD4","Chimie","GD4: Chimie","2014"]
[5,"GD5","Sciences mathématiques et leurs interactions","GD5: Sciences mathématiques et leurs interactions","2015"]
[6,"GD6","Sciences pour l’ingénieur","GD6: Sciences pour l’ingénieur"]
[7,"GD7","Sciences sociales","GD7: Sciences sociales"]
[8,"GD8","Sciences humaines et arts","GD8: Sciences humaines et arts"]
[9,"GD9","Multidisciplinaire","GD9: Multidisciplinaire"]
[10]
[11,null,"Intitulé de laboratoire","Etablissement de rattachement","Etablissement de rattachement"]
[12,"Centre_Universitaire_Ain_Temouchent","Hydrologie Appliquée Et Environnement","Centre Universitaire Ain Temouchent","Centre Universitaire Ain Temouchent"]
[13,"Centre_Universitaire_Ain_Temouchent","Structures Intelligentes","Centre Universitaire Ain Temouchent","Centre Universitaire de Tamanrasset"]
[14,"Centre_Universitaire_Ain_Temouchent","Chimie Appliquée","Centre Universitaire Ain Temouchent","Centre Universitaire El Bayadh"]
[15,"Centre_Universitaire_Ain_Temouchent","Discours Communicatif Algérien Moderne : Littéraire, Religieux, Publicitaire, Informatif …Étude Et Analyse","Centre Universitaire Ain Temouchent","Centre Universitaire Mila"]
[16,"Centre_Universitaire_Ain_Temouchent","Marches, Emploi Législation Simulation Au Pays Maghrébine","Centre Universitaire Ain Temouchent","Centre Universitaire Naama"]
[17,"Centre_Universitaire_El_Bayadh","Législations De Protection De Fonction Publique","Centre Universitaire El Bayadh","Centre Universitaire Relizane"]
[18,"Centre_Universitaire_Mila","Mathematiques Et Leurs Interactions","Centre Universitaire Mila","Centre Universitaire Tipaza"]
[19,"Centre_Universitaire_Mila","Sciences Naturelles Et Matériaux","Centre Universitaire Mila","Centre Universitaire Tissemssilt"]
[20,"Centre_Universitaire_Naama","Crimes Transfrontaliers","Centre Universitaire Naama","Ecole des Hautes Etudes Commerciales"]
[21,"Centre_Universitaire_Naama","L'étude du vocabulaire arabe classique des dialectes de l'ouest algérien","Centre Universitaire Naama","Ecole National des Mines Annaba"]
[22,"Centre_Universitaire_Relizane","Environnement, Les Substances Naturelles Végétales Et Technologie Des Aliments","Centre Universitaire Relizane","Ecole Nationale Polytechnique"]
[23,"Centre_Universitaire_Relizane","Génie Industrielle Et Développement Durable.","Centre Universitaire Relizane","Ecole Nationale polytechnique ENSET Oran"]
[24,"Centre_Universitaire_Relizane","Gestion Des Marches Financiers Par L’Application Des Mathématiques Et L’Informatique","Centre Universitaire Relizane","Ecole Nationale Supérieure Agronomie"]
[25,"Centre_Universitaire_Relizane","Etudes Sociales, Psychologiques Et Anthropologiques","Centre Universitaire Relizane","Ecole nationale supérieure de journalisme et des sciences de information"]
[26,"Centre_Universitaire_Relizane","Langue Et Communication","Centre Universitaire Relizane","Ecole Nationale Supérieure des Sciences Commerciales et Finacieres ESC"]
[27,"Centre_Universitaire_Tipaza","Economie Et Développement","Centre Universitaire Tipaza","Ecole Nationale Supérieure des Sciences de la Mer et de Aménagement du Littoral"]
[28,"Centre_Universitaire_Tipaza","Etudes En Culture, Personnalité Et Développement","Centre Universitaire Tipaza","Ecole Nationale Supérieure des Travaux Publics"]
[29,"Centre_Universitaire_Tipaza","Géographie Économique Et Les Échanges Internationaux","Centre Universitaire Tipaza","Ecole Nationale Supérieure en Informatique"]
[30,"Centre_Universitaire_Tipaza","des pratiques culturelles,enseignantes et d'apprentissage en algerie ","Centre Universitaire Tipaza","Ecole Nationale Supérieure en Sciences et Technologie du Sport"]
[31,"Centre_Universitaire_Tipaza","Institutions constitutionnelles    et le système politique","Centre Universitaire Tipaza","Ecole Nationale Supérieure en Statistique et en Economie Appliquée"]
[32,"Centre_Universitaire_Tissemssilt","Mesure Et Évaluation Des Activités Sportives","Centre Universitaire Tissemssilt","Ecole Nationale Supérieure Hydraulique"]
[33,"Centre_Universitaire_Tissemssilt","Etudes Critiques et Littéraires Modernes ","Centre Universitaire Tissemssilt","Ecole Nationale Supérieure Informatique Sidi Bel Abbes"]
[34,"Ecole_des_Hautes_Etudes_Commerciales","Management, Performance Et Innovation","Ecole des Hautes Etudes Commerciales","Ecole Nationale Vétérinaire"]
[35,"Ecole_des_Hautes_Etudes_Commerciales","Marketing Et Technologies De L'Information Et De La Communication","Ecole des Hautes Etudes Commerciales","Ecole Normale Superieure de Constantine"]
[36,"Ecole_National_des_Mines_Annaba","Mines, Métallurgie Et Matériaux","Ecole National des Mines Annaba","Ecole Normale Supérieure de Kouba"]
[37,"Ecole_Nationale_Polytechnique","Commande Des Processus","Ecole Nationale Polytechnique","Ecole Normale Supérieure de Laghouat"]
[38,"Ecole_Nationale_Polytechnique","Dispositifs De Communication Et De Conversion Photovoltaïque","Ecole Nationale Polytechnique","Ecole Normale Supérieure des Lettres et Sciences Sociales Bouzaréah"]
[39,"Ecole_Nationale_Polytechnique","Electrotechnique","Ecole Nationale Polytechnique","Ecole Polytechnique Architecteur et Urbanisme"]
[40,"Ecole_Nationale_Polytechnique","Génie Mécanique Et Développement","Ecole Nationale Polytechnique","Ecole Préparatoire en Sciences Economiques Commerciales et de Gestion"]
[41,"Ecole_Nationale_Polytechnique","Génie Sismique Et Dynamique Des Structures","Ecole Nationale Polytechnique","Institut de Maritime Bousmail"]
[42,"Ecole_Nationale_Polytechnique","Sciences De L'Eau","Ecole Nationale Polytechnique","Institut National de la Poste et des TIC"]
[43,"Ecole_Nationale_Polytechnique","Sciences Et Génie Des Matériaux","Ecole Nationale Polytechnique","Institut National des Télécommunications et des Technologies de Information et de la Communication Oran"]
[44,"Ecole_Nationale_Polytechnique","Sciences Et Techniques De L'Environnement","Ecole Nationale Polytechnique","Institut Pasteur Algérie"]
[45,"Ecole_Nationale_Polytechnique","Signal Et Communications","Ecole Nationale Polytechnique","Université 20 Août 1955 de Skikda"]
[46,"Ecole_Nationale_Polytechnique","Valorisation Des Énergies Fossiles","Ecole Nationale Polytechnique","Université 8 mai 1945 de Guelma"]
[47,"Ecole_Nationale_Polytechnique","Génie Minier","Ecole Nationale Polytechnique","Université Abdelhamid Ibn Badis de Mostaganem"]
[48,"Ecole_Nationale_polytechnique_ENSET_Oran","Automatique Et Analyse Des Systèmes","Ecole Nationale polytechnique ENSET Oran","Université Abderrahmane Mira de Béjaia"]
[49,"Ecole_Nationale_polytechnique_ENSET_Oran","Caractérisation Et Simulation Des Composants Et Circuits Électroniques","Ecole Nationale polytechnique ENSET Oran","Université Abou Elkacem Saad Allah Alger 2"]
[50,"Ecole_Nationale_polytechnique_ENSET_Oran","Technologie De L'Environnement","Ecole Nationale polytechnique ENSET Oran","Université Aboubeker Belkaid de Tlemcen"]
[51,"Ecole_Nationale_polytechnique_ENSET_Oran","Technologie En Fabrication Mécanique","Ecole Nationale polytechnique ENSET Oran","Université Ahmed Ben Bella Es Senia Oran 1"]
[52,"Ecole_Nationale_polytechnique_ENSET_Oran","Matériaux","Ecole Nationale polytechnique ENSET Oran","Université Ahmed Bougara dit Si Mhamed de Boumerdès"]
[53,"Ecole_Nationale_polytechnique_ENSET_Oran","Simulation, Commande, Analyse Et Maintenance Des Réseaux Eléctriques","Ecole Nationale polytechnique ENSET Oran","Université Ahmed Draya Adrar"]
[54,"Ecole_Nationale_polytechnique_ENSET_Oran","Innovation Des Systèmes Et Produits Industriels","Ecole Nationale polytechnique ENSET Oran","Université Akli Mohand Oulhadj de Bouira"]
[55,"Ecole_Nationale_polytechnique_ENSET_Oran","Micro Et De Nanophysique","Ecole Nationale polytechnique ENSET Oran","Université Alger 3"]
[56,"Ecole_Nationale_polytechnique_ENSET_Oran","Biomécanique Appliquée Et Biomatériaux","Ecole Nationale polytechnique ENSET Oran","Université Badji Mokhtar de Annaba"]
[57,"Ecole_Nationale_Supérieure_Agronomie","Protection Des Végétaux En Milieux Agricoles Et Naturels","Ecole Nationale Supérieure Agronomie","Université Batna 2"]
[58,"Ecole_Nationale_Supérieure_Agronomie","Conservation, Gestion Et Amélioration Des Ecosystèmes Forestiers","Ecole Nationale Supérieure Agronomie","Université Benyoucef Benkhedda Alger"]
[59,"Ecole_Nationale_Supérieure_Agronomie","Maîtrise De L'Eau En Agriculture","Ecole Nationale Supérieure Agronomie","Université Chadli Bendjedid El Tarf"]
[60,"Ecole_Nationale_Supérieure_Agronomie","Mécanisation Agricole","Ecole Nationale Supérieure Agronomie","Université de Abdelhamid Mehri de Constantine 2"]
[61,"Ecole_Nationale_Supérieure_Agronomie","Phytopathologie Et Biologie Moléculaire","Ecole Nationale Supérieure Agronomie","Université de Constantine 3"]
[62,"Ecole_Nationale_Supérieure_Agronomie","Production Animale","Ecole Nationale Supérieure Agronomie","Université de Ghardaïa"]
[63,"Ecole_Nationale_Supérieure_Agronomie","Production Végétale","Ecole Nationale Supérieure Agronomie","Université de Khenchela"]
[64,"Ecole_Nationale_Supérieure_Agronomie","Ressources Génétiques Et Biotechnologies","Ecole Nationale Supérieure Agronomie","Université des Sciences et de la Technologie Houari Boumediène USTHB"]
[65,"Ecole_Nationale_Supérieure_Agronomie","Technologie Alimentaire Et Nutrition Humaine","Ecole Nationale Supérieure Agronomie","Université des Sciences et de la Technologie Mohamed Boudiaf Oran"]
[66,"Ecole_Nationale_Supérieure_Agronomie","Economie Agricole, Agroalimentaire Et Rurale Et De L'Environnement","Ecole Nationale Supérieure Agronomie","Université des Sciences Islamiques Emir Abdelkader de Constantine"]
[67,"Ecole_Nationale_Supérieure_Agronomie","Amélioration Intégrative des Productions Végétales","Ecole Nationale Supérieure Agronomie","Université El Djilali Bounaama dit Si Mhamed de Khemis Miliana"]
[68,"Ecole_nationale_supérieure_de_journalisme_et_des_sciences_de_information","Médias Usages sociaux et communication","Ecole nationale supérieure de journalisme et des sciences de information","Université El Djilali Liabès de Sidi Bel Abbès"]
[69,"Ecole_Nationale_Supérieure_des_Sciences_Commerciales_et_Finacieres_ESC","Systèmes D'Informations Comptables. Etudes Pratiques En Sciences Commerciales Et Sciences De Gestion","Ecole Nationale Supérieure des Sciences Commerciales et Finacieres ESC","Université El Hadj Lakhdar de Batna 1"]
[70,"Ecole_Nationale_Supérieure_des_Sciences_Commerciales_et_Finacieres_ESC","Réformes Économiques, Développement Et Stratégies D'Intégration En Économie Mondiale","Ecole Nationale Supérieure des Sciences Commerciales et Finacieres ESC","Université Ferhat Abbes de Sétif 1"]
[71,"Ecole_Nationale_Supérieure_des_Sciences_Commerciales_et_Finacieres_ESC","Management, Gouvernance, Innovation Et Performance Des Organisations","Ecole Nationale Supérieure des Sciences Commerciales et Finacieres ESC","Université Frères Mentouri de Constantine 1"]
[72,"Ecole_Nationale_Supérieure_des_Sciences_de_la_Mer_et_de_Aménagement_du_Littoral","Conservation Et Valorisation Des Ressources Marines","Ecole Nationale Supérieure des Sciences de la Mer et de Aménagement du Littoral","Université Hassiba Ben Bouali de Chlef"]
[73,"Ecole_Nationale_Supérieure_des_Sciences_de_la_Mer_et_de_Aménagement_du_Littoral","Ecosystèmes Marins Et Littoraux","Ecole Nationale Supérieure des Sciences de la Mer et de Aménagement du Littoral","Université Ibn Khaldoun de Tiaret"]
[74,"Ecole_Nationale_Supérieure_des_Travaux_Publics","Travaux Publics, Ingénierie Du Transport Et Environnement","Ecole Nationale Supérieure des Travaux Publics","Université Kasdi Merbah de Ouargla"]
[75,"Ecole_Nationale_Supérieure_en_Informatique","Méthodes De Conception De Systèmes","Ecole Nationale Supérieure en Informatique","Université Lamine Debaghine de Sétif 2"]
[76,"Ecole_Nationale_Supérieure_en_Informatique","Communication Dans Les Systèmes Informatiques","Ecole Nationale Supérieure en Informatique","Université Larbi Ben Mhidi de Oum El Bouaghi"]
[77,"Ecole_Nationale_Supérieure_en_Sciences_et_Technologie_du_Sport","Sciences Biologiques Appliquées Au Sport (Changement D’Intitulé Du Lr 2001 : Adaptations Et Performance Motrice)","Ecole Nationale Supérieure en Sciences et Technologie du Sport","Université Larbi Tebessi de Tébessa"]
[78,"Ecole_Nationale_Supérieure_en_Sciences_et_Technologie_du_Sport","Sciences Sociales Appliquées Au Sport","Ecole Nationale Supérieure en Sciences et Technologie du Sport","Université Lounici Ali de Blida 2"]
[79,"Ecole_Nationale_Supérieure_en_Sciences_et_Technologie_du_Sport","Technologie De L'Entrainement Sportif","Ecole Nationale Supérieure en Sciences et Technologie du Sport","Université Mohamed Ben Ahmed Oran 2"]
[80,"Ecole_Nationale_Supérieure_en_Statistique_et_en_Economie_Appliquée","Economie Quantitative Appliquée Au Développement","Ecole Nationale Supérieure en Statistique et en Economie Appliquée","Université Mohamed Boudiaf de Msila"]
[81,"Ecole_Nationale_Supérieure_en_Statistique_et_en_Economie_Appliquée","Intégration Régionale Et Union Européenne","Ecole Nationale Supérieure en Statistique et en Economie Appliquée","Université Mohamed Cherif Mesaadia de Souk Ahras"]
[82,"Ecole_Nationale_Supérieure_en_Statistique_et_en_Economie_Appliquée","Modélisation De Phénomènes Stochastiques","Ecole Nationale Supérieure en Statistique et en Economie Appliquée","Université Mohamed El Bachir El Ibrahimi de Bordj Bou Arréridj"]
[83,"Ecole_Nationale_Supérieure_en_Statistique_et_en_Economie_Appliquée","Statistique Appliquée","Ecole Nationale Supérieure en Statistique et en Economie Appliquée","Université Mohamed Essedik Ben Yahia de Jijel"]
[84,"Ecole_Nationale_Supérieure_en_Statistique_et_en_Economie_Appliquée","Gouvernance, Économie Institutionnelle, Et Croissance Durable.","Ecole Nationale Supérieure en Statistique et en Economie Appliquée","Université Mohamed Khider de Biskra"]
[85,"Ecole_Nationale_Supérieure_Hydraulique","Mobilisation Et Evaluation Des Ressources En Eau","Ecole Nationale Supérieure Hydraulique","Université Mohamed Lakhdar Ben Amara dit Hamma Lakhdar El Oued"]
[86,"Ecole_Nationale_Supérieure_Hydraulique","Génie De L'Eau Et De L'Environnement","Ecole Nationale Supérieure Hydraulique","Université Mouloud Maameri de Tizi Ouzou"]
[87,"Ecole_Nationale_Supérieure_Informatique_Sidi_Bel_Abbes","Informatique de Sidi Bel Abbes","Ecole Nationale Supérieure Informatique Sidi Bel Abbes","Université Mustapha Stambouli de Mascara"]
[88,"Ecole_Nationale_Vétérinaire","Santé Et Production Animale","Ecole Nationale Vétérinaire","Université Omar Telidji de Laghouat"]
[89,"Ecole_Nationale_Vétérinaire","Hygiène Alimentaire Et Système Assurance Qualité","Ecole Nationale Vétérinaire","Université Saad Dahlab de Blida 1"]
[90,"Ecole_Nationale_Vétérinaire","Gestion des Ressources Animales Locales","Ecole Nationale Vétérinaire","Université Tahar Moulay de Saida"]
[91,"Ecole_Normale_Superieure_de_Constantine","Didactique Du Français","Ecole Normale Superieure de Constantine","Université Tahri Mohamed de Béchar"]
[92,"Ecole_Normale_Superieure_de_Constantine","Formation Des Sociétés Et Dynamique Des Territoires","Ecole Normale Superieure de Constantine","Université Yahia Farès de Médéa"]
[93,"Ecole_Normale_Superieure_de_Constantine","Mathématiques Appliquées et Didactique","Ecole Normale Superieure de Constantine","Université Ziane Achour de Djelfa"]
[94,"Ecole_Normale_Supérieure_de_Kouba","Didactique Des Sciences (Biologie, Chimie, Mathématiques Et Physique)","Ecole Normale Supérieure de Kouba"]
[95,"Ecole_Normale_Supérieure_de_Kouba","Equations Aux Dérivées Partielles Non Linéaires Et Histoire Des Mathématiques","Ecole Normale Supérieure de Kouba"]
[96,"Ecole_Normale_Supérieure_de_Kouba","Produits Bioactifs Et Valorisation De La Biomasse","Ecole Normale Supérieure de Kouba"]
[97,"Ecole_Normale_Supérieure_de_Kouba","Systèmes Intégrés À Base De Capteurs","Ecole Normale Supérieure de Kouba"]
[98,"Ecole_Normale_Supérieure_de_Kouba","Biologie Et Physiologie Animale","Ecole Normale Supérieure de Kouba"]
[99,"Ecole_Normale_Supérieure_de_Kouba","Physique Des Particules Et Physique Statistique","Ecole Normale Supérieure de Kouba"]
[null,"Ecole_Normale_Supérieure_de_Kouba","Etude Et Développement Des Techniques De Traitement Et D'Épuration Des Eaux Et De Gestion Environnementale","Ecole Normale Supérieure de Kouba"]
[null,"Ecole_Normale_Supérieure_de_Kouba","N-Corps Et Structure De La Matière","Ecole Normale Supérieure de Kouba"]
[null,"Ecole_Normale_Supérieure_de_Kouba","Théorie Du Point Fixe Et Applications","Ecole Normale Supérieure de Kouba"]
[null,"Ecole_Normale_Supérieure_de_Kouba","Biologie Des Systemes Microbiens","Ecole Normale Supérieure de Kouba"]
[null,"Ecole_Normale_Supérieure_de_Kouba","Ecobiologie Animale","Ecole Normale Supérieure de Kouba"]
[null,"Ecole_Normale_Supérieure_de_Kouba","Epistemologie Et Histoire Des Mathematiques","Ecole Normale Supérieure de Kouba"]
[null,"Ecole_Normale_Supérieure_de_Kouba","Ethnobotanique Et Substance Naturelle","Ecole Normale Supérieure de Kouba"]
[null,"Ecole_Normale_Supérieure_de_Kouba","Physique Mathématique Et Applications","Ecole Normale Supérieure de Kouba"]
[null,"Ecole_Normale_Supérieure_de_Laghouat","Sciences Chimiques Et Physiques Appliquées","Ecole Normale Supérieure de Laghouat"]
[null,"Ecole_Normale_Supérieure_des_Lettres_et_Sciences_Sociales_Bouzaréah","Histoire, Civilisation Et Géographie Appliquées","Ecole Normale Supérieure des Lettres et Sciences Sociales Bouzaréah"]
[null,"Ecole_Normale_Supérieure_des_Lettres_et_Sciences_Sociales_Bouzaréah","Science D’Apprentissage De La Langue Arabe","Ecole Normale Supérieure des Lettres et Sciences Sociales Bouzaréah"]
[null,"Ecole_Normale_Supérieure_des_Lettres_et_Sciences_Sociales_Bouzaréah","Education Et Épistémologie","Ecole Normale Supérieure des Lettres et Sciences Sociales Bouzaréah"]
[null,"Ecole_Normale_Supérieure_des_Lettres_et_Sciences_Sociales_Bouzaréah","Enseignement, Formation Et Didactique","Ecole Normale Supérieure des Lettres et Sciences Sociales Bouzaréah"]
[null,"Ecole_Normale_Supérieure_des_Lettres_et_Sciences_Sociales_Bouzaréah","Linguistique Et Sociodidactique Du Plurilinguisme","Ecole Normale Supérieure des Lettres et Sciences Sociales Bouzaréah"]
[null,"Ecole_Normale_Supérieure_des_Lettres_et_Sciences_Sociales_Bouzaréah","Des Etudes Historiques Contemporaines ","Ecole Normale Supérieure des Lettres et Sciences Sociales Bouzaréah"]
[null,"Ecole_Polytechnique_Architecteur_et_Urbanisme","Architecture Et Environnement","Ecole Polytechnique Architecteur et Urbanisme"]
[null,"Ecole_Polytechnique_Architecteur_et_Urbanisme","Ville, Urbanisme Et Développement Durable","Ecole Polytechnique Architecteur et Urbanisme"]
[null,"Ecole_Polytechnique_Architecteur_et_Urbanisme","Ville, Architecture Et Patrimoine","Ecole Polytechnique Architecteur et Urbanisme"]
[null,"Ecole_Préparatoire_en_Sciences_Economiques_Commerciales_et_de_Gestion","Economie Appliquée À L Entreprise","Ecole Préparatoire en Sciences Economiques Commerciales et de Gestion"]
[null,"Institut_de_Maritime_Bousmail","Sécurité Dans Le Transport Maritime","Institut de Maritime Bousmail"]
[null,"Institut_National_de_la_Poste_et_des_TIC","Recherche En Tic","Institut National de la Poste et des TIC"]
[null,"Institut_National_des_Télécommunications_et_des_Technologies_de_Information_et_de_la_Communication_Oran","Recherche Appliquée En Tic","Institut National des Télécommunications et des Technologies de Information et de la Communication Oran"]
[null,"Institut_Pasteur_Algérie","Immuno-Pathologie Et Immuno-Génétique","Institut Pasteur Algérie"]
[null,"Institut_Pasteur_Algérie","Parasitologie","Institut Pasteur Algérie"]
[null,"Université_20_Août_1955_de_Skikda","Génie Chimique Et Environnement De Skikda","Université 20 Août 1955 de Skikda"]
[null,"Université_20_Août_1955_de_Skikda","Physico-Chimie Des Surfaces Et Interfaces","Université 20 Août 1955 de Skikda"]
[null,"Université_20_Août_1955_de_Skikda","Automatique De Skikda","Université 20 Août 1955 de Skikda"]
[null,"Université_20_Août_1955_de_Skikda","Electronique De Skikda","Université 20 Août 1955 de Skikda"]
[null,"Université_20_Août_1955_de_Skikda","Economie, Finances Et Management","Université 20 Août 1955 de Skikda"]
[null,"Université_20_Août_1955_de_Skikda","Matériaux, Géotechnique, Habitat Et Urbanisme (L.M.G.H.U.)","Université 20 Août 1955 de Skikda"]
[null,"Université_20_Août_1955_de_Skikda","Electrotechnique De Skikda","Université 20 Août 1955 de Skikda"]
[null,"Université_20_Août_1955_de_Skikda","Recherches Et Études Sociales","Université 20 Août 1955 de Skikda"]
[null,"Université_20_Août_1955_de_Skikda","Génie Mécanique Et Matériaux","Université 20 Août 1955 de Skikda"]
[null,"Université_20_Août_1955_de_Skikda","Mathématiques Appliquées Et D’Histoire Et Didactique Des Mathématiques","Université 20 Août 1955 de Skikda"]
[null,"Université_20_Août_1955_de_Skikda","Optimisation De La Production Agricole En Zone Subhumide","Université 20 Août 1955 de Skikda"]
[null,"Université_20_Août_1955_de_Skikda","Informatique Et Communication","Université 20 Août 1955 de Skikda"]
[null,"Université_20_Août_1955_de_Skikda","Transport Maritime Et Ports En Algérie","Université 20 Août 1955 de Skikda"]
[null,"Université_20_Août_1955_de_Skikda","Le Patrimoine Littéraire Algérien Officiel Et Marginal","Université 20 Août 1955 de Skikda"]
[null,"Université_8_mai_1945_de_Guelma","Génie Électrique","Université 8 mai 1945 de Guelma"]
[null,"Université_8_mai_1945_de_Guelma","Analyses Industrielles Et Génie Des Matériaux","Université 8 mai 1945 de Guelma"]
[null,"Université_8_mai_1945_de_Guelma","Automatique Et Informatique De Guelma","Université 8 mai 1945 de Guelma"]
[null,"Université_8_mai_1945_de_Guelma","Chimie Appliquée","Université 8 mai 1945 de Guelma"]
[null,"Université_8_mai_1945_de_Guelma","Génie Civil Et Hydraulique","Université 8 mai 1945 de Guelma"]
[null,"Université_8_mai_1945_de_Guelma","Mécanique Et Structure","Université 8 mai 1945 de Guelma"]
[null,"Université_8_mai_1945_de_Guelma","Physique De Guelma","Université 8 mai 1945 de Guelma"]
[null,"Université_8_mai_1945_de_Guelma","Développement Endogène, Auto - Développement Et Bonne Gouvernance","Université 8 mai 1945 de Guelma"]
[null,"Université_8_mai_1945_de_Guelma","Biologie, Eau Et Environnement","Université 8 mai 1945 de Guelma"]
[null,"Université_8_mai_1945_de_Guelma","Histoire Des Recherches Et Études Maghrébines","Université 8 mai 1945 de Guelma"]
[null,"Université_8_mai_1945_de_Guelma","Mathématiques Appliqués Et De Modélisation","Université 8 mai 1945 de Guelma"]
[null,"Université_8_mai_1945_de_Guelma","Problèmes Inverses, Modélisation, Information Et Systèmes (Pi:Mis)","Université 8 mai 1945 de Guelma"]
[null,"Université_8_mai_1945_de_Guelma","Sciences Et Techniques De L'Information Et De La Communication","Université 8 mai 1945 de Guelma"]
[null,"Université_8_mai_1945_de_Guelma","Télécommunications","Université 8 mai 1945 de Guelma"]
[null,"Université_8_mai_1945_de_Guelma","Chimie Computationnelle Et Nanostructures","Université 8 mai 1945 de Guelma"]
[null,"Université_8_mai_1945_de_Guelma","Chimie Physique","Université 8 mai 1945 de Guelma"]
[null,"Université_8_mai_1945_de_Guelma","Conservation Des Zones Humides","Université 8 mai 1945 de Guelma"]
[null,"Université_8_mai_1945_de_Guelma","Etudes Juridiques Environnementales","Université 8 mai 1945 de Guelma"]
[null,"Université_8_mai_1945_de_Guelma","Etudes Linguistiques Et Litturatures","Université 8 mai 1945 de Guelma"]
[null,"Université_8_mai_1945_de_Guelma","Physique Des Matériaux","Université 8 mai 1945 de Guelma"]
[null,"Université_8_mai_1945_de_Guelma","Contrôle Avancé","Université 8 mai 1945 de Guelma"]
[null,"Université_8_mai_1945_de_Guelma","Mécanique Appliquèe Des Nouveau Matèriaux","Université 8 mai 1945 de Guelma"]
[null,"Université_8_mai_1945_de_Guelma","Silicates, Polymères Et Des Nano Composites","Université 8 mai 1945 de Guelma"]
[null,"Université_Abdelhamid_Ibn_Badis_de_Mostaganem","Electromagnétisme Et Optique Guidée","Université Abdelhamid Ibn Badis de Mostaganem"]
[null,"Université_Abdelhamid_Ibn_Badis_de_Mostaganem","Matériaux Et Procédés De Construction","Université Abdelhamid Ibn Badis de Mostaganem"]
[null,"Université_Abdelhamid_Ibn_Badis_de_Mostaganem","Microbiologie Et Biologie Végétale","Université Abdelhamid Ibn Badis de Mostaganem"]
[null,"Université_Abdelhamid_Ibn_Badis_de_Mostaganem","Optimisation Des Programmes D'Activité Sportive : Enseignement Et Entraînement","Université Abdelhamid Ibn Badis de Mostaganem"]
[null,"Université_Abdelhamid_Ibn_Badis_de_Mostaganem","Sciences Et Techniques De L'Environnement Et De La Valorisation","Université Abdelhamid Ibn Badis de Mostaganem"]
[null,"Université_Abdelhamid_Ibn_Badis_de_Mostaganem","Sciences Et Techniques De Production Animale","Université Abdelhamid Ibn Badis de Mostaganem"]
[null,"Université_Abdelhamid_Ibn_Badis_de_Mostaganem","Biodiversité Et Conservation Des Eaux Et Des Sols","Université Abdelhamid Ibn Badis de Mostaganem"]
[null,"Université_Abdelhamid_Ibn_Badis_de_Mostaganem","Dynamique Macro-Économique Et Changements Structurels","Université Abdelhamid Ibn Badis de Mostaganem"]
[null,"Université_Abdelhamid_Ibn_Badis_de_Mostaganem","Mathématiques Pures Et Appliquées","Université Abdelhamid Ibn Badis de Mostaganem"]
[null,"Université_Abdelhamid_Ibn_Badis_de_Mostaganem","Physiologie Animale Appliquée","Université Abdelhamid Ibn Badis de Mostaganem"]
[null,"Université_Abdelhamid_Ibn_Badis_de_Mostaganem","Protection Des Végétaux","Université Abdelhamid Ibn Badis de Mostaganem"]
[null,"Université_Abdelhamid_Ibn_Badis_de_Mostaganem","Signaux Et Systèmes","Université Abdelhamid Ibn Badis de Mostaganem"]
[null,"Université_Abdelhamid_Ibn_Badis_de_Mostaganem","Technologie Alimentaire Et Nutrition","Université Abdelhamid Ibn Badis de Mostaganem"]
[null,"Université_Abdelhamid_Ibn_Badis_de_Mostaganem","Valorisation Des Matériaux","Université Abdelhamid Ibn Badis de Mostaganem"]
[null,"Université_Abdelhamid_Ibn_Badis_de_Mostaganem","Structure, Élaboration Et Applications Des Matériaux Moléculaires","Université Abdelhamid Ibn Badis de Mostaganem"]
[null,"Université_Abdelhamid_Ibn_Badis_de_Mostaganem","Modélisation Numérique Et Expérimentale Des Phénomènes Mécaniques","Université Abdelhamid Ibn Badis de Mostaganem"]
[null,"Université_Abdelhamid_Ibn_Badis_de_Mostaganem","Analyse Des Données Quantitatives Et Qualitatives Des Comportements Psychologiques Et Sociaux","Université Abdelhamid Ibn Badis de Mostaganem"]
[null,"Université_Abdelhamid_Ibn_Badis_de_Mostaganem","Construction, Transport Et Protection De L'Environnement (Lr/Ctpe)","Université Abdelhamid Ibn Badis de Mostaganem"]
[null,"Université_Abdelhamid_Ibn_Badis_de_Mostaganem","Elaboration Et Caractérisation Physico Mécanique Et Métallurgique Des Matériaux","Université Abdelhamid Ibn Badis de Mostaganem"]
[null,"Université_Abdelhamid_Ibn_Badis_de_Mostaganem","Micro-Organismes Bénéfiques, Des Aliments Fonctionnels Et De La Santé","Université Abdelhamid Ibn Badis de Mostaganem"]
[null,"Université_Abdelhamid_Ibn_Badis_de_Mostaganem","Politique Industrielle Et Developpement Des Echanges Exterieurs (Poidex)","Université Abdelhamid Ibn Badis de Mostaganem"]
[null,"Université_Abdelhamid_Ibn_Badis_de_Mostaganem","Dialogue Des Civilisations Et La Diversité Culturelle Et Philosophie De La Paix","Université Abdelhamid Ibn Badis de Mostaganem"]
[null,"Université_Abdelhamid_Ibn_Badis_de_Mostaganem","Didactique Des Projets De Formation Et Conception De Curricula","Université Abdelhamid Ibn Badis de Mostaganem"]
[null,"Université_Abdelhamid_Ibn_Badis_de_Mostaganem","Droit Foncier Et Environnement","Université Abdelhamid Ibn Badis de Mostaganem"]
[null,"Université_Abdelhamid_Ibn_Badis_de_Mostaganem","Droit International Du Développement Durable","Université Abdelhamid Ibn Badis de Mostaganem"]
[null,"Université_Abdelhamid_Ibn_Badis_de_Mostaganem","Etudes Linguistiques Et Littéraires En Algérie, De La Période Turque À La Fin Du Xxe Siècle","Université Abdelhamid Ibn Badis de Mostaganem"]
[null,"Université_Abdelhamid_Ibn_Badis_de_Mostaganem","Philosophie Et Sciences Humaines : Approches Cognitives Et Méthodologiques","Université Abdelhamid Ibn Badis de Mostaganem"]
[null,"Université_Abdelhamid_Ibn_Badis_de_Mostaganem","Sciences Appliquées Au Mouvement Humain","Université Abdelhamid Ibn Badis de Mostaganem"]
[null,"Université_Abdelhamid_Ibn_Badis_de_Mostaganem","Unité De Recherche: Lithiases Urinaires Et Biliaires","Université Abdelhamid Ibn Badis de Mostaganem"]
[null,"Université_Abdelhamid_Ibn_Badis_de_Mostaganem","Environnement Linguistique Et Usages De La Langue Francaise En Algerie:Une Observation Quantitative","Université Abdelhamid Ibn Badis de Mostaganem"]
[null,"Université_Abdelhamid_Ibn_Badis_de_Mostaganem","Esthétiques Visuelles Dans Les Pratique Artistiques Algerériennes","Université Abdelhamid Ibn Badis de Mostaganem"]
[null,"Université_Abdelhamid_Ibn_Badis_de_Mostaganem","Etudes En Communication, Information Et Analyse De Discours","Université Abdelhamid Ibn Badis de Mostaganem"]
[null,"Université_Abdelhamid_Ibn_Badis_de_Mostaganem","Nèo-Khaldounisme,Institutions Sociales Et Pouvoir","Université Abdelhamid Ibn Badis de Mostaganem"]
[null,"Université_Abdelhamid_Ibn_Badis_de_Mostaganem","Pharmacognosie & Api- Phytothérapie","Université Abdelhamid Ibn Badis de Mostaganem"]
[null,"Université_Abdelhamid_Ibn_Badis_de_Mostaganem","Téchnologie Et Proprietés Du Solide","Université Abdelhamid Ibn Badis de Mostaganem"]
[null,"Université_Abdelhamid_Ibn_Badis_de_Mostaganem","Dimensions Sociopragmatique et Pragmalinguistique dans les Manuels Scolaires de Langues Etrangeres en Algérie","Université Abdelhamid Ibn Badis de Mostaganem"]
[null,"Université_Abdelhamid_Ibn_Badis_de_Mostaganem","Droit Constitutionnel et la Bonne Gouvernance","Université Abdelhamid Ibn Badis de Mostaganem"]
[null,"Université_Abdelhamid_Ibn_Badis_de_Mostaganem","Droit de l'Homme et Liberties Publiques","Université Abdelhamid Ibn Badis de Mostaganem"]
[null,"Université_Abdelhamid_Ibn_Badis_de_Mostaganem","Droit de Travail et l’Emploi","Université Abdelhamid Ibn Badis de Mostaganem"]
[null,"Université_Abdelhamid_Ibn_Badis_de_Mostaganem","Etudes du Genres, Langues et Diversités Sociolinguistiques","Université Abdelhamid Ibn Badis de Mostaganem"]
[null,"Université_Abdelhamid_Ibn_Badis_de_Mostaganem","Le Sacré, Expressions et Représentations","Université Abdelhamid Ibn Badis de Mostaganem"]
[null,"Université_Abdelhamid_Ibn_Badis_de_Mostaganem","Protection, Valorisation des Ressources Marines Littorales et Systématique Moléculaire","Université Abdelhamid Ibn Badis de Mostaganem"]
[null,"Université_Abderrahmane_Mira_de_Béjaia","Biomathématique, Biophysique, Biochimie Et Scientométrie","Université Abderrahmane Mira de Béjaia"]
[null,"Université_Abderrahmane_Mira_de_Béjaia","Ecologie Et Environnement","Université Abderrahmane Mira de Béjaia"]
[null,"Université_Abderrahmane_Mira_de_Béjaia","Economie Et Développement","Université Abderrahmane Mira de Béjaia"]
[null,"Université_Abderrahmane_Mira_de_Béjaia","Génie De L'Environnement","Université Abderrahmane Mira de Béjaia"]
[null,"Université_Abderrahmane_Mira_de_Béjaia","Génie Électrique","Université Abderrahmane Mira de Béjaia"]
[null,"Université_Abderrahmane_Mira_de_Béjaia","Matériaux Organiques","Université Abderrahmane Mira de Béjaia"]
[null,"Université_Abderrahmane_Mira_de_Béjaia","Microbiologie Appliquée","Université Abderrahmane Mira de Béjaia"]
[null,"Université_Abderrahmane_Mira_de_Béjaia","Technologie Industrielle Et De L'Information","Université Abderrahmane Mira de Béjaia"]
[null,"Université_Abderrahmane_Mira_de_Béjaia","Technologies Des Matériaux Et De Génie Des Procédés","Université Abderrahmane Mira de Béjaia"]
[null,"Université_Abderrahmane_Mira_de_Béjaia","Mathématiques Appliquées","Université Abderrahmane Mira de Béjaia"]
[null,"Université_Abderrahmane_Mira_de_Béjaia","Physique Théorique","Université Abderrahmane Mira de Béjaia"]
[null,"Université_Abderrahmane_Mira_de_Béjaia","Hydraulique Appliquée Et Environnement","Université Abderrahmane Mira de Béjaia"]
[null,"Université_Abderrahmane_Mira_de_Béjaia","Biochimie Appliquée","Université Abderrahmane Mira de Béjaia"]
[null,"Université_Abderrahmane_Mira_de_Béjaia","Formation En Langues Appliquées Et Ingénierie Des Langues En Milieu Multilingue","Université Abderrahmane Mira de Béjaia"]
[null,"Université_Abderrahmane_Mira_de_Béjaia","Ecosystèmes Marins Et Aquacoles (Lab. Associé avec MPRH)","Université Abderrahmane Mira de Béjaia"]
[null,"Université_Abderrahmane_Mira_de_Béjaia","Biotechnologies Végétales Et Ethnobotanique","Université Abderrahmane Mira de Béjaia"]
[null,"Université_Abderrahmane_Mira_de_Béjaia","Ecologie Microbienne","Université Abderrahmane Mira de Béjaia"]
[null,"Université_Abderrahmane_Mira_de_Béjaia","Maitrise Des Energies Renouvelables","Université Abderrahmane Mira de Béjaia"]
[null,"Université_Abderrahmane_Mira_de_Béjaia","Zoologie Appliquée Et D’Ecophysiologie Animale","Université Abderrahmane Mira de Béjaia"]
[null,"Université_Abderrahmane_Mira_de_Béjaia","Electrochimie, Corrosion Et De Valorisation Énergétique","Université Abderrahmane Mira de Béjaia"]
[null,"Université_Abderrahmane_Mira_de_Béjaia","Génie Biologique Des Cancers","Université Abderrahmane Mira de Béjaia"]
[null,"Université_Abderrahmane_Mira_de_Béjaia","Génie De La Construction Et Architecture","Université Abderrahmane Mira de Béjaia"]
[null,"Université_Abderrahmane_Mira_de_Béjaia","Informatique Médicale","Université Abderrahmane Mira de Béjaia"]
[null,"Université_Abderrahmane_Mira_de_Béjaia","Interdisciplinaire Santé Et Population","Université Abderrahmane Mira de Béjaia"]
[null,"Université_Abderrahmane_Mira_de_Béjaia","Matériaux Polymères Avancés","Université Abderrahmane Mira de Béjaia"]
[null,"Université_Abderrahmane_Mira_de_Béjaia","Mécanique, Matériaux Et Énergétique","Université Abderrahmane Mira de Béjaia"]
[null,"Université_Abderrahmane_Mira_de_Béjaia","Physico-Chimie Des Matériaux Et Catalyse","Université Abderrahmane Mira de Béjaia"]
[null,"Université_Abderrahmane_Mira_de_Béjaia","Procédés Membranaires Et Des Techniques De Séparation Et De Récupération","Université Abderrahmane Mira de Béjaia"]
[null,"Université_Abderrahmane_Mira_de_Béjaia","Unité De Recherche: Modélisation Et Optimisation Des Systèmes (Remplace Le Lr 2000 \"Modélisation Et Optimisation Des Systèmes\")","Université Abderrahmane Mira de Béjaia"]
[null,"Université_Abderrahmane_Mira_de_Béjaia","Effectivité de la Norme Juridique","Université Abderrahmane Mira de Béjaia"]
[null,"Université_Abderrahmane_Mira_de_Béjaia","Les Langues étrangéres de Spécialité en Milieux Socioprofessionnels:préparation à la professionnalisation","Université Abderrahmane Mira de Béjaia"]
[null,"Université_Abderrahmane_Mira_de_Béjaia","management et techniques quantitatives","Université Abderrahmane Mira de Béjaia"]
[null,"Université_Abou_Elkacem_Saad_Allah_Alger_2","Changement Social","Université Abou Elkacem Saad Allah Alger 2"]
[null,"Université_Abou_Elkacem_Saad_Allah_Alger_2","Education-Formation-Orientation-Travail","Université Abou Elkacem Saad Allah Alger 2"]
[null,"Université_Abou_Elkacem_Saad_Allah_Alger_2","Traduction Et Terminologie","Université Abou Elkacem Saad Allah Alger 2"]
[null,"Université_Abou_Elkacem_Saad_Allah_Alger_2","Etudes Et Recherche En Acoustique","Université Abou Elkacem Saad Allah Alger 2"]
[null,"Université_Abou_Elkacem_Saad_Allah_Alger_2","Linguistique Et Didactique Des Langues","Université Abou Elkacem Saad Allah Alger 2"]
[null,"Université_Abou_Elkacem_Saad_Allah_Alger_2","Manuscrits","Université Abou Elkacem Saad Allah Alger 2"]
[null,"Université_Abou_Elkacem_Saad_Allah_Alger_2","Prévention Et Ergonomie","Université Abou Elkacem Saad Allah Alger 2"]
[null,"Université_Abou_Elkacem_Saad_Allah_Alger_2","Atlas De La Culture Populaire Algérienne","Université Abou Elkacem Saad Allah Alger 2"]
[null,"Université_Abou_Elkacem_Saad_Allah_Alger_2","Discours Soufi Dans La Littérature Et La Langue","Université Abou Elkacem Saad Allah Alger 2"]
[null,"Université_Abou_Elkacem_Saad_Allah_Alger_2","Evolution De La Civilisation Du Maghreb Central Algérie Jusqu’À La Fin De La Période Otomane","Université Abou Elkacem Saad Allah Alger 2"]
[null,"Université_Abou_Elkacem_Saad_Allah_Alger_2","Psychologie Et Sciences De L’Éducation","Université Abou Elkacem Saad Allah Alger 2"]
[null,"Université_Abou_Elkacem_Saad_Allah_Alger_2","Vérification Des Manuscrits Et Étude Du Patrimoine Littéraire Et Linguistique","Université Abou Elkacem Saad Allah Alger 2"]
[null,"Université_Abou_Elkacem_Saad_Allah_Alger_2","Anthropologie Psychanalitique Et De Psychopatologie","Université Abou Elkacem Saad Allah Alger 2"]
[null,"Université_Abou_Elkacem_Saad_Allah_Alger_2","Unité Et Etudes Maghrébines À Travers L'Histoire","Université Abou Elkacem Saad Allah Alger 2"]
[null,"Université_Abou_Elkacem_Saad_Allah_Alger_2","Etudes Philosophiques Et Axiologiques","Université Abou Elkacem Saad Allah Alger 2"]
[null,"Université_Abou_Elkacem_Saad_Allah_Alger_2","Passé Colonial Français Au Miroir Du Temps Présent: Algérie, Moyen Orient, Méditerranée","Université Abou Elkacem Saad Allah Alger 2"]
[null,"Université_Abou_Elkacem_Saad_Allah_Alger_2","Psychométrie & Counseling","Université Abou Elkacem Saad Allah Alger 2"]
[null,"Université_Abou_Elkacem_Saad_Allah_Alger_2","Problématique De La Recherche Scientifique(L'Élaboration De La Société Arabe Contemporaine ,L'Lagérie Comme Modèle )","Université Abou Elkacem Saad Allah Alger 2"]
[null,"Université_Abou_Elkacem_Saad_Allah_Alger_2","Archéologie Patrimoine Et Archéométrie","Université Abou Elkacem Saad Allah Alger 2"]
[null,"Université_Abou_Elkacem_Saad_Allah_Alger_2","Esthétique Des Arts Et Philosophie Contemporaine","Université Abou Elkacem Saad Allah Alger 2"]
[null,"Université_Abou_Elkacem_Saad_Allah_Alger_2","Etudes Africaines","Université Abou Elkacem Saad Allah Alger 2"]
[null,"Université_Abou_Elkacem_Saad_Allah_Alger_2","Famille, Développement , Prévention De La Délinquance Et Criminologie","Université Abou Elkacem Saad Allah Alger 2"]
[null,"Université_Abou_Elkacem_Saad_Allah_Alger_2","Problèmes De La Civilisation Et Histoire En Algérie","Université Abou Elkacem Saad Allah Alger 2"]
[null,"Université_Abou_Elkacem_Saad_Allah_Alger_2","Psychologie Clinique Et Metrique","Université Abou Elkacem Saad Allah Alger 2"]
[null,"Université_Abou_Elkacem_Saad_Allah_Alger_2","Réforme De L’Enseignement Supérieur Algérien: Enseignement, Savoir Et Société","Université Abou Elkacem Saad Allah Alger 2"]
[null,"Université_Abou_Elkacem_Saad_Allah_Alger_2","Religion Et Société","Université Abou Elkacem Saad Allah Alger 2"]
[null,"Université_Abou_Elkacem_Saad_Allah_Alger_2","Socio Anthropologie Du Développement Des Territoires","Université Abou Elkacem Saad Allah Alger 2"]
[null,"Université_Abou_Elkacem_Saad_Allah_Alger_2","Sociologie Des Organisations Et De Management","Université Abou Elkacem Saad Allah Alger 2"]
[null,"Université_Abou_Elkacem_Saad_Allah_Alger_2","Unité De Recherche: Neurosciences Cognitives - Orthophonie - Phoniatrie (Remplace Le Lr 2000 \" Sciences Du Langage-Neurosciences Cognitives-Communication Slancom\")","Université Abou Elkacem Saad Allah Alger 2"]
[null,"Université_Abou_Elkacem_Saad_Allah_Alger_2","ترجمة الوتائق التاريخية","Université Abou Elkacem Saad Allah Alger 2"]
[null,"Université_Abou_Elkacem_Saad_Allah_Alger_2","Interdisciplinaire de Recherche : Analyse du Discours, Didactique des langues et interculturalité","Université Abou Elkacem Saad Allah Alger 2"]
[null,"Université_Abou_Elkacem_Saad_Allah_Alger_2","linguistique appliquée et enseignement des langues","Université Abou Elkacem Saad Allah Alger 2"]
[null,"Université_Abou_Elkacem_Saad_Allah_Alger_2","Psychologie de la santé, prévention et qualité de vie.  ","Université Abou Elkacem Saad Allah Alger 2"]
[null,"Université_Abou_Elkacem_Saad_Allah_Alger_2","psychologie sociale et les fléaux sociaux","Université Abou Elkacem Saad Allah Alger 2"]
[null,"Université_Aboubeker_Belkaid_de_Tlemcen","Analyses Statistiques En Sciences Humaines Et Réalisation D’Un Dictionnaire Unifiant Basé Sur Des Critères Scientifiques","Université Aboubeker Belkaid de Tlemcen"]
[null,"Université_Aboubeker_Belkaid_de_Tlemcen","Automatique","Université Aboubeker Belkaid de Tlemcen"]
[null,"Université_Aboubeker_Belkaid_de_Tlemcen","Catalyse Et Synthèse En Chimie Organique","Université Aboubeker Belkaid de Tlemcen"]
[null,"Université_Aboubeker_Belkaid_de_Tlemcen","Chimie Organique, Substances Naturelles Et Analyses","Université Aboubeker Belkaid de Tlemcen"]
[null,"Université_Aboubeker_Belkaid_de_Tlemcen","Droit Privé Fondamental","Université Aboubeker Belkaid de Tlemcen"]
[null,"Université_Aboubeker_Belkaid_de_Tlemcen","Eau Et Ouvrages Dans Leur Environnement","Université Aboubeker Belkaid de Tlemcen"]
[null,"Université_Aboubeker_Belkaid_de_Tlemcen","Ecologie Et Gestion Des Écosystèmes Naturels","Université Aboubeker Belkaid de Tlemcen"]
[null,"Université_Aboubeker_Belkaid_de_Tlemcen","Etudes Civilisationnelles Et Intellectuelles","Université Aboubeker Belkaid de Tlemcen"]
[null,"Université_Aboubeker_Belkaid_de_Tlemcen","Etudes Critiques Littéraires Et Leur Information Dans Le Maghreb Arabe Depuis Leur Institution Jusqu'À La Fin Du 20 Éme Siècle","Université Aboubeker Belkaid de Tlemcen"]
[null,"Université_Aboubeker_Belkaid_de_Tlemcen","Evaluation De L’Enseignement De La Langue Arabe Au Fondamental Et Au Lycée Sur La Base De L’Étude Du Cadre D’Enseignement Et Des Moyens D’Apprentissage","Université Aboubeker Belkaid de Tlemcen"]
[null,"Université_Aboubeker_Belkaid_de_Tlemcen","Génie Biomédical","Université Aboubeker Belkaid de Tlemcen"]
[null,"Université_Aboubeker_Belkaid_de_Tlemcen","Macromoléculaires","Université Aboubeker Belkaid de Tlemcen"]
[null,"Université_Aboubeker_Belkaid_de_Tlemcen","Physique Théorique","Université Aboubeker Belkaid de Tlemcen"]
[null,"Université_Aboubeker_Belkaid_de_Tlemcen","Produits Naturels « Laprona »","Université Aboubeker Belkaid de Tlemcen"]
[null,"Université_Aboubeker_Belkaid_de_Tlemcen","Systèmes Dynamiques Et Applications","Université Aboubeker Belkaid de Tlemcen"]
[null,"Université_Aboubeker_Belkaid_de_Tlemcen","Télécommunications","Université Aboubeker Belkaid de Tlemcen"]
[null,"Université_Aboubeker_Belkaid_de_Tlemcen","Tradition Et Formes D'Expression Populaire En Algérie","Université Aboubeker Belkaid de Tlemcen"]
[null,"Université_Aboubeker_Belkaid_de_Tlemcen","Traitement Automatique De La Langue Arabe","Université Aboubeker Belkaid de Tlemcen"]
[null,"Université_Aboubeker_Belkaid_de_Tlemcen","Valorisation Des Actions De L'Homme Pour La Protection De L'Environnement Et Application En Santé Publique","Université Aboubeker Belkaid de Tlemcen"]
[null,"Université_Aboubeker_Belkaid_de_Tlemcen","Anthropologie Des Religions Et Leur Comparaison : Étude Socio Anthropologique","Université Aboubeker Belkaid de Tlemcen"]
[null,"Université_Aboubeker_Belkaid_de_Tlemcen","Antibiotiques, Antifongiques, Physico-Chimie, Synthèse Et Activité Biologique","Université Aboubeker Belkaid de Tlemcen"]
[null,"Université_Aboubeker_Belkaid_de_Tlemcen","Arabisation Terminologique En Sciences Humaines Et Sociales","Université Aboubeker Belkaid de Tlemcen"]
[null,"Université_Aboubeker_Belkaid_de_Tlemcen","Evaluation De La Politique De Développement En Algérie","Université Aboubeker Belkaid de Tlemcen"]
[null,"Université_Aboubeker_Belkaid_de_Tlemcen","Management Des Entreprises Et Du Capital Social","Université Aboubeker Belkaid de Tlemcen"]
[null,"Université_Aboubeker_Belkaid_de_Tlemcen","Promotion Des Ressources Hydriques, Minières Pédologiques: Législation De L'Environnement Et Des Choix Technologiques","Université Aboubeker Belkaid de Tlemcen"]
[null,"Université_Aboubeker_Belkaid_de_Tlemcen","Références Philosophiques Et Artistiques De La Pensée Littéraire Et Critique En Algérie – Des Conquêtes Au Colonialisme Français","Université Aboubeker Belkaid de Tlemcen"]
[null,"Université_Aboubeker_Belkaid_de_Tlemcen","Risque Cardio-Vasculaire (Endocard)","Université Aboubeker Belkaid de Tlemcen"]
[null,"Université_Aboubeker_Belkaid_de_Tlemcen","Spectrochimie Et Pharmacologie Structurale","Université Aboubeker Belkaid de Tlemcen"]
[null,"Université_Aboubeker_Belkaid_de_Tlemcen","Cancerlab","Université Aboubeker Belkaid de Tlemcen"]
[null,"Université_Aboubeker_Belkaid_de_Tlemcen","Gestion Conservatoire De L'Eau Et Du Sol Et Des Forets Et Développement Durable Des Zones Montagneuses De La Région De Tlemcen","Université Aboubeker Belkaid de Tlemcen"]
[null,"Université_Aboubeker_Belkaid_de_Tlemcen","Unité De Recherche: Matériaux Et Énergies Renouvelables (En Remplacement Du Lr Matériaux Et Energies Renouvelables Agréé En 2000)","Université Aboubeker Belkaid de Tlemcen"]
[null,"Université_Aboubeker_Belkaid_de_Tlemcen","Toximed","Université Aboubeker Belkaid de Tlemcen"]
[null,"Université_Aboubeker_Belkaid_de_Tlemcen","Chimie Inorganique Et Environnement","Université Aboubeker Belkaid de Tlemcen"]
[null,"Université_Aboubeker_Belkaid_de_Tlemcen","Droit De L'Homme Et Liberté Fondamentale","Université Aboubeker Belkaid de Tlemcen"]
[null,"Université_Aboubeker_Belkaid_de_Tlemcen","Systèmes Et Technologies De L`Information Et De La Communication","Université Aboubeker Belkaid de Tlemcen"]
[null,"Université_Aboubeker_Belkaid_de_Tlemcen","Application Des Électrolytes Et De Poly Électrolytes Organiques","Université Aboubeker Belkaid de Tlemcen"]
[null,"Université_Aboubeker_Belkaid_de_Tlemcen","Microbiologie Appliqué À L'Agroalimentaire, Au Biomédical Et À L'Nvironnement (Lamaabe)","Université Aboubeker Belkaid de Tlemcen"]
[null,"Université_Aboubeker_Belkaid_de_Tlemcen","Chirurgie Expérimentale","Université Aboubeker Belkaid de Tlemcen"]
[null,"Université_Aboubeker_Belkaid_de_Tlemcen","Evaluation Et Management De Risques","Université Aboubeker Belkaid de Tlemcen"]
[null,"Université_Aboubeker_Belkaid_de_Tlemcen","Technologies De Séparation Et De Purification","Université Aboubeker Belkaid de Tlemcen"]
[null,"Université_Aboubeker_Belkaid_de_Tlemcen","Biologie Moléculaire Appliquée Et D’Immunologie","Université Aboubeker Belkaid de Tlemcen"]
[null,"Université_Aboubeker_Belkaid_de_Tlemcen","Dialogue Des Religions Et Des Civilisations Dans Le Bassin Méditerranéen","Université Aboubeker Belkaid de Tlemcen"]
[null,"Université_Aboubeker_Belkaid_de_Tlemcen","Dynamique Des Langues Et Discours En Méditerranée","Université Aboubeker Belkaid de Tlemcen"]
[null,"Université_Aboubeker_Belkaid_de_Tlemcen","Entreprise Industrielle Et Société En Algérie","Université Aboubeker Belkaid de Tlemcen"]
[null,"Université_Aboubeker_Belkaid_de_Tlemcen","Ingénierie Des Systèmes Mécaniques Et Matériaux","Université Aboubeker Belkaid de Tlemcen"]
[null,"Université_Aboubeker_Belkaid_de_Tlemcen","Monnaie Et Institutions Financières Dans Le Maghreb Arabe","Université Aboubeker Belkaid de Tlemcen"]
[null,"Université_Aboubeker_Belkaid_de_Tlemcen","Patrimoine Archeologique Et Sa Valorisation","Université Aboubeker Belkaid de Tlemcen"]
[null,"Université_Aboubeker_Belkaid_de_Tlemcen","Physiologie, Physiopathologie Et Biochimie De La Nutrition","Université Aboubeker Belkaid de Tlemcen"]
[null,"Université_Aboubeker_Belkaid_de_Tlemcen","Productique De Tlemcen","Université Aboubeker Belkaid de Tlemcen"]
[null,"Université_Aboubeker_Belkaid_de_Tlemcen","Recueil Et Authentification De La Poésie Populaire Algérienne De L'Époque Othomane Au 20Éme Siècle","Université Aboubeker Belkaid de Tlemcen"]
[null,"Université_Aboubeker_Belkaid_de_Tlemcen","Statistiques Et Modélisations Aléatoires","Université Aboubeker Belkaid de Tlemcen"]
[null,"Université_Aboubeker_Belkaid_de_Tlemcen","Substances Naturelles Et Bioactives Lasnabio","Université Aboubeker Belkaid de Tlemcen"]
[null,"Université_Aboubeker_Belkaid_de_Tlemcen","Thermodynamique Appliquée Et Modélisation Moléculaire","Université Aboubeker Belkaid de Tlemcen"]
[null,"Université_Aboubeker_Belkaid_de_Tlemcen","Chimie Analytique Et D’Electrochimie","Université Aboubeker Belkaid de Tlemcen"]
[null,"Université_Aboubeker_Belkaid_de_Tlemcen","Droit Comparé","Université Aboubeker Belkaid de Tlemcen"]
[null,"Université_Aboubeker_Belkaid_de_Tlemcen","Droit Maritime Et Transport","Université Aboubeker Belkaid de Tlemcen"]
[null,"Université_Aboubeker_Belkaid_de_Tlemcen","Economie Informelle, Institutions Et Developpement","Université Aboubeker Belkaid de Tlemcen"]
[null,"Université_Aboubeker_Belkaid_de_Tlemcen","Energétique Et Thermique Appliquée","Université Aboubeker Belkaid de Tlemcen"]
[null,"Université_Aboubeker_Belkaid_de_Tlemcen","English For Specific Purposes Teaching Laboratory","Université Aboubeker Belkaid de Tlemcen"]
[null,"Université_Aboubeker_Belkaid_de_Tlemcen","Etudes De Charia","Université Aboubeker Belkaid de Tlemcen"]
[null,"Université_Aboubeker_Belkaid_de_Tlemcen","Etudes Littéraires Et Linguistiques Andalouses","Université Aboubeker Belkaid de Tlemcen"]
[null,"Université_Aboubeker_Belkaid_de_Tlemcen","Groupe De Recherche En Economie Des Finances Publiques","Université Aboubeker Belkaid de Tlemcen"]
[null,"Université_Aboubeker_Belkaid_de_Tlemcen","Management Des Hommes Et Des Organisations","Université Aboubeker Belkaid de Tlemcen"]
[null,"Université_Aboubeker_Belkaid_de_Tlemcen","Modernisation De La Grammaire Arabe","Université Aboubeker Belkaid de Tlemcen"]
[null,"Université_Aboubeker_Belkaid_de_Tlemcen","Population Et Développement Durable En Algérie","Université Aboubeker Belkaid de Tlemcen"]
[null,"Université_Aboubeker_Belkaid_de_Tlemcen","Valorisation Des Ressources En Eau","Université Aboubeker Belkaid de Tlemcen"]
[null,"Université_Aboubeker_Belkaid_de_Tlemcen","Analyse Non Linèaire Et Mathimatiques Appliquèes","Université Aboubeker Belkaid de Tlemcen"]
[null,"Université_Aboubeker_Belkaid_de_Tlemcen","Gouvernance Publique Et Économie Sociale","Université Aboubeker Belkaid de Tlemcen"]
[null,"Université_Aboubeker_Belkaid_de_Tlemcen","Mécanique Computationnelle","Université Aboubeker Belkaid de Tlemcen"]
[null,"Université_Aboubeker_Belkaid_de_Tlemcen","Méditerranéen Des Etudes Juridiques","Université Aboubeker Belkaid de Tlemcen"]
[null,"Université_Aboubeker_Belkaid_de_Tlemcen","Phénoménologie Et Ses Applications","Université Aboubeker Belkaid de Tlemcen"]
[null,"Université_Aboubeker_Belkaid_de_Tlemcen","Diversité Des Langues, Expressions Littéraires Et Interactions Culturelles","Université Aboubeker Belkaid de Tlemcen"]
[null,"Université_Aboubeker_Belkaid_de_Tlemcen","Foeign Language Policy In Algeria And Teacher Professionalism","Université Aboubeker Belkaid de Tlemcen"]
[null,"Université_Aboubeker_Belkaid_de_Tlemcen","Recherche En Informatique","Université Aboubeker Belkaid de Tlemcen"]
[null,"Université_Aboubeker_Belkaid_de_Tlemcen","Anthropologie Congnitive","Université Aboubeker Belkaid de Tlemcen"]
[null,"Université_Aboubeker_Belkaid_de_Tlemcen","Arts et études culturelles ","Université Aboubeker Belkaid de Tlemcen"]
[null,"Université_Ahmed_Ben_Bella_Es_Senia_Oran_1","Biologie Buccale","Université Ahmed Ben Bella Es Senia Oran 1"]
[null,"Université_Ahmed_Ben_Bella_Es_Senia_Oran_1","Biologie De Micro-Organismes Et Biotechnologie","Université Ahmed Ben Bella Es Senia Oran 1"]
[null,"Université_Ahmed_Ben_Bella_Es_Senia_Oran_1","Chimie Des Matériaux","Université Ahmed Ben Bella Es Senia Oran 1"]
[null,"Université_Ahmed_Ben_Bella_Es_Senia_Oran_1","Chimie Des Polymères","Université Ahmed Ben Bella Es Senia Oran 1"]
[null,"Université_Ahmed_Ben_Bella_Es_Senia_Oran_1","Chimie Physique Macromoléculaire","Université Ahmed Ben Bella Es Senia Oran 1"]
[null,"Université_Ahmed_Ben_Bella_Es_Senia_Oran_1","Didactique de la Traduction et Multi-Linguisme","Université Ahmed Ben Bella Es Senia Oran 1"]
[null,"Université_Ahmed_Ben_Bella_Es_Senia_Oran_1","Etude Des Matériaux, Optoélectronique Et Polymères","Université Ahmed Ben Bella Es Senia Oran 1"]
[null,"Université_Ahmed_Ben_Bella_Es_Senia_Oran_1","Histoire De L’Algérie","Université Ahmed Ben Bella Es Senia Oran 1"]
[null,"Université_Ahmed_Ben_Bella_Es_Senia_Oran_1","Manuscrits De La Civilisation Islamique En Afrique Du Nord","Université Ahmed Ben Bella Es Senia Oran 1"]
[null,"Université_Ahmed_Ben_Bella_Es_Senia_Oran_1","Nutrition Clinique Et Métabolique","Université Ahmed Ben Bella Es Senia Oran 1"]
[null,"Université_Ahmed_Ben_Bella_Es_Senia_Oran_1","Pédagogie Et Développement En Didactique Des Sciences Médicales","Université Ahmed Ben Bella Es Senia Oran 1"]
[null,"Université_Ahmed_Ben_Bella_Es_Senia_Oran_1","Physiologie De La Nutrition Et Sécurité Alimentaire","Université Ahmed Ben Bella Es Senia Oran 1"]
[null,"Université_Ahmed_Ben_Bella_Es_Senia_Oran_1","Physique Des Couches Minces Et Matériaux Pour L'Électronique","Université Ahmed Ben Bella Es Senia Oran 1"]
[null,"Université_Ahmed_Ben_Bella_Es_Senia_Oran_1","Physique Théorique","Université Ahmed Ben Bella Es Senia Oran 1"]
[null,"Université_Ahmed_Ben_Bella_Es_Senia_Oran_1","Réseau De Surveillance Environnementale","Université Ahmed Ben Bella Es Senia Oran 1"]
[null,"Université_Ahmed_Ben_Bella_Es_Senia_Oran_1","Sources Et Biographies","Université Ahmed Ben Bella Es Senia Oran 1"]
[null,"Université_Ahmed_Ben_Bella_Es_Senia_Oran_1","Surveillance Du Cancer","Université Ahmed Ben Bella Es Senia Oran 1"]
[null,"Université_Ahmed_Ben_Bella_Es_Senia_Oran_1","Synthèse Organique Appliquée","Université Ahmed Ben Bella Es Senia Oran 1"]
[null,"Université_Ahmed_Ben_Bella_Es_Senia_Oran_1","Technologie Et Biomatériaux Dentaires","Université Ahmed Ben Bella Es Senia Oran 1"]
[null,"Université_Ahmed_Ben_Bella_Es_Senia_Oran_1","Biologie Du Développement Et De Différenciation","Université Ahmed Ben Bella Es Senia Oran 1"]
[null,"Université_Ahmed_Ben_Bella_Es_Senia_Oran_1","Environnement, Épidémiologie Et Santé De L'Enfant","Université Ahmed Ben Bella Es Senia Oran 1"]
[null,"Université_Ahmed_Ben_Bella_Es_Senia_Oran_1","Expérimentation D'Une Nouvelle Approche D'Évaluation Dans Les Services De La Santé","Université Ahmed Ben Bella Es Senia Oran 1"]
[null,"Université_Ahmed_Ben_Bella_Es_Senia_Oran_1","Microbiologie Appliquée","Université Ahmed Ben Bella Es Senia Oran 1"]
[null,"Université_Ahmed_Ben_Bella_Es_Senia_Oran_1","Sciences De La Matière Condensée","Université Ahmed Ben Bella Es Senia Oran 1"]
[null,"Université_Ahmed_Ben_Bella_Es_Senia_Oran_1","Discours Littéraire En Algérie","Université Ahmed Ben Bella Es Senia Oran 1"]
[null,"Université_Ahmed_Ben_Bella_Es_Senia_Oran_1","Langue Arabe Et La Communication","Université Ahmed Ben Bella Es Senia Oran 1"]
[null,"Université_Ahmed_Ben_Bella_Es_Senia_Oran_1","Sémiotique Et Analyse Du Discours","Université Ahmed Ben Bella Es Senia Oran 1"]
[null,"Université_Ahmed_Ben_Bella_Es_Senia_Oran_1","Systèmes D'Information En Santé","Université Ahmed Ben Bella Es Senia Oran 1"]
[null,"Université_Ahmed_Ben_Bella_Es_Senia_Oran_1","Santé Et Environnement","Université Ahmed Ben Bella Es Senia Oran 1"]
[null,"Université_Ahmed_Ben_Bella_Es_Senia_Oran_1","Biotechnologies Des Rhizobia Et Amélioration Des Plantes","Université Ahmed Ben Bella Es Senia Oran 1"]
[null,"Université_Ahmed_Ben_Bella_Es_Senia_Oran_1","Informatique D'Oran","Université Ahmed Ben Bella Es Senia Oran 1"]
[null,"Université_Ahmed_Ben_Bella_Es_Senia_Oran_1","Informatique Et Technologies De L'Information","Université Ahmed Ben Bella Es Senia Oran 1"]
[null,"Université_Ahmed_Ben_Bella_Es_Senia_Oran_1","Archivage Du Théâtre Algérien Et Elaboration D'Un Répertoire Et Dictionnaire Des Hommes De Théâtre En Algérie","Université Ahmed Ben Bella Es Senia Oran 1"]
[null,"Université_Ahmed_Ben_Bella_Es_Senia_Oran_1","Biotoxicologie Expérimentale De Bio Dépollution Et De Pyttoremédiation","Université Ahmed Ben Bella Es Senia Oran 1"]
[null,"Université_Ahmed_Ben_Bella_Es_Senia_Oran_1","Accidentologie Pédiatrique","Université Ahmed Ben Bella Es Senia Oran 1"]
[null,"Université_Ahmed_Ben_Bella_Es_Senia_Oran_1","Aquaculture Et Bioremédiation","Université Ahmed Ben Bella Es Senia Oran 1"]
[null,"Université_Ahmed_Ben_Bella_Es_Senia_Oran_1","Chimie Fine","Université Ahmed Ben Bella Es Senia Oran 1"]
[null,"Université_Ahmed_Ben_Bella_Es_Senia_Oran_1","Géométrie Et Analyse","Université Ahmed Ben Bella Es Senia Oran 1"]
[null,"Université_Ahmed_Ben_Bella_Es_Senia_Oran_1","Informatique Industrielle Et Réseaux","Université Ahmed Ben Bella Es Senia Oran 1"]
[null,"Université_Ahmed_Ben_Bella_Es_Senia_Oran_1","Analyse Et Conception De Modèles Médiatiques En Histoire, Économie, Sociologie, Politique","Université Ahmed Ben Bella Es Senia Oran 1"]
[null,"Université_Ahmed_Ben_Bella_Es_Senia_Oran_1","Analyse Mathematique Et Applications","Université Ahmed Ben Bella Es Senia Oran 1"]
[null,"Université_Ahmed_Ben_Bella_Es_Senia_Oran_1","Communication De Masse Et La Sémiologie Des Systèmes Visuels","Université Ahmed Ben Bella Es Senia Oran 1"]
[null,"Université_Ahmed_Ben_Bella_Es_Senia_Oran_1","Enseignement Et Recherche En Maladies Emergentes Et Ré Emergentes","Université Ahmed Ben Bella Es Senia Oran 1"]
[null,"Université_Ahmed_Ben_Bella_Es_Senia_Oran_1","Image De La Révolution Algérienne Dans La Littérature Arabe Et Universelle","Université Ahmed Ben Bella Es Senia Oran 1"]
[null,"Université_Ahmed_Ben_Bella_Es_Senia_Oran_1","Linguistique Et L’Analyse Du Discours","Université Ahmed Ben Bella Es Senia Oran 1"]
[null,"Université_Ahmed_Ben_Bella_Es_Senia_Oran_1","Mathématiques Et Ses Applications","Université Ahmed Ben Bella Es Senia Oran 1"]
[null,"Université_Ahmed_Ben_Bella_Es_Senia_Oran_1","Répertoire Et Archivage Des Films Révolutionnaires Dans Le Cinéma Algérien","Université Ahmed Ben Bella Es Senia Oran 1"]
[null,"Université_Ahmed_Ben_Bella_Es_Senia_Oran_1","Vih / Sida Et Maladies Associées","Université Ahmed Ben Bella Es Senia Oran 1"]
[null,"Université_Ahmed_Ben_Bella_Es_Senia_Oran_1","Architectures Parallèles,Embarquèes Et Calcul Intensif","Université Ahmed Ben Bella Es Senia Oran 1"]
[null,"Université_Ahmed_Ben_Bella_Es_Senia_Oran_1","Développement Pharmaceutique","Université Ahmed Ben Bella Es Senia Oran 1"]
[null,"Université_Ahmed_Ben_Bella_Es_Senia_Oran_1","Etudes Maghrébines, Les Élites Et La Construction De L’État National","Université Ahmed Ben Bella Es Senia Oran 1"]
[null,"Université_Ahmed_Ben_Bella_Es_Senia_Oran_1","Génétique Microbienne","Université Ahmed Ben Bella Es Senia Oran 1"]
[null,"Université_Ahmed_Ben_Bella_Es_Senia_Oran_1","La Sémantique Dans Les Niveaux Linguistique Dans Le Patrimoine Littéraire Algérien","Université Ahmed Ben Bella Es Senia Oran 1"]
[null,"Université_Ahmed_Ben_Bella_Es_Senia_Oran_1","Les Systèmes D'Information Et Des Archives En Algérie. Mutations Technologiques, Pratiques Professionnelles Et Normes Internationales","Université Ahmed Ben Bella Es Senia Oran 1"]
[null,"Université_Ahmed_Ben_Bella_Es_Senia_Oran_1","Odontologie Conservatrice Et Endodontie","Université Ahmed Ben Bella Es Senia Oran 1"]
[null,"Université_Ahmed_Ben_Bella_Es_Senia_Oran_1","Prise En Charge De La Douleur Chronique À L’Ouest Algérien","Université Ahmed Ben Bella Es Senia Oran 1"]
[null,"Université_Ahmed_Ben_Bella_Es_Senia_Oran_1","Surveillance Des Accidents Vasculaires Cérébraux","Université Ahmed Ben Bella Es Senia Oran 1"]
[null,"Université_Ahmed_Ben_Bella_Es_Senia_Oran_1","Dialectes et Traitement de la Parole","Université Ahmed Ben Bella Es Senia Oran 1"]
[null,"Université_Ahmed_Ben_Bella_Es_Senia_Oran_1","Études Des Sciences De L'Environnement Et Des Matériaux","Université Ahmed Ben Bella Es Senia Oran 1"]
[null,"Université_Ahmed_Ben_Bella_Es_Senia_Oran_1","Mathématiques Fondamentales Et Appliquées D'Oran","Université Ahmed Ben Bella Es Senia Oran 1"]
[null,"Université_Ahmed_Ben_Bella_Es_Senia_Oran_1","Surveillance Des Infections Liées Aux Soins À Oran","Université Ahmed Ben Bella Es Senia Oran 1"]
[null,"Université_Ahmed_Ben_Bella_Es_Senia_Oran_1","Etudes Coraniques et Finalités","Université Ahmed Ben Bella Es Senia Oran 1"]
[null,"Université_Ahmed_Ben_Bella_Es_Senia_Oran_1","Etudes Sur les Domaines d'Al Ijaz : Patrimoine Classique et Contemporain ","Université Ahmed Ben Bella Es Senia Oran 1"]
[null,"Université_Ahmed_Ben_Bella_Es_Senia_Oran_1","Génétique Médicale Appliquée à l'Ophtalmologie ","Université Ahmed Ben Bella Es Senia Oran 1"]
[null,"Université_Ahmed_Ben_Bella_Es_Senia_Oran_1","Littérature Populaire en Algérie -Collecte et Etude-","Université Ahmed Ben Bella Es Senia Oran 1"]
[null,"Université_Ahmed_Ben_Bella_Es_Senia_Oran_1","Techniques Innovantes en Médecine  ","Université Ahmed Ben Bella Es Senia Oran 1"]
[null,"Université_Ahmed_Ben_Bella_Es_Senia_Oran_1","Traduction et typologie des textes  ","Université Ahmed Ben Bella Es Senia Oran 1"]
[null,"Université_Ahmed_Draya_Adrar","Etudes Africaines Des Sciences Humaines Et Des Sciences Sociales","Université Ahmed Draya Adrar"]
[null,"Université_Ahmed_Draya_Adrar","Développement Durable Et Information","Université Ahmed Draya Adrar"]
[null,"Université_Ahmed_Draya_Adrar","Energie, Environnement Et Système D'Information","Université Ahmed Draya Adrar"]
[null,"Université_Ahmed_Draya_Adrar","Droit Et Société","Université Ahmed Draya Adrar"]
[null,"Université_Ahmed_Draya_Adrar","Integration Economique Algero-Africaine","Université Ahmed Draya Adrar"]
[null,"Université_Ahmed_Draya_Adrar","Manuscrits Informateur Algérien En Afrique.(Inventaire Et De Comptage, D'Indexation Et D'Enquête )","Université Ahmed Draya Adrar"]
[null,"Université_Ahmed_Draya_Adrar","EDUCATION  et  DEVELOPEMENT","Université Ahmed Draya Adrar"]
[null,"Université_Akli_Mohand_Oulhadj_de_Bouira","Etude Théorique Et Pratique Approfondie À L'Lmd À L'Université Algérienne En Vue De Créer Des Pôles Universitaires Pour Un Développement Intégré","Université Akli Mohand Oulhadj de Bouira"]
[null,"Université_Akli_Mohand_Oulhadj_de_Bouira","Gestion Et Valorisation Des Ressources Naturelles Et Assurance Qualité","Université Akli Mohand Oulhadj de Bouira"]
[null,"Université_Akli_Mohand_Oulhadj_de_Bouira","Matériaux Et Développement Durable","Université Akli Mohand Oulhadj de Bouira"]
[null,"Université_Akli_Mohand_Oulhadj_de_Bouira","Procédés Pour Matériaux, Énergie, Eau Et Environnement","Université Akli Mohand Oulhadj de Bouira"]
[null,"Université_Akli_Mohand_Oulhadj_de_Bouira","Sciences Modernes Des Activités Physiques Et Sportives","Université Akli Mohand Oulhadj de Bouira"]
[null,"Université_Akli_Mohand_Oulhadj_de_Bouira","Education , Travail Et Orientation","Université Akli Mohand Oulhadj de Bouira"]
[null,"Université_Akli_Mohand_Oulhadj_de_Bouira","Etudes Littéraires, Linguistiques Et Didactiques Amazighes","Université Akli Mohand Oulhadj de Bouira"]
[null,"Université_Akli_Mohand_Oulhadj_de_Bouira","Informatique, Mathématique Et Physique Pour L'Agriculture Et Les Forets","Université Akli Mohand Oulhadj de Bouira"]
[null,"Université_Akli_Mohand_Oulhadj_de_Bouira","Questions De Littérature Maghrébine","Université Akli Mohand Oulhadj de Bouira"]
[null,"Université_Akli_Mohand_Oulhadj_de_Bouira","Etat et le Crime Organisé: Approches des Droits Juridiques Humains aux Démontions Sociaux Economiques, le Blanchiment d'Argent (étude de cas)","Université Akli Mohand Oulhadj de Bouira"]
[null,"Université_Akli_Mohand_Oulhadj_de_Bouira","les PME dans le développement Local,cas wilaya de Bouira","Université Akli Mohand Oulhadj de Bouira"]
[null,"Université_Akli_Mohand_Oulhadj_de_Bouira","les politiques de développement et les études prospectives","Université Akli Mohand Oulhadj de Bouira"]
[null,"Université_Alger_3","Recherches Et Études Politiques","Université Alger 3"]
[null,"Université_Alger_3","Etudes En Relations Internationales","Université Alger 3"]
[null,"Université_Alger_3","Sciences Des Activités Physiques","Université Alger 3"]
[null,"Université_Alger_3","Etude Et Analyse Des Politiques Publiques En Algérie","Université Alger 3"]
[null,"Université_Alger_3","Langues, Communication Et Nouvelles Technologies","Université Alger 3"]
[null,"Université_Alger_3","Management Du Changement Dans L'Entreprise Algérienne","Université Alger 3"]
[null,"Université_Alger_3","Mondialisation Et Politique Économique","Université Alger 3"]
[null,"Université_Alger_3","Sciences Du Sport Et De L'Entrainement De Haut Niveau","Université Alger 3"]
[null,"Université_Alger_3","Sciences Et Pratiques Des Activités Physiques Sportives Et Artistiques","Université Alger 3"]
[null,"Université_Alger_3","Industries Traditionnelles","Université Alger 3"]
[null,"Université_Alger_3","Les Économies Et Le Recherche Pour Le Développement: (Politiques Et Stratégies )","Université Alger 3"]
[null,"Université_Alger_3","Usage Réception Produit Médiatique Et Culturel En Algérie","Université Alger 3"]
[null,"Université_Alger_3","Droits De L'Homme Dans Les Systèmes De Comparaison À La Lumière Des Changements Internationaux Actuels","Université Alger 3"]
[null,"Université_Alger_3","Science de la performance motrice et des interventions pédagogiques","Université Alger 3"]
[null,"Université_Badji_Mokhtar_de_Annaba","Biologie Animale Appliquée","Université Badji Mokhtar de Annaba"]
[null,"Université_Badji_Mokhtar_de_Annaba","Biologie Végétale Et Environnement","Université Badji Mokhtar de Annaba"]
[null,"Université_Badji_Mokhtar_de_Annaba","Biotechnologie Et Développement De La Santé","Université Badji Mokhtar de Annaba"]
[null,"Université_Badji_Mokhtar_de_Annaba","Chimie Organique Appliquée","Université Badji Mokhtar de Annaba"]
[null,"Université_Badji_Mokhtar_de_Annaba","Droit, Urbanisme Et Environnement","Université Badji Mokhtar de Annaba"]
[null,"Université_Badji_Mokhtar_de_Annaba","Etude Des Surfaces Et Interfaces De La Matière","Université Badji Mokhtar de Annaba"]
[null,"Université_Badji_Mokhtar_de_Annaba","Etude Et Recherche Sur Les États Condensés","Université Badji Mokhtar de Annaba"]
[null,"Université_Badji_Mokhtar_de_Annaba","Génie Civil","Université Badji Mokhtar de Annaba"]
[null,"Université_Badji_Mokhtar_de_Annaba","Génie De L'Environnement","Université Badji Mokhtar de Annaba"]
[null,"Université_Badji_Mokhtar_de_Annaba","Informatique","Université Badji Mokhtar de Annaba"]
[null,"Université_Badji_Mokhtar_de_Annaba","Interdisciplinaire Entreprenariat","Université Badji Mokhtar de Annaba"]
[null,"Université_Badji_Mokhtar_de_Annaba","Linguistique Et Langue Arabe","Université Badji Mokhtar de Annaba"]
[null,"Université_Badji_Mokhtar_de_Annaba","Littérature Générale Et Comparée","Université Badji Mokhtar de Annaba"]
[null,"Université_Badji_Mokhtar_de_Annaba","Magnétisme Et Spectroscopie Des Solides","Université Badji Mokhtar de Annaba"]
[null,"Université_Badji_Mokhtar_de_Annaba","Management Des Organisations","Université Badji Mokhtar de Annaba"]
[null,"Université_Badji_Mokhtar_de_Annaba","Matériaux Avancés","Université Badji Mokhtar de Annaba"]
[null,"Université_Badji_Mokhtar_de_Annaba","Mathématiques Appliquées","Université Badji Mokhtar de Annaba"]
[null,"Université_Badji_Mokhtar_de_Annaba","Métallurgie Et Génie Des Matériaux","Université Badji Mokhtar de Annaba"]
[null,"Université_Badji_Mokhtar_de_Annaba","Physique Des Rayonnements","Université Badji Mokhtar de Annaba"]
[null,"Université_Badji_Mokhtar_de_Annaba","Ressources Naturelles Et Aménagement","Université Badji Mokhtar de Annaba"]
[null,"Université_Badji_Mokhtar_de_Annaba","Santé Bucco-Dentaire","Université Badji Mokhtar de Annaba"]
[null,"Université_Badji_Mokhtar_de_Annaba","Santé Et Environnement","Université Badji Mokhtar de Annaba"]
[null,"Université_Badji_Mokhtar_de_Annaba","Semi-Conducteurs","Université Badji Mokhtar de Annaba"]
[null,"Université_Badji_Mokhtar_de_Annaba","Traitement Des Eaux Et Valorisation Des Déchets Industriels","Université Badji Mokhtar de Annaba"]
[null,"Université_Badji_Mokhtar_de_Annaba","Automatique Et Signaux","Université Badji Mokhtar de Annaba"]
[null,"Université_Badji_Mokhtar_de_Annaba","Biochimie Et Microbiologie Appliquée","Université Badji Mokhtar de Annaba"]
[null,"Université_Badji_Mokhtar_de_Annaba","Ecobiologie Des Milieux Marins Et Littoraux","Université Badji Mokhtar de Annaba"]
[null,"Université_Badji_Mokhtar_de_Annaba","Mécanique Des Matériaux Et Maintenance Industrielle","Université Badji Mokhtar de Annaba"]
[null,"Université_Badji_Mokhtar_de_Annaba","Synthèse Biocatalyse Organique","Université Badji Mokhtar de Annaba"]
[null,"Université_Badji_Mokhtar_de_Annaba","Systèmes Electromécaniques","Université Badji Mokhtar de Annaba"]
[null,"Université_Badji_Mokhtar_de_Annaba","Architecture Et Urbanisme","Université Badji Mokhtar de Annaba"]
[null,"Université_Badji_Mokhtar_de_Annaba","Développement Et Les Grands Changements Dans La Société Cas : Annaba","Université Badji Mokhtar de Annaba"]
[null,"Université_Badji_Mokhtar_de_Annaba","Ecophysiologie Animale","Université Badji Mokhtar de Annaba"]
[null,"Université_Badji_Mokhtar_de_Annaba","Etudes Économiques","Université Badji Mokhtar de Annaba"]
[null,"Université_Badji_Mokhtar_de_Annaba","Langues Étrangères, Civilisation Universelle, Communication Et Réalité Algérienne","Université Badji Mokhtar de Annaba"]
[null,"Université_Badji_Mokhtar_de_Annaba","Toxicologie Cellulaire","Université Badji Mokhtar de Annaba"]
[null,"Université_Badji_Mokhtar_de_Annaba","Violence, Éducation Et Criminalité Dans La Société","Université Badji Mokhtar de Annaba"]
[null,"Université_Badji_Mokhtar_de_Annaba","Analyse Numérique, Optimisation Et Statistiques","Université Badji Mokhtar de Annaba"]
[null,"Université_Badji_Mokhtar_de_Annaba","Bioressources Marines","Université Badji Mokhtar de Annaba"]
[null,"Université_Badji_Mokhtar_de_Annaba","Ecologie Des Systèmes Terrestres Et Aquatiques","Université Badji Mokhtar de Annaba"]
[null,"Université_Badji_Mokhtar_de_Annaba","Fonderie","Université Badji Mokhtar de Annaba"]
[null,"Université_Badji_Mokhtar_de_Annaba","Sécurité Environnementale Et Alimentaire","Université Badji Mokhtar de Annaba"]
[null,"Université_Badji_Mokhtar_de_Annaba","Mécanique Industrielle","Université Badji Mokhtar de Annaba"]
[null,"Université_Badji_Mokhtar_de_Annaba","Métallurgie Physiqe Et Propriété Des Materiaux","Université Badji Mokhtar de Annaba"]
[null,"Université_Badji_Mokhtar_de_Annaba","Géologie","Université Badji Mokhtar de Annaba"]
[null,"Université_Badji_Mokhtar_de_Annaba","Chimie Des Matériaux Inorganiques","Université Badji Mokhtar de Annaba"]
[null,"Université_Badji_Mokhtar_de_Annaba","Langues Et Textes","Université Badji Mokhtar de Annaba"]
[null,"Université_Badji_Mokhtar_de_Annaba","Physique Des Lasers, De Spectroscopie Optique Et D'Optoelectronique","Université Badji Mokhtar de Annaba"]
[null,"Université_Badji_Mokhtar_de_Annaba","Elaboration Et Analyse Des Matériaux","Université Badji Mokhtar de Annaba"]
[null,"Université_Badji_Mokhtar_de_Annaba","Etudes Et Recherches En Instrumentation Et Communication","Université Badji Mokhtar de Annaba"]
[null,"Université_Badji_Mokhtar_de_Annaba","Gestion Électronique Des Documents","Université Badji Mokhtar de Annaba"]
[null,"Université_Badji_Mokhtar_de_Annaba","Amélioration Génétique Des Plantes","Université Badji Mokhtar de Annaba"]
[null,"Université_Badji_Mokhtar_de_Annaba","Neuro-Endocrinologie","Université Badji Mokhtar de Annaba"]
[null,"Université_Badji_Mokhtar_de_Annaba","Onco-Urologie Appliquée","Université Badji Mokhtar de Annaba"]
[null,"Université_Badji_Mokhtar_de_Annaba","Physique Du Solide","Université Badji Mokhtar de Annaba"]
[null,"Université_Badji_Mokhtar_de_Annaba","Poétique Et Analyse De Discours","Université Badji Mokhtar de Annaba"]
[null,"Université_Badji_Mokhtar_de_Annaba","Etude Juridique Maghrébine","Université Badji Mokhtar de Annaba"]
[null,"Université_Badji_Mokhtar_de_Annaba","Hydraulique Et Constructions Hydrauliques","Université Badji Mokhtar de Annaba"]
[null,"Université_Badji_Mokhtar_de_Annaba","Finance Internationale Et Etude Sur La Gouvernance Et L'Emergence (Lfiege)","Université Badji Mokhtar de Annaba"]
[null,"Université_Badji_Mokhtar_de_Annaba","Geodynamique Et Ressources Naturelles","Université Badji Mokhtar de Annaba"]
[null,"Université_Badji_Mokhtar_de_Annaba","Innovation Et Analyse Economique Et Financiere","Université Badji Mokhtar de Annaba"]
[null,"Université_Badji_Mokhtar_de_Annaba","Mathématiques, Dynamique & Modélisation","Université Badji Mokhtar de Annaba"]
[null,"Université_Badji_Mokhtar_de_Annaba","Réseaux Et Systèmes","Université Badji Mokhtar de Annaba"]
[null,"Université_Badji_Mokhtar_de_Annaba","Analyses Biogéochimiques Et Écologiques Des Environnements Aquatiques","Université Badji Mokhtar de Annaba"]
[null,"Université_Badji_Mokhtar_de_Annaba","Aquaculture Et Pathologies","Université Badji Mokhtar de Annaba"]
[null,"Université_Badji_Mokhtar_de_Annaba","Biochimie Et Toxicologie Environnementale","Université Badji Mokhtar de Annaba"]
[null,"Université_Badji_Mokhtar_de_Annaba","Biologie Moléculaire, Diagnostic Et Polymorphisme Des Antigènes","Université Badji Mokhtar de Annaba"]
[null,"Université_Badji_Mokhtar_de_Annaba","Catalyse Asymétrique Éco-Compatible","Université Badji Mokhtar de Annaba"]
[null,"Université_Badji_Mokhtar_de_Annaba","Développement Durable Et La Bonne Gouvernance Au Sud De La Méditerranée","Université Badji Mokhtar de Annaba"]
[null,"Université_Badji_Mokhtar_de_Annaba","Electrotechnique D'Annaba","Université Badji Mokhtar de Annaba"]
[null,"Université_Badji_Mokhtar_de_Annaba","Etudes Sociales Et Humaines Et Analyse Des Activités Physiques Et Sportives","Université Badji Mokhtar de Annaba"]
[null,"Université_Badji_Mokhtar_de_Annaba","Genie Electromecanique","Université Badji Mokhtar de Annaba"]
[null,"Université_Badji_Mokhtar_de_Annaba","Ingénierie Des Surfaces","Université Badji Mokhtar de Annaba"]
[null,"Université_Badji_Mokhtar_de_Annaba","Matériaux , Géomatériaux Et Environnement","Université Badji Mokhtar de Annaba"]
[null,"Université_Badji_Mokhtar_de_Annaba","Mise En Forme Des Matériaux Métalliques","Université Badji Mokhtar de Annaba"]
[null,"Université_Badji_Mokhtar_de_Annaba","Modélisation Mathématique Et Simulation Numérique","Université Badji Mokhtar de Annaba"]
[null,"Université_Badji_Mokhtar_de_Annaba","Probabilités Et Statistique","Université Badji Mokhtar de Annaba"]
[null,"Université_Badji_Mokhtar_de_Annaba","Ressources En Eau Et Developpement Durable","Université Badji Mokhtar de Annaba"]
[null,"Université_Badji_Mokhtar_de_Annaba","Risques Industriels / Cnd / Sureté De Fonctionnement","Université Badji Mokhtar de Annaba"]
[null,"Université_Badji_Mokhtar_de_Annaba","Sols Et Developpement Durable","Université Badji Mokhtar de Annaba"]
[null,"Université_Badji_Mokhtar_de_Annaba","Sols Et Hydraulique","Université Badji Mokhtar de Annaba"]
[null,"Université_Badji_Mokhtar_de_Annaba","Synthèse Organique, Modélisation Et Optimisation Des Procédés Chimiques","Université Badji Mokhtar de Annaba"]
[null,"Université_Badji_Mokhtar_de_Annaba","Systèmes Embarqués","Université Badji Mokhtar de Annaba"]
[null,"Université_Badji_Mokhtar_de_Annaba","Technologies Avancées En Production Mécanique","Université Badji Mokhtar de Annaba"]
[null,"Université_Badji_Mokhtar_de_Annaba","Traduction Et Didactique Des Langues (Tradil)","Université Badji Mokhtar de Annaba"]
[null,"Université_Badji_Mokhtar_de_Annaba","Analyses Urbaines Et Environnementales","Université Badji Mokhtar de Annaba"]
[null,"Université_Badji_Mokhtar_de_Annaba","Développement Et De Contrôle Des Préparations Pharmaceutiques Hospitalières","Université Badji Mokhtar de Annaba"]
[null,"Université_Badji_Mokhtar_de_Annaba","Ingénierie Des Systèmes Complexes","Université Badji Mokhtar de Annaba"]
[null,"Université_Badji_Mokhtar_de_Annaba","Intelligence Économique Et Développement Durable","Université Badji Mokhtar de Annaba"]
[null,"Université_Badji_Mokhtar_de_Annaba","Interdisciplinaire De Pédagogie Et De Didactique","Université Badji Mokhtar de Annaba"]
[null,"Université_Badji_Mokhtar_de_Annaba","Nanomatériaux- Corrosion Et Traitements De Surfaces","Université Badji Mokhtar de Annaba"]
[null,"Université_Badji_Mokhtar_de_Annaba","Neuro-Urologie","Université Badji Mokhtar de Annaba"]
[null,"Université_Badji_Mokhtar_de_Annaba","Ville, Patrimoine Architectural,Urbain Et Paysager","Université Badji Mokhtar de Annaba"]
[null,"Université_Badji_Mokhtar_de_Annaba","Valorisation Des Ressources Minières Et Environnement","Université Badji Mokhtar de Annaba"]
[null,"Université_Badji_Mokhtar_de_Annaba","Analyse du travail et I' etudes ergonomique","Université Badji Mokhtar de Annaba"]
[null,"Université_Badji_Mokhtar_de_Annaba","Biosurveillance Environnementale","Université Badji Mokhtar de Annaba"]
[null,"Université_Batna_2","Systèmes Propulsion - Induction Electromagnétiques","Université Batna 2"]
[null,"Université_Batna_2","Automatique Et Productique","Université Batna 2"]
[null,"Université_Batna_2","Electronique Avancée","Université Batna 2"]
[null,"Université_Batna_2","Electrotechnique De Batna","Université Batna 2"]
[null,"Université_Batna_2","Etudes Des Systèmes Énergétiques Industriels","Université Batna 2"]
[null,"Université_Batna_2","Productique","Université Batna 2"]
[null,"Université_Batna_2","Risques Naturels Et Aménagement Du Territoire","Université Batna 2"]
[null,"Université_Batna_2","Techniques Mathématiques En Vue D'Applications, Aspects Déterministes Et Stochastiques","Université Batna 2"]
[null,"Université_Batna_2","Hydraulique Appliquée","Université Batna 2"]
[null,"Université_Batna_2","Prévention Industrielle","Université Batna 2"]
[null,"Université_Batna_2","Biotechnologie Des Molécules Bioactives Et De La Physiopathologie Cellulaire","Université Batna 2"]
[null,"Université_Batna_2","Dimension Interculturelle Dans L'Enseignement Du Français Langue Etrangère","Université Batna 2"]
[null,"Université_Batna_2","Hépatites Virales","Université Batna 2"]
[null,"Université_Batna_2","Mécanique Des Structures Et Matériaux","Université Batna 2"]
[null,"Université_Batna_2","Applications Des Mathématiques À L’Informatique Et À L’Électronique","Université Batna 2"]
[null,"Université_Batna_2","Equations Aux Dérivées Partielles Et Applications","Université Batna 2"]
[null,"Université_Batna_2","Gestion Des Risques Liés Aux Infections Associées Aux Soins","Université Batna 2"]
[null,"Université_Batna_2","Sciences Technologiques Des Activités Sportives Educatives","Université Batna 2"]
[null,"Université_Batna_2","Strategies D'Enseignement De La Literatture: Une Notion En Mouvement","Université Batna 2"]
[null,"Université_Batna_2","Systèmes De Traction Électriques – Batna","Université Batna 2"]
[null,"Université_Batna_2","Systèmes Et Technologies De L’Information Et De La Communication","Université Batna 2"]
[null,"Université_Batna_2","Automatique Avancée Et D'Analyse Des Systèmes","Université Batna 2"]
[null,"Université_Batna_2","E- Learning And The Teaching Of Language And Culture. ","Université Batna 2"]
[null,"Université_Batna_2","Innovation En Construction Éco-Conception Et Génie Sismique","Université Batna 2"]
[null,"Université_Batna_2","Mobilisation Et Gestion Des Ressources En Eau","Université Batna 2"]
[null,"Université_Batna_2","Physio-Toxicologie, Pathologie Cellulaires Et Moléculaires-Biomolécules","Université Batna 2"]
[null,"Université_Benyoucef_Benkhedda_Alger","Chariaa","Université Benyoucef Benkhedda Alger"]
[null,"Université_Benyoucef_Benkhedda_Alger","Biochimie Génétique","Université Benyoucef Benkhedda Alger"]
[null,"Université_Benyoucef_Benkhedda_Alger","Chirurgie D'Exerece Hépatique Majeure","Université Benyoucef Benkhedda Alger"]
[null,"Université_Benyoucef_Benkhedda_Alger","Etude Du Polymorphisme Génétique","Université Benyoucef Benkhedda Alger"]
[null,"Université_Benyoucef_Benkhedda_Alger","Hélicobacters","Université Benyoucef Benkhedda Alger"]
[null,"Université_Benyoucef_Benkhedda_Alger","Laboratoire Algérien De Recherche Sur L'Hélicobacter","Université Benyoucef Benkhedda Alger"]
[null,"Université_Benyoucef_Benkhedda_Alger","Propriété Intellectuelle","Université Benyoucef Benkhedda Alger"]
[null,"Université_Benyoucef_Benkhedda_Alger","Oncologie Moléculaire Fondamentale Et Appliquée","Université Benyoucef Benkhedda Alger"]
[null,"Université_Benyoucef_Benkhedda_Alger","Maladies Inflammatoires Cryptogénetiques","Université Benyoucef Benkhedda Alger"]
[null,"Université_Benyoucef_Benkhedda_Alger","Biochimie Et Génétique Moléculaire","Université Benyoucef Benkhedda Alger"]
[null,"Université_Benyoucef_Benkhedda_Alger","Immunologie Plaquettaire","Université Benyoucef Benkhedda Alger"]
[null,"Université_Benyoucef_Benkhedda_Alger","Maladies Respiratoires Non Transmissibles","Université Benyoucef Benkhedda Alger"]
[null,"Université_Benyoucef_Benkhedda_Alger","Neuro-Sciences","Université Benyoucef Benkhedda Alger"]
[null,"Université_Benyoucef_Benkhedda_Alger","Biogenotoxicologie Et Santé Au Travail","Université Benyoucef Benkhedda Alger"]
[null,"Université_Benyoucef_Benkhedda_Alger","Doctrine Malitike Dans Le Monde Islamique, Son Histoire, Ses Savants , Effets Et Perspectives","Université Benyoucef Benkhedda Alger"]
[null,"Université_Benyoucef_Benkhedda_Alger","Endocrinologie Et Métabolisme","Université Benyoucef Benkhedda Alger"]
[null,"Université_Benyoucef_Benkhedda_Alger","Méthodes De Recherche En Sciences Islamiques , Leur Finalité Et Style D'Evaluation","Université Benyoucef Benkhedda Alger"]
[null,"Université_Benyoucef_Benkhedda_Alger","Questions Contemporaines: Dimensions Religieuses, Juridiques Et Intellectuelles","Université Benyoucef Benkhedda Alger"]
[null,"Université_Benyoucef_Benkhedda_Alger","Surveillance De La Tuberculose","Université Benyoucef Benkhedda Alger"]
[null,"Université_Benyoucef_Benkhedda_Alger","Cardio Oncologie Collaborative Research Group","Université Benyoucef Benkhedda Alger"]
[null,"Université_Benyoucef_Benkhedda_Alger","Diabetes And Pregnancy Collaborative Research Group","Université Benyoucef Benkhedda Alger"]
[null,"Université_Benyoucef_Benkhedda_Alger","Biopathologie Et Cancer","Université Benyoucef Benkhedda Alger"]
[null,"Université_Benyoucef_Benkhedda_Alger","Risque Cardiovasculaire En Néphrologie Et Transplantation","Université Benyoucef Benkhedda Alger"]
[null,"Université_Benyoucef_Benkhedda_Alger","Sénologie Interventionnelle Guidée Par Imagerie Médicale Dans Le Diagnostic Précoce Et Le Traitement Du Cancer Du Sein","Université Benyoucef Benkhedda Alger"]
[null,"Université_Benyoucef_Benkhedda_Alger","Simulation En Anesthesie Reanimation Et Médecine D’Urgence","Université Benyoucef Benkhedda Alger"]
[null,"Université_Benyoucef_Benkhedda_Alger","Sciences Criminelles","Université Benyoucef Benkhedda Alger"]
[null,"Université_Chadli_Bendjedid_El_Tarf","Santé Animale, Productions Agricoles, Environnement Et Sécurité Alimentaire","Université Chadli Bendjedid El Tarf"]
[null,"Université_Chadli_Bendjedid_El_Tarf","Biodiversité Et La Pollution Des Écosystèmes","Université Chadli Bendjedid El Tarf"]
[null,"Université_Chadli_Bendjedid_El_Tarf","Productions Animales, Biotechnologie Et Santé","Université Chadli Bendjedid El Tarf"]
[null,"Université_Chadli_Bendjedid_El_Tarf","Agriculture Et Fonctionnement Des Écosystèmes","Université Chadli Bendjedid El Tarf"]
[null,"Université_Chadli_Bendjedid_El_Tarf","Ecologie Fonctionnelle Et Évolutive ","Université Chadli Bendjedid El Tarf"]
[null,"Université_Chadli_Bendjedid_El_Tarf","Epidèmio-Surveillance, Santé, Production Et Reproduction Expérimentation Et Thérapie Cellulaire Des Animaux","Université Chadli Bendjedid El Tarf"]
[null,"Université_Chadli_Bendjedid_El_Tarf","Physico-Chimie Des Materiaux","Université Chadli Bendjedid El Tarf"]
[null,"Université_Chadli_Bendjedid_El_Tarf","Patrimoine et études linguistiques","Université Chadli Bendjedid El Tarf"]
[null,"Université_de_Abdelhamid_Mehri_de_Constantine_2","Etudes Historiques Et Philosophiques","Université de Abdelhamid Mehri de Constantine 2"]
[null,"Université_de_Abdelhamid_Mehri_de_Constantine_2","Grand Maghreb : Economie Et Société","Université de Abdelhamid Mehri de Constantine 2"]
[null,"Université_de_Abdelhamid_Mehri_de_Constantine_2","Informatique Repartie","Université de Abdelhamid Mehri de Constantine 2"]
[null,"Université_de_Abdelhamid_Mehri_de_Constantine_2","Pratiques Psychologiques Et Educatives","Université de Abdelhamid Mehri de Constantine 2"]
[null,"Université_de_Abdelhamid_Mehri_de_Constantine_2","Analyse Des Processus Sociaux Et Institutionnels","Université de Abdelhamid Mehri de Constantine 2"]
[null,"Université_de_Abdelhamid_Mehri_de_Constantine_2","Nouvelle Technologie De L'Information Et Le Développement National","Université de Abdelhamid Mehri de Constantine 2"]
[null,"Université_de_Abdelhamid_Mehri_de_Constantine_2","Sciences Sociales Et Problème De Société","Université de Abdelhamid Mehri de Constantine 2"]
[null,"Université_de_Abdelhamid_Mehri_de_Constantine_2","Economie Et Management","Université de Abdelhamid Mehri de Constantine 2"]
[null,"Université_de_Abdelhamid_Mehri_de_Constantine_2","Homme Et La Ville","Université de Abdelhamid Mehri de Constantine 2"]
[null,"Université_de_Abdelhamid_Mehri_de_Constantine_2","Violence Et Education À La Citoyenneté","Université de Abdelhamid Mehri de Constantine 2"]
[null,"Université_de_Abdelhamid_Mehri_de_Constantine_2","Etude Et De Recherche Socio-Historique Sur Les Mouvements Migratoires","Université de Abdelhamid Mehri de Constantine 2"]
[null,"Université_de_Abdelhamid_Mehri_de_Constantine_2","Etudes Et Recherche Sur Civilisation Du Maghreb Islamique","Université de Abdelhamid Mehri de Constantine 2"]
[null,"Université_de_Abdelhamid_Mehri_de_Constantine_2","Formation En Psychopathologie Et Psychothérapie","Université de Abdelhamid Mehri de Constantine 2"]
[null,"Université_de_Abdelhamid_Mehri_de_Constantine_2","Psychopathologie : Violence Corporelle & Traumatisme Psychique","Université de Abdelhamid Mehri de Constantine 2"]
[null,"Université_de_Abdelhamid_Mehri_de_Constantine_2","Etude Et Recherche Sur L'Information Et La Documentation Scientifique Et Technologique","Université de Abdelhamid Mehri de Constantine 2"]
[null,"Université_de_Abdelhamid_Mehri_de_Constantine_2","Vers Une Société Algérienne D'Information : Fondement, Objectif Et Reconstitution","Université de Abdelhamid Mehri de Constantine 2"]
[null,"Université_de_Abdelhamid_Mehri_de_Constantine_2","Modélisation Et Implémentation Des Systèmes Complexes","Université de Abdelhamid Mehri de Constantine 2"]
[null,"Université_de_Abdelhamid_Mehri_de_Constantine_2","Sociologie Économique Et Des Mouvements Sociaux","Université de Abdelhamid Mehri de Constantine 2"]
[null,"Université_de_Abdelhamid_Mehri_de_Constantine_2","Philosophie Des Sciences Humaines","Université de Abdelhamid Mehri de Constantine 2"]
[null,"Université_de_Abdelhamid_Mehri_de_Constantine_2","Histoire, Patrimoine Et Société","Université de Abdelhamid Mehri de Constantine 2"]
[null,"Université_de_Abdelhamid_Mehri_de_Constantine_2","Psychologie Du Travail & Management Des Organisations","Université de Abdelhamid Mehri de Constantine 2"]
[null,"Université_de_Abdelhamid_Mehri_de_Constantine_2","Etudes Et Recherches En Marketing","Université de Abdelhamid Mehri de Constantine 2"]
[null,"Université_de_Abdelhamid_Mehri_de_Constantine_2","Education, Formation et Développement","Université de Abdelhamid Mehri de Constantine 2"]
[null,"Université_de_Abdelhamid_Mehri_de_Constantine_2","Expertise et d’Analyse de la Performance Sportive","Université de Abdelhamid Mehri de Constantine 2"]
[null,"Université_de_Abdelhamid_Mehri_de_Constantine_2","Psychologie de l’Adolescent","Université de Abdelhamid Mehri de Constantine 2"]
[null,"Université_de_Constantine_3","Alimentation, Nutrition Et Santé","Université de Constantine 3"]
[null,"Université_de_Constantine_3","Biologie Et Génétique Moléculaire","Université de Constantine 3"]
[null,"Université_de_Constantine_3","Diabète Sucré","Université de Constantine 3"]
[null,"Université_de_Constantine_3","Sociologie De La Communication Recherche Et Traduction","Université de Constantine 3"]
[null,"Université_de_Constantine_3","Technique De L'Évaluation Médicale","Université de Constantine 3"]
[null,"Université_de_Constantine_3","Ingénierie Des Procédés De L'Environnement","Université de Constantine 3"]
[null,"Université_de_Constantine_3","Ville Et Patrimoine","Université de Constantine 3"]
[null,"Université_de_Constantine_3","Urbanisme Et Environnement","Université de Constantine 3"]
[null,"Université_de_Constantine_3","Architecture Bioclimatique Et Environnement","Université de Constantine 3"]
[null,"Université_de_Constantine_3","Maladies Métaboliques Études Cliniques Biologiques, Fonctionnelles Et Génétiques","Université de Constantine 3"]
[null,"Université_de_Constantine_3","Villes Et Santé","Université de Constantine 3"]
[null,"Université_de_Constantine_3","Architecture De L'Urbanisme : Espace Technique Et Société","Université de Constantine 3"]
[null,"Université_de_Constantine_3","Energie Et Environnement","Université de Constantine 3"]
[null,"Université_de_Constantine_3","Evaluation De La Perfeormance Architecturale Et Durabilité Environnementale","Université de Constantine 3"]
[null,"Université_de_Constantine_3","Médecine Préventive Des Affections Chroniques","Université de Constantine 3"]
[null,"Université_de_Constantine_3","Risques Professionnels Et Santé","Université de Constantine 3"]
[null,"Université_de_Constantine_3","Architecture, Ville, Métiers Et Formation","Université de Constantine 3"]
[null,"Université_de_Ghardaïa","Interdisciplinaire, Tourisme, Territoires, Sociétés","Université de Ghardaïa"]
[null,"Université_de_Ghardaïa","Histoire Et Civilisation Musulmane","Université de Ghardaïa"]
[null,"Université_de_Ghardaïa","Mathématiques Et Sciences Appliquées","Université de Ghardaïa"]
[null,"Université_de_Ghardaïa","Développement managerial pour promouvoir les entreprises économiques dans la wilaya de Ghardaia.","Université de Ghardaïa"]
[null,"Université_de_Ghardaïa","Patrimoine Culturel, Linguistique et Littérature dans les Régions du Sud Algérien","Université de Ghardaïa"]
[null,"Université_de_Khenchela","Structures, Propriétés Et Interactions Interatomiques","Université de Khenchela"]
[null,"Université_de_Khenchela","Analyse Du Discours Et Traduction","Université de Khenchela"]
[null,"Université_de_Khenchela","Incubateurs D'Entreprises Et Développements Local","Université de Khenchela"]
[null,"Université_de_Khenchela","Violence, Communication, Phénomène Religieux Et Impact Socio-Économique","Université de Khenchela"]
[null,"Université_de_Khenchela","Capteurs, Instrumentations Et Procédés","Université de Khenchela"]
[null,"Université_de_Khenchela","Ingénierie Des Connaissances Et Sécurité Informatique (Icosi)","Université de Khenchela"]
[null,"Université_de_Khenchela","Juridiques Politiques Et Charia","Université de Khenchela"]
[null,"Université_de_Khenchela","L’Interprétation Et Les Études Culturelles Comparées","Université de Khenchela"]
[null,"Université_de_Khenchela","Ingénierie et Sciences  des Matériaux  Avancés","Université de Khenchela"]
[null,"Centre_Universitaire_de_Tamanrasset","Héritage Scientifique Et Culturel De La Région De Tamanrasset","Centre Universitaire de Tamanrasset"]
[null,"Centre_Universitaire_de_Tamanrasset","Sciences Et Environnement : Bioressources, Gèochimie- Physique, Législation Et Dèveloppement Socio-Économique","Centre Universitaire de Tamanrasset"]
[null,"Université_des_Sciences_et_de_la_Technologie_Houari_Boumediène_USTHB","Algèbre Et Théorie Des Nombres","Université des Sciences et de la Technologie Houari Boumediène USTHB"]
[null,"Université_des_Sciences_et_de_la_Technologie_Houari_Boumediène_USTHB","Analyse Mathématique Et Numérique Des Équations Aux Dérivées Partielles","Université des Sciences et de la Technologie Houari Boumediène USTHB"]
[null,"Université_des_Sciences_et_de_la_Technologie_Houari_Boumediène_USTHB","Analyse Organique Fonctionnelle","Université des Sciences et de la Technologie Houari Boumediène USTHB"]
[null,"Université_des_Sciences_et_de_la_Technologie_Houari_Boumediène_USTHB","Bâti Dans L'Environnement","Université des Sciences et de la Technologie Houari Boumediène USTHB"]
[null,"Université_des_Sciences_et_de_la_Technologie_Houari_Boumediène_USTHB","Biologie Cellulaire Et Moléculaire","Université des Sciences et de la Technologie Houari Boumediène USTHB"]
[null,"Université_des_Sciences_et_de_la_Technologie_Houari_Boumediène_USTHB","Biologie Et Physiologie Des Organismes","Université des Sciences et de la Technologie Houari Boumediène USTHB"]
[null,"Université_des_Sciences_et_de_la_Technologie_Houari_Boumediène_USTHB","Chimie Du Gaz Naturel","Université des Sciences et de la Technologie Houari Boumediène USTHB"]
[null,"Université_des_Sciences_et_de_la_Technologie_Houari_Boumediène_USTHB","Chimie Organique Appliquée","Université des Sciences et de la Technologie Houari Boumediène USTHB"]
[null,"Université_des_Sciences_et_de_la_Technologie_Houari_Boumediène_USTHB","Chromatographie","Université des Sciences et de la Technologie Houari Boumediène USTHB"]
[null,"Université_des_Sciences_et_de_la_Technologie_Houari_Boumediène_USTHB","Communication Parlée Et Traitement Des Signaux","Université des Sciences et de la Technologie Houari Boumediène USTHB"]
[null,"Université_des_Sciences_et_de_la_Technologie_Houari_Boumediène_USTHB","Cristallographie - Thermodynamique","Université des Sciences et de la Technologie Houari Boumediène USTHB"]
[null,"Université_des_Sciences_et_de_la_Technologie_Houari_Boumediène_USTHB","Electrochimie - Corrosion, Métallurgie Et Chimie Minérale","Université des Sciences et de la Technologie Houari Boumediène USTHB"]
[null,"Université_des_Sciences_et_de_la_Technologie_Houari_Boumediène_USTHB","Electronique Quantique","Université des Sciences et de la Technologie Houari Boumediène USTHB"]
[null,"Université_des_Sciences_et_de_la_Technologie_Houari_Boumediène_USTHB","Environnement Géotechnique Et Hydraulique","Université des Sciences et de la Technologie Houari Boumediène USTHB"]
[null,"Université_des_Sciences_et_de_la_Technologie_Houari_Boumediène_USTHB","Etude Physico-Chimique Des Matériaux Et Application À L'Environnement","Université des Sciences et de la Technologie Houari Boumediène USTHB"]
[null,"Université_des_Sciences_et_de_la_Technologie_Houari_Boumediène_USTHB","Génie De La Réaction","Université des Sciences et de la Technologie Houari Boumediène USTHB"]
[null,"Université_des_Sciences_et_de_la_Technologie_Houari_Boumediène_USTHB","Géodynamique Des Bassins Sédimentaires Et Des Orogènes","Université des Sciences et de la Technologie Houari Boumediène USTHB"]
[null,"Université_des_Sciences_et_de_la_Technologie_Houari_Boumediène_USTHB","Géodynamique, Géologie De L'Ingénieur Et Planétologie","Université des Sciences et de la Technologie Houari Boumediène USTHB"]
[null,"Université_des_Sciences_et_de_la_Technologie_Houari_Boumediène_USTHB","Géophysique","Université des Sciences et de la Technologie Houari Boumediène USTHB"]
[null,"Université_des_Sciences_et_de_la_Technologie_Houari_Boumediène_USTHB","Hydrométallurgie Et Chimie Inorganique Moléculaire","Université des Sciences et de la Technologie Houari Boumediène USTHB"]
[null,"Université_des_Sciences_et_de_la_Technologie_Houari_Boumediène_USTHB","Instrumentation","Université des Sciences et de la Technologie Houari Boumediène USTHB"]
[null,"Université_des_Sciences_et_de_la_Technologie_Houari_Boumediène_USTHB","Intelligence Artificielle","Université des Sciences et de la Technologie Houari Boumediène USTHB"]
[null,"Université_des_Sciences_et_de_la_Technologie_Houari_Boumediène_USTHB","Mécanique Des Fluides Théorique Et Appliquée","Université des Sciences et de la Technologie Houari Boumediène USTHB"]
[null,"Université_des_Sciences_et_de_la_Technologie_Houari_Boumediène_USTHB","Modélisation Stochastique Et Traitement Des Données","Université des Sciences et de la Technologie Houari Boumediène USTHB"]
[null,"Université_des_Sciences_et_de_la_Technologie_Houari_Boumediène_USTHB","Phénomènes De Transfert","Université des Sciences et de la Technologie Houari Boumediène USTHB"]
[null,"Université_des_Sciences_et_de_la_Technologie_Houari_Boumediène_USTHB","Physique Des Matériaux","Université des Sciences et de la Technologie Houari Boumediène USTHB"]
[null,"Université_des_Sciences_et_de_la_Technologie_Houari_Boumediène_USTHB","Physique Théorique","Université des Sciences et de la Technologie Houari Boumediène USTHB"]
[null,"Université_des_Sciences_et_de_la_Technologie_Houari_Boumediène_USTHB","Robotique Parallélisme Et Électroénergétique","Université des Sciences et de la Technologie Houari Boumediène USTHB"]
[null,"Université_des_Sciences_et_de_la_Technologie_Houari_Boumediène_USTHB","Sciences Des Matériaux","Université des Sciences et de la Technologie Houari Boumediène USTHB"]
[null,"Université_des_Sciences_et_de_la_Technologie_Houari_Boumediène_USTHB","Sciences Du Génie Des Procédés Industriels","Université des Sciences et de la Technologie Houari Boumediène USTHB"]
[null,"Université_des_Sciences_et_de_la_Technologie_Houari_Boumediène_USTHB","Sciences Et Génie Des Matériaux","Université des Sciences et de la Technologie Houari Boumediène USTHB"]
[null,"Université_des_Sciences_et_de_la_Technologie_Houari_Boumediène_USTHB","Sciences Nucléaires Et Interaction - Rayonnement - Matière","Université des Sciences et de la Technologie Houari Boumediène USTHB"]
[null,"Université_des_Sciences_et_de_la_Technologie_Houari_Boumediène_USTHB","Stockage Et Valorisation Des Énergies Renouvelables","Université des Sciences et de la Technologie Houari Boumediène USTHB"]
[null,"Université_des_Sciences_et_de_la_Technologie_Houari_Boumediène_USTHB","Systèmes Dynamiques","Université des Sciences et de la Technologie Houari Boumediène USTHB"]
[null,"Université_des_Sciences_et_de_la_Technologie_Houari_Boumediène_USTHB","Systèmes Informatiques","Université des Sciences et de la Technologie Houari Boumediène USTHB"]
[null,"Université_des_Sciences_et_de_la_Technologie_Houari_Boumediène_USTHB","Traitement D'Images Et Rayonnement","Université des Sciences et de la Technologie Houari Boumediène USTHB"]
[null,"Université_des_Sciences_et_de_la_Technologie_Houari_Boumediène_USTHB","Transports Polyphasiques Et Milieux Poreux","Université des Sciences et de la Technologie Houari Boumediène USTHB"]
[null,"Université_des_Sciences_et_de_la_Technologie_Houari_Boumediène_USTHB","Zones Arides","Université des Sciences et de la Technologie Houari Boumediène USTHB"]
[null,"Université_des_Sciences_et_de_la_Technologie_Houari_Boumediène_USTHB","Mécanique Avancée","Université des Sciences et de la Technologie Houari Boumediène USTHB"]
[null,"Université_des_Sciences_et_de_la_Technologie_Houari_Boumediène_USTHB","Métallogénie Et Magmatisme De L'Algérie","Université des Sciences et de la Technologie Houari Boumediène USTHB"]
[null,"Université_des_Sciences_et_de_la_Technologie_Houari_Boumediène_USTHB","Matériaux Polymères","Université des Sciences et de la Technologie Houari Boumediène USTHB"]
[null,"Université_des_Sciences_et_de_la_Technologie_Houari_Boumediène_USTHB","Physico-Chimie Théorique Et Chimie Informatique","Université des Sciences et de la Technologie Houari Boumediène USTHB"]
[null,"Université_des_Sciences_et_de_la_Technologie_Houari_Boumediène_USTHB","Synthèse Macromoléculaire Et Thioorganique Macromoléculaire","Université des Sciences et de la Technologie Houari Boumediène USTHB"]
[null,"Université_des_Sciences_et_de_la_Technologie_Houari_Boumediène_USTHB","Thermodynamique Et Modélisation Moléculaire","Université des Sciences et de la Technologie Houari Boumediène USTHB"]
[null,"Université_des_Sciences_et_de_la_Technologie_Houari_Boumediène_USTHB","Thermodynamique Et Systèmes Energétiques","Université des Sciences et de la Technologie Houari Boumediène USTHB"]
[null,"Université_des_Sciences_et_de_la_Technologie_Houari_Boumediène_USTHB","Environnement, Eau, Géomécanique Et Ouvrages","Université des Sciences et de la Technologie Houari Boumediène USTHB"]
[null,"Université_des_Sciences_et_de_la_Technologie_Houari_Boumediène_USTHB","Géo-Environnement","Université des Sciences et de la Technologie Houari Boumediène USTHB"]
[null,"Université_des_Sciences_et_de_la_Technologie_Houari_Boumediène_USTHB","Systèmes Électriques Industriels","Université des Sciences et de la Technologie Houari Boumediène USTHB"]
[null,"Université_des_Sciences_et_de_la_Technologie_Houari_Boumediène_USTHB","Matériaux Catalytiques Et Catalyse En Chimie Organique","Université des Sciences et de la Technologie Houari Boumediène USTHB"]
[null,"Université_des_Sciences_et_de_la_Technologie_Houari_Boumediène_USTHB","Dynamique Et Biodiversité","Université des Sciences et de la Technologie Houari Boumediène USTHB"]
[null,"Université_des_Sciences_et_de_la_Technologie_Houari_Boumediène_USTHB","Ecologie Végétale Et Environnement","Université des Sciences et de la Technologie Houari Boumediène USTHB"]
[null,"Université_des_Sciences_et_de_la_Technologie_Houari_Boumediène_USTHB","Matériaux Semi-Conducteurs Et Oxydes Métalliques (Msom)","Université des Sciences et de la Technologie Houari Boumediène USTHB"]
[null,"Université_des_Sciences_et_de_la_Technologie_Houari_Boumediène_USTHB","Océanographie Biologique Et Environnement Marin","Université des Sciences et de la Technologie Houari Boumediène USTHB"]
[null,"Université_des_Sciences_et_de_la_Technologie_Houari_Boumediène_USTHB","Technologie Des Matériaux","Université des Sciences et de la Technologie Houari Boumediène USTHB"]
[null,"Université_des_Sciences_et_de_la_Technologie_Houari_Boumediène_USTHB","Aide Multicritère À La Décision Et Recherche Opérationnelle","Université des Sciences et de la Technologie Houari Boumediène USTHB"]
[null,"Université_des_Sciences_et_de_la_Technologie_Houari_Boumediène_USTHB","Arithmétique, Codage, Combinatoire Et Calcul Formel","Université des Sciences et de la Technologie Houari Boumediène USTHB"]
[null,"Université_des_Sciences_et_de_la_Technologie_Houari_Boumediène_USTHB","Biodiversité Et Environnement: Interactions, Génomes","Université des Sciences et de la Technologie Houari Boumediène USTHB"]
[null,"Université_des_Sciences_et_de_la_Technologie_Houari_Boumediène_USTHB","Chimie Théorique Computationnelle Et Photonique","Université des Sciences et de la Technologie Houari Boumediène USTHB"]
[null,"Université_des_Sciences_et_de_la_Technologie_Houari_Boumediène_USTHB","Informatique Fondamentale, Recherche Opérationnelle, Combinatoire Et Econométrie","Université des Sciences et de la Technologie Houari Boumediène USTHB"]
[null,"Université_des_Sciences_et_de_la_Technologie_Houari_Boumediène_USTHB","Recherche Opérationnelle Et Mathématiques De La Décision","Université des Sciences et de la Technologie Houari Boumediène USTHB"]
[null,"Université_des_Sciences_et_de_la_Technologie_Houari_Boumediène_USTHB","Études En Aménagement Et Urbanisme","Université des Sciences et de la Technologie Houari Boumediène USTHB"]
[null,"Université_des_Sciences_et_de_la_Technologie_Houari_Boumediène_USTHB","Geomorphologie Et Georisques","Université des Sciences et de la Technologie Houari Boumediène USTHB"]
[null,"Université_des_Sciences_et_de_la_Technologie_Houari_Boumediène_USTHB","Informatique Intelligente, Mathématiques Et Applications.","Université des Sciences et de la Technologie Houari Boumediène USTHB"]
[null,"Université_des_Sciences_et_de_la_Technologie_Houari_Boumediène_USTHB","Mécanique Énergétique Et Systèmes De Conversion","Université des Sciences et de la Technologie Houari Boumediène USTHB"]
[null,"Université_des_Sciences_et_de_la_Technologie_Houari_Boumediène_USTHB","Modélisation, Vérification Et Evaluation Des Performances Des Systèmes Complexes","Université des Sciences et de la Technologie Houari Boumediène USTHB"]
[null,"Université_des_Sciences_et_de_la_Technologie_Houari_Boumediène_USTHB","Opérationnelle,De Combinatoire,D'Informatiquethéorique Et De Méthodes Stochastiques","Université des Sciences et de la Technologie Houari Boumediène USTHB"]
[null,"Université_des_Sciences_et_de_la_Technologie_Houari_Boumediène_USTHB","Villes, Régions Et Gouvernance Territoriale","Université des Sciences et de la Technologie Houari Boumediène USTHB"]
[null,"Université_des_Sciences_et_de_la_Technologie_Houari_Boumediène_USTHB","Ingénierie Des Systèmes Intelligents Et Communicants","Université des Sciences et de la Technologie Houari Boumediène USTHB"]
[null,"Université_des_Sciences_et_de_la_Technologie_Mohamed_Boudiaf_Oran","Analyse Et Application Des Rayonnements","Université des Sciences et de la Technologie Mohamed Boudiaf Oran"]
[null,"Université_des_Sciences_et_de_la_Technologie_Mohamed_Boudiaf_Oran","Carburants Gazeux & Environnement","Université des Sciences et de la Technologie Mohamed Boudiaf Oran"]
[null,"Université_des_Sciences_et_de_la_Technologie_Mohamed_Boudiaf_Oran","Développement Des Entraînements Électriques","Université des Sciences et de la Technologie Mohamed Boudiaf Oran"]
[null,"Université_des_Sciences_et_de_la_Technologie_Mohamed_Boudiaf_Oran","Etude Physique Des Matériaux","Université des Sciences et de la Technologie Mohamed Boudiaf Oran"]
[null,"Université_des_Sciences_et_de_la_Technologie_Mohamed_Boudiaf_Oran","Matériaux Sols Et Thermique","Université des Sciences et de la Technologie Mohamed Boudiaf Oran"]
[null,"Université_des_Sciences_et_de_la_Technologie_Mohamed_Boudiaf_Oran","Mécanique Des Structures Et Stabilité Des Constructions","Université des Sciences et de la Technologie Mohamed Boudiaf Oran"]
[null,"Université_des_Sciences_et_de_la_Technologie_Mohamed_Boudiaf_Oran","Microscopie Électronique Et Sciences Des Matériaux","Université des Sciences et de la Technologie Mohamed Boudiaf Oran"]
[null,"Université_des_Sciences_et_de_la_Technologie_Mohamed_Boudiaf_Oran","Physico-Chimie Des Matériaux : Catalyse Et Environnement","Université des Sciences et de la Technologie Mohamed Boudiaf Oran"]
[null,"Université_des_Sciences_et_de_la_Technologie_Mohamed_Boudiaf_Oran","Physique Des Plasmas, Des Matériaux Conducteurs Et Leurs Applications","Université des Sciences et de la Technologie Mohamed Boudiaf Oran"]
[null,"Université_des_Sciences_et_de_la_Technologie_Mohamed_Boudiaf_Oran","Signaux Et Images","Université des Sciences et de la Technologie Mohamed Boudiaf Oran"]
[null,"Université_des_Sciences_et_de_la_Technologie_Mohamed_Boudiaf_Oran","Systèmes Intelligents (Laresi)","Université des Sciences et de la Technologie Mohamed Boudiaf Oran"]
[null,"Université_des_Sciences_et_de_la_Technologie_Mohamed_Boudiaf_Oran","Mécanique Appliquée","Université des Sciences et de la Technologie Mohamed Boudiaf Oran"]
[null,"Université_des_Sciences_et_de_la_Technologie_Mohamed_Boudiaf_Oran","Modélisation Et Optimisation Des Systèmes Industriels","Université des Sciences et de la Technologie Mohamed Boudiaf Oran"]
[null,"Université_des_Sciences_et_de_la_Technologie_Mohamed_Boudiaf_Oran","Rhéologie - Transport Et Traitement Des Fluides Complexes","Université des Sciences et de la Technologie Mohamed Boudiaf Oran"]
[null,"Université_des_Sciences_et_de_la_Technologie_Mohamed_Boudiaf_Oran","Génie Electrique D'Oran (Lgeo)","Université des Sciences et de la Technologie Mohamed Boudiaf Oran"]
[null,"Université_des_Sciences_et_de_la_Technologie_Mohamed_Boudiaf_Oran","Signal-Image-Parole (Simpa)","Université des Sciences et de la Technologie Mohamed Boudiaf Oran"]
[null,"Université_des_Sciences_et_de_la_Technologie_Mohamed_Boudiaf_Oran","Signaux, Systèmes Et Données","Université des Sciences et de la Technologie Mohamed Boudiaf Oran"]
[null,"Université_des_Sciences_et_de_la_Technologie_Mohamed_Boudiaf_Oran","Génétique Moléculaire Et Cellulaire","Université des Sciences et de la Technologie Mohamed Boudiaf Oran"]
[null,"Université_des_Sciences_et_de_la_Technologie_Mohamed_Boudiaf_Oran","Aérodynamique Navale","Université des Sciences et de la Technologie Mohamed Boudiaf Oran"]
[null,"Université_des_Sciences_et_de_la_Technologie_Mohamed_Boudiaf_Oran","Aéronautique Et Systèmes Propulsifs","Université des Sciences et de la Technologie Mohamed Boudiaf Oran"]
[null,"Université_des_Sciences_et_de_la_Technologie_Mohamed_Boudiaf_Oran","Chimie Et D'Électrochimie Des Complexes Métalliques","Université des Sciences et de la Technologie Mohamed Boudiaf Oran"]
[null,"Université_des_Sciences_et_de_la_Technologie_Mohamed_Boudiaf_Oran","Productions, Valorisations Végétales Et Microbiennes","Université des Sciences et de la Technologie Mohamed Boudiaf Oran"]
[null,"Université_des_Sciences_et_de_la_Technologie_Mohamed_Boudiaf_Oran","Sciences, Technologie Et Génie Des Procédés","Université des Sciences et de la Technologie Mohamed Boudiaf Oran"]
[null,"Université_des_Sciences_et_de_la_Technologie_Mohamed_Boudiaf_Oran","Structure De Composites Et Matériaux Innovants","Université des Sciences et de la Technologie Mohamed Boudiaf Oran"]
[null,"Université_des_Sciences_et_de_la_Technologie_Mohamed_Boudiaf_Oran","Electronique De Puissance Appliquée","Université des Sciences et de la Technologie Mohamed Boudiaf Oran"]
[null,"Université_des_Sciences_et_de_la_Technologie_Mohamed_Boudiaf_Oran","Ingénierie Des Procédés Et De L’Environnement","Université des Sciences et de la Technologie Mohamed Boudiaf Oran"]
[null,"Université_des_Sciences_et_de_la_Technologie_Mohamed_Boudiaf_Oran","Optimisation Des Réseaux Electriques","Université des Sciences et de la Technologie Mohamed Boudiaf Oran"]
[null,"Université_des_Sciences_et_de_la_Technologie_Mohamed_Boudiaf_Oran","Physique Des Matériaux Et Des Fluides","Université des Sciences et de la Technologie Mohamed Boudiaf Oran"]
[null,"Université_des_Sciences_et_de_la_Technologie_Mohamed_Boudiaf_Oran","Chimie Des Matériaux Inorganiques Et Applications","Université des Sciences et de la Technologie Mohamed Boudiaf Oran"]
[null,"Université_des_Sciences_et_de_la_Technologie_Mohamed_Boudiaf_Oran","Dèveloppement Durable De L'Energie Electrique","Université des Sciences et de la Technologie Mohamed Boudiaf Oran"]
[null,"Université_des_Sciences_et_de_la_Technologie_Mohamed_Boudiaf_Oran","Eco-Matériaux Fonctionnels Et Nanostructurés ","Université des Sciences et de la Technologie Mohamed Boudiaf Oran"]
[null,"Université_des_Sciences_et_de_la_Technologie_Mohamed_Boudiaf_Oran","Électronique De Puissance, D’Énergie Solaire Et D'Automatique","Université des Sciences et de la Technologie Mohamed Boudiaf Oran"]
[null,"Université_des_Sciences_et_de_la_Technologie_Mohamed_Boudiaf_Oran","Microsystèmes Et Systèmes Embarqués","Université des Sciences et de la Technologie Mohamed Boudiaf Oran"]
[null,"Université_des_Sciences_et_de_la_Technologie_Mohamed_Boudiaf_Oran","Synthèse Organique, Physico-Chimie, Biomolécules, Et Environnement.","Université des Sciences et de la Technologie Mohamed Boudiaf Oran"]
[null,"Université_des_Sciences_et_de_la_Technologie_Mohamed_Boudiaf_Oran","Automatisation, Vision et Contrôle Intelligent des Systèmes","Université des Sciences et de la Technologie Mohamed Boudiaf Oran"]
[null,"Université_des_Sciences_et_de_la_Technologie_Mohamed_Boudiaf_Oran","Codage et de la Sécurité de l'Information ","Université des Sciences et de la Technologie Mohamed Boudiaf Oran"]
[null,"Université_des_Sciences_et_de_la_Technologie_Mohamed_Boudiaf_Oran","L'activité physique et sportive de l'enfant et de l'adolescent","Université des Sciences et de la Technologie Mohamed Boudiaf Oran"]
[null,"Université_des_Sciences_et_de_la_Technologie_Mohamed_Boudiaf_Oran","Métropole  architecture urbanisme société ","Université des Sciences et de la Technologie Mohamed Boudiaf Oran"]
[null,"Université_des_Sciences_et_de_la_Technologie_Mohamed_Boudiaf_Oran","Sciences et ingénierie maritimes ","Université des Sciences et de la Technologie Mohamed Boudiaf Oran"]
[null,"Université_des_Sciences_Islamiques_Emir_Abdelkader_de_Constantine","Etudes Littéraires Et Humaines","Université des Sciences Islamiques Emir Abdelkader de Constantine"]
[null,"Université_des_Sciences_Islamiques_Emir_Abdelkader_de_Constantine","Etudes Prédicatives Et Communicatives","Université des Sciences Islamiques Emir Abdelkader de Constantine"]
[null,"Université_des_Sciences_Islamiques_Emir_Abdelkader_de_Constantine","Etudes Théologiques Et Comparaison Des Religions","Université des Sciences Islamiques Emir Abdelkader de Constantine"]
[null,"Université_des_Sciences_Islamiques_Emir_Abdelkader_de_Constantine","Etudes Théologiques","Université des Sciences Islamiques Emir Abdelkader de Constantine"]
[null,"Université_des_Sciences_Islamiques_Emir_Abdelkader_de_Constantine","Etudes Coraniques Et Sunna El Nabaouia","Université des Sciences Islamiques Emir Abdelkader de Constantine"]
[null,"Université_El_Djilali_Bounaama_dit_Si_Mhamed_de_Khemis_Miliana","Eau, Roche Et Plante","Université El Djilali Bounaama dit Si Mhamed de Khemis Miliana"]
[null,"Université_El_Djilali_Bounaama_dit_Si_Mhamed_de_Khemis_Miliana","Industrie, Évolution Organisationnelle Des Entreprise Et Innovation","Université El Djilali Bounaama dit Si Mhamed de Khemis Miliana"]
[null,"Université_El_Djilali_Bounaama_dit_Si_Mhamed_de_Khemis_Miliana","Energie Et Des Systèmes Intelligents","Université El Djilali Bounaama dit Si Mhamed de Khemis Miliana"]
[null,"Université_El_Djilali_Bounaama_dit_Si_Mhamed_de_Khemis_Miliana","Fluides Industriels Mesures Et Applications","Université El Djilali Bounaama dit Si Mhamed de Khemis Miliana"]
[null,"Université_El_Djilali_Bounaama_dit_Si_Mhamed_de_Khemis_Miliana","Economie Numérique En Algérie","Université El Djilali Bounaama dit Si Mhamed de Khemis Miliana"]
[null,"Université_El_Djilali_Bounaama_dit_Si_Mhamed_de_Khemis_Miliana","Organisation De L'État Civil","Université El Djilali Bounaama dit Si Mhamed de Khemis Miliana"]
[null,"Université_El_Djilali_Bounaama_dit_Si_Mhamed_de_Khemis_Miliana","Production Agricole Et Valorisation Durable De La Ressource Naturelle","Université El Djilali Bounaama dit Si Mhamed de Khemis Miliana"]
[null,"Université_El_Djilali_Bounaama_dit_Si_Mhamed_de_Khemis_Miliana","Valorisation Des Substances Naturelles","Université El Djilali Bounaama dit Si Mhamed de Khemis Miliana"]
[null,"Université_El_Djilali_Bounaama_dit_Si_Mhamed_de_Khemis_Miliana","Développement Local Et Entrepreneuriat Dans La Wilaya De Ain-Defla","Université El Djilali Bounaama dit Si Mhamed de Khemis Miliana"]
[null,"Université_El_Djilali_Bounaama_dit_Si_Mhamed_de_Khemis_Miliana","La securité nationale algérienne \"Enjeux défis \"","Université El Djilali Bounaama dit Si Mhamed de Khemis Miliana"]
[null,"Université_El_Djilali_Liabès_de_Sidi_Bel_Abbès","Biotoxicologie","Université El Djilali Liabès de Sidi Bel Abbès"]
[null,"Université_El_Djilali_Liabès_de_Sidi_Bel_Abbès","Chimie Organique Physique Et Macromoléculaire","Université El Djilali Liabès de Sidi Bel Abbès"]
[null,"Université_El_Djilali_Liabès_de_Sidi_Bel_Abbès","Critique, Études Littéraires Et Linguistique","Université El Djilali Liabès de Sidi Bel Abbès"]
[null,"Université_El_Djilali_Liabès_de_Sidi_Bel_Abbès","Eco-Développement Des Espaces","Université El Djilali Liabès de Sidi Bel Abbès"]
[null,"Université_El_Djilali_Liabès_de_Sidi_Bel_Abbès","Elaboration Et Caractérisation Des Matériaux","Université El Djilali Liabès de Sidi Bel Abbès"]
[null,"Université_El_Djilali_Liabès_de_Sidi_Bel_Abbès","Environnement Et Santé","Université El Djilali Liabès de Sidi Bel Abbès"]
[null,"Université_El_Djilali_Liabès_de_Sidi_Bel_Abbès","Intelligent Control & Electrical Power Systems","Université El Djilali Liabès de Sidi Bel Abbès"]
[null,"Université_El_Djilali_Liabès_de_Sidi_Bel_Abbès","Interaction Réseau Électrique Convertisseurs-Machines","Université El Djilali Liabès de Sidi Bel Abbès"]
[null,"Université_El_Djilali_Liabès_de_Sidi_Bel_Abbès","Matériaux Appliqués","Université El Djilali Liabès de Sidi Bel Abbès"]
[null,"Université_El_Djilali_Liabès_de_Sidi_Bel_Abbès","Matériaux Et Catalyse","Université El Djilali Liabès de Sidi Bel Abbès"]
[null,"Université_El_Djilali_Liabès_de_Sidi_Bel_Abbès","Matériaux Et Hydrologie","Université El Djilali Liabès de Sidi Bel Abbès"]
[null,"Université_El_Djilali_Liabès_de_Sidi_Bel_Abbès","Matériaux Et Systèmes Réactifs","Université El Djilali Liabès de Sidi Bel Abbès"]
[null,"Université_El_Djilali_Liabès_de_Sidi_Bel_Abbès","Mathématiques","Université El Djilali Liabès de Sidi Bel Abbès"]
[null,"Université_El_Djilali_Liabès_de_Sidi_Bel_Abbès","Micro-Électronique Appliquée","Université El Djilali Liabès de Sidi Bel Abbès"]
[null,"Université_El_Djilali_Liabès_de_Sidi_Bel_Abbès","Physique (Ou Simulation Et Modélisation En Sciences Des Matériaux)","Université El Djilali Liabès de Sidi Bel Abbès"]
[null,"Université_El_Djilali_Liabès_de_Sidi_Bel_Abbès","Synthèse De L'Information Environnementale","Université El Djilali Liabès de Sidi Bel Abbès"]
[null,"Université_El_Djilali_Liabès_de_Sidi_Bel_Abbès","Télécommunications Et Traitement Numérique Du Signal","Université El Djilali Liabès de Sidi Bel Abbès"]
[null,"Université_El_Djilali_Liabès_de_Sidi_Bel_Abbès","Evolutionary Engineering And Distributed Information Systems","Université El Djilali Liabès de Sidi Bel Abbès"]
[null,"Université_El_Djilali_Liabès_de_Sidi_Bel_Abbès","Services Publics Et Développement","Université El Djilali Liabès de Sidi Bel Abbès"]
[null,"Université_El_Djilali_Liabès_de_Sidi_Bel_Abbès","Algérie Moderne Et Contemporaine Histoire Et Société","Université El Djilali Liabès de Sidi Bel Abbès"]
[null,"Université_El_Djilali_Liabès_de_Sidi_Bel_Abbès","Etudes Orientales De Civilisation De L'Occident Musulman","Université El Djilali Liabès de Sidi Bel Abbès"]
[null,"Université_El_Djilali_Liabès_de_Sidi_Bel_Abbès","Mécanique Physique Des Matériaux","Université El Djilali Liabès de Sidi Bel Abbès"]
[null,"Université_El_Djilali_Liabès_de_Sidi_Bel_Abbès","Microscopie, Microanalyse De La Matière Et Spectroscopie Moléculaire","Université El Djilali Liabès de Sidi Bel Abbès"]
[null,"Université_El_Djilali_Liabès_de_Sidi_Bel_Abbès","Réseau De Communication, Architecture Et Multimédia","Université El Djilali Liabès de Sidi Bel Abbès"]
[null,"Université_El_Djilali_Liabès_de_Sidi_Bel_Abbès","Management Des Entreprises","Université El Djilali Liabès de Sidi Bel Abbès"]
[null,"Université_El_Djilali_Liabès_de_Sidi_Bel_Abbès","Biodiversité Végétale : Conversation Et Valorisation","Université El Djilali Liabès de Sidi Bel Abbès"]
[null,"Université_El_Djilali_Liabès_de_Sidi_Bel_Abbès","Matériaux Magnétiques","Université El Djilali Liabès de Sidi Bel Abbès"]
[null,"Université_El_Djilali_Liabès_de_Sidi_Bel_Abbès","Renouveau De La Recherche Dans La Didactique De La Langue Arabe","Université El Djilali Liabès de Sidi Bel Abbès"]
[null,"Université_El_Djilali_Liabès_de_Sidi_Bel_Abbès","Analyse Et Contrôle Des Equations Aux Dérivées Partielles","Université El Djilali Liabès de Sidi Bel Abbès"]
[null,"Université_El_Djilali_Liabès_de_Sidi_Bel_Abbès","Applications Of Plasma, Electrostatics And Electromagnetic Compatibility","Université El Djilali Liabès de Sidi Bel Abbès"]
[null,"Université_El_Djilali_Liabès_de_Sidi_Bel_Abbès","Biomathématiques","Université El Djilali Liabès de Sidi Bel Abbès"]
[null,"Université_El_Djilali_Liabès_de_Sidi_Bel_Abbès","Cancer Et Environnement","Université El Djilali Liabès de Sidi Bel Abbès"]
[null,"Université_El_Djilali_Liabès_de_Sidi_Bel_Abbès","Génie Civil Et Environnement","Université El Djilali Liabès de Sidi Bel Abbès"]
[null,"Université_El_Djilali_Liabès_de_Sidi_Bel_Abbès","Le Texte Théâtral Algérien Réassemblage Et Étude (Dans Les Dimensions Idéologiques Et Esthétiques)","Université El Djilali Liabès de Sidi Bel Abbès"]
[null,"Université_El_Djilali_Liabès_de_Sidi_Bel_Abbès","Matière Condensée Et Environnement","Université El Djilali Liabès de Sidi Bel Abbès"]
[null,"Université_El_Djilali_Liabès_de_Sidi_Bel_Abbès","Mécanique Des Structures Et Des Solides","Université El Djilali Liabès de Sidi Bel Abbès"]
[null,"Université_El_Djilali_Liabès_de_Sidi_Bel_Abbès","Pensée Islamique En Algérie","Université El Djilali Liabès de Sidi Bel Abbès"]
[null,"Université_El_Djilali_Liabès_de_Sidi_Bel_Abbès","Statistique Et Processus Stochastiques","Université El Djilali Liabès de Sidi Bel Abbès"]
[null,"Université_El_Djilali_Liabès_de_Sidi_Bel_Abbès","Management De L’Innovation Et Marketing","Université El Djilali Liabès de Sidi Bel Abbès"]
[null,"Université_El_Djilali_Liabès_de_Sidi_Bel_Abbès","Physico-Chimie Des Matériaux Avancés","Université El Djilali Liabès de Sidi Bel Abbès"]
[null,"Université_El_Djilali_Liabès_de_Sidi_Bel_Abbès","Structures Et Matériaux Avancés Dans Le Génie Civil Et Travaux Publics","Université El Djilali Liabès de Sidi Bel Abbès"]
[null,"Université_El_Djilali_Liabès_de_Sidi_Bel_Abbès","Etude Des Matériaux Et Instrumentations Optiques","Université El Djilali Liabès de Sidi Bel Abbès"]
[null,"Université_El_Djilali_Liabès_de_Sidi_Bel_Abbès","L’Activité Immobilière","Université El Djilali Liabès de Sidi Bel Abbès"]
[null,"Université_El_Djilali_Liabès_de_Sidi_Bel_Abbès","L’Algérie Et Le Bassin Occidental De La Méditerranée","Université El Djilali Liabès de Sidi Bel Abbès"]
[null,"Université_El_Djilali_Liabès_de_Sidi_Bel_Abbès","Matériaux Avancés Et Physico-Chimie Pour L'Environnement Et La Santé","Université El Djilali Liabès de Sidi Bel Abbès"]
[null,"Université_El_Djilali_Liabès_de_Sidi_Bel_Abbès","Microbiologie Moléculaire, Proteomics Et Santé","Université El Djilali Liabès de Sidi Bel Abbès"]
[null,"Université_El_Djilali_Liabès_de_Sidi_Bel_Abbès","Modélisation Et Simulation Multi Échelles","Université El Djilali Liabès de Sidi Bel Abbès"]
[null,"Université_El_Djilali_Liabès_de_Sidi_Bel_Abbès","Physique Computationnelle Des Matériaux","Université El Djilali Liabès de Sidi Bel Abbès"]
[null,"Université_El_Djilali_Liabès_de_Sidi_Bel_Abbès","Electromagnétisme photonique  et optronique","Université El Djilali Liabès de Sidi Bel Abbès"]
[null,"Université_El_Hadj_Lakhdar_de_Batna_1","Amélioration Des Productions Agricoles Et Protection Des Écosystèmes En Zones Arides","Université El Hadj Lakhdar de Batna 1"]
[null,"Université_El_Hadj_Lakhdar_de_Batna_1","Chimie Et Chimie De L'Environnement","Université El Hadj Lakhdar de Batna 1"]
[null,"Université_El_Hadj_Lakhdar_de_Batna_1","Economie D'Entreprise Et Gestion Appliquée","Université El Hadj Lakhdar de Batna 1"]
[null,"Université_El_Hadj_Lakhdar_de_Batna_1","Etudes Économiques Maghrébines","Université El Hadj Lakhdar de Batna 1"]
[null,"Université_El_Hadj_Lakhdar_de_Batna_1","Etudes Physico-Chimiques Des Matériaux","Université El Hadj Lakhdar de Batna 1"]
[null,"Université_El_Hadj_Lakhdar_de_Batna_1","Patrimoine Intellectuel Et Littérature En Algérie","Université El Hadj Lakhdar de Batna 1"]
[null,"Université_El_Hadj_Lakhdar_de_Batna_1","Etude Économique De L'Industrie Locale","Université El Hadj Lakhdar de Batna 1"]
[null,"Université_El_Hadj_Lakhdar_de_Batna_1","Poésie","Université El Hadj Lakhdar de Batna 1"]
[null,"Université_El_Hadj_Lakhdar_de_Batna_1","Contributions Des Maghrébins À L’Enrichissement Des Études Islamiques ","Université El Hadj Lakhdar de Batna 1"]
[null,"Université_El_Hadj_Lakhdar_de_Batna_1","Dialogue Des Civilisations Et Mondialisation ","Université El Hadj Lakhdar de Batna 1"]
[null,"Université_El_Hadj_Lakhdar_de_Batna_1","Encyclopédie Algérienne Facile ","Université El Hadj Lakhdar de Batna 1"]
[null,"Université_El_Hadj_Lakhdar_de_Batna_1","Mouvement National Algérien Et Révolution De Libération 1930 - 1962 ","Université El Hadj Lakhdar de Batna 1"]
[null,"Université_El_Hadj_Lakhdar_de_Batna_1","Physique Energétique Appliquée","Université El Hadj Lakhdar de Batna 1"]
[null,"Université_El_Hadj_Lakhdar_de_Batna_1","Sciences Islamiques En Algérie ","Université El Hadj Lakhdar de Batna 1"]
[null,"Université_El_Hadj_Lakhdar_de_Batna_1","Environnement, Santé Et Production Animale","Université El Hadj Lakhdar de Batna 1"]
[null,"Université_El_Hadj_Lakhdar_de_Batna_1","Physique Des Rayonnemenets Et Leurs Interactions Avec La Matière","Université El Hadj Lakhdar de Batna 1"]
[null,"Université_El_Hadj_Lakhdar_de_Batna_1","Développement Des Systèmes De Qualité Globale Dans Les Établissements De L`Enseignement Supérieur Et Secondaire","Université El Hadj Lakhdar de Batna 1"]
[null,"Université_El_Hadj_Lakhdar_de_Batna_1","Psychologie De L'Usage De La Route","Université El Hadj Lakhdar de Batna 1"]
[null,"Université_El_Hadj_Lakhdar_de_Batna_1","Chimie Des Matériaux Et Des Vivants: Activité Et Réactivité","Université El Hadj Lakhdar de Batna 1"]
[null,"Université_El_Hadj_Lakhdar_de_Batna_1","Management-Transport-Logistique","Université El Hadj Lakhdar de Batna 1"]
[null,"Université_El_Hadj_Lakhdar_de_Batna_1","Amélioration Des Techniques De Protection Phytosanitaires En Agro-Systèmes Montagneux: Cas Des Aurès","Université El Hadj Lakhdar de Batna 1"]
[null,"Université_El_Hadj_Lakhdar_de_Batna_1","Sciences Des Aliments","Université El Hadj Lakhdar de Batna 1"]
[null,"Université_El_Hadj_Lakhdar_de_Batna_1","Unité Et Diversité Des Implications De La Sécurité Dans La Région Méditerranéenne","Université El Hadj Lakhdar de Batna 1"]
[null,"Université_El_Hadj_Lakhdar_de_Batna_1","Architecture, Urbanisme Et Transport : Habitat, Paysage Et Mobilité Urbaine","Université El Hadj Lakhdar de Batna 1"]
[null,"Université_El_Hadj_Lakhdar_de_Batna_1","Civilizational Comprehensive Understabding Of Islam And Purposes Of Sharia","Université El Hadj Lakhdar de Batna 1"]
[null,"Université_El_Hadj_Lakhdar_de_Batna_1","Dynamiques Sociales Dans Les Aurès","Université El Hadj Lakhdar de Batna 1"]
[null,"Université_El_Hadj_Lakhdar_de_Batna_1","Economies D’Investissements Des Énergies Renouvelables Et Stratégies De Financement Des Zones Éloignées","Université El Hadj Lakhdar de Batna 1"]
[null,"Université_El_Hadj_Lakhdar_de_Batna_1","Enfant, Ville Et Environnement","Université El Hadj Lakhdar de Batna 1"]
[null,"Université_El_Hadj_Lakhdar_de_Batna_1","Etude Et Modélisation Des Phénomènes Architecturaux Et Urbains De L’Idée À L’Usage","Université El Hadj Lakhdar de Batna 1"]
[null,"Université_El_Hadj_Lakhdar_de_Batna_1","Sécurité Humaine : Actualité , Enjeux Et Perspective","Université El Hadj Lakhdar de Batna 1"]
[null,"Université_El_Hadj_Lakhdar_de_Batna_1","Société Et Famille","Université El Hadj Lakhdar de Batna 1"]
[null,"Université_El_Hadj_Lakhdar_de_Batna_1","Algérie : Histoire Culture Et Société","Université El Hadj Lakhdar de Batna 1"]
[null,"Université_El_Hadj_Lakhdar_de_Batna_1","Applications Psychologique Dans Le Milieu Carcéral","Université El Hadj Lakhdar de Batna 1"]
[null,"Université_El_Hadj_Lakhdar_de_Batna_1","Banque Des Tests Psychologiques, Scolaires Et Professionnels.","Université El Hadj Lakhdar de Batna 1"]
[null,"Université_El_Hadj_Lakhdar_de_Batna_1","Etude Socio-Économique De La Vie Quotidienne","Université El Hadj Lakhdar de Batna 1"]
[null,"Université_El_Hadj_Lakhdar_de_Batna_1","Imaginaire Oral Entre La Civilisation De L’Oralité D’Un Côté, Et Les Civilisations De L’Écriture Et De L’Image De L’Autre.","Université El Hadj Lakhdar de Batna 1"]
[null,"Université_Ferhat_Abbes_de_Sétif_1","Amélioration Et Développement De La Production Végétale Et Animale","Université Ferhat Abbes de Sétif 1"]
[null,"Université_Ferhat_Abbes_de_Sétif_1","Architecture Et Urbanisme (Architecture Méditerranéenne)","Université Ferhat Abbes de Sétif 1"]
[null,"Université_Ferhat_Abbes_de_Sétif_1","Biochimie Appliquée : Inflammation Et Activités Pharmaco-Biologiques Des Substances Naturelles","Université Ferhat Abbes de Sétif 1"]
[null,"Université_Ferhat_Abbes_de_Sétif_1","Dosage Analyse Et Caractérisation En Haute Résolution","Université Ferhat Abbes de Sétif 1"]
[null,"Université_Ferhat_Abbes_de_Sétif_1","Elaboration Des Nouveaux Matériaux Et Leur Caractérisation","Université Ferhat Abbes de Sétif 1"]
[null,"Université_Ferhat_Abbes_de_Sétif_1","Electrochimie Des Matériaux Moléculaires Et Complexes","Université Ferhat Abbes de Sétif 1"]
[null,"Université_Ferhat_Abbes_de_Sétif_1","Energétique Et Électrochimie Du Solide","Université Ferhat Abbes de Sétif 1"]
[null,"Université_Ferhat_Abbes_de_Sétif_1","Génie Des Procédés Chimiques","Université Ferhat Abbes de Sétif 1"]
[null,"Université_Ferhat_Abbes_de_Sétif_1","Instrumentation Scientifique","Université Ferhat Abbes de Sétif 1"]
[null,"Université_Ferhat_Abbes_de_Sétif_1","Mathématiques Appliquées","Université Ferhat Abbes de Sétif 1"]
[null,"Université_Ferhat_Abbes_de_Sétif_1","Mathématiques Fondamentales Et Numériques","Université Ferhat Abbes de Sétif 1"]
[null,"Université_Ferhat_Abbes_de_Sétif_1","Microbiologie Appliquée","Université Ferhat Abbes de Sétif 1"]
[null,"Université_Ferhat_Abbes_de_Sétif_1","Optoélectronique Et Composants","Université Ferhat Abbes de Sétif 1"]
[null,"Université_Ferhat_Abbes_de_Sétif_1","Physico-Chimie Des Hauts Polymères","Université Ferhat Abbes de Sétif 1"]
[null,"Université_Ferhat_Abbes_de_Sétif_1","Phytothérapie Appliquée Aux Maladies Chroniques","Université Ferhat Abbes de Sétif 1"]
[null,"Université_Ferhat_Abbes_de_Sétif_1","Préparations, Modifications Et Applications Des Matériaux Polymériques Multiphasiques","Université Ferhat Abbes de Sétif 1"]
[null,"Université_Ferhat_Abbes_de_Sétif_1","Projet Urbain, Ville Et Territoire","Université Ferhat Abbes de Sétif 1"]
[null,"Université_Ferhat_Abbes_de_Sétif_1","Santé Et Environnement Dans Les Hauts Plateaux Sétifiens","Université Ferhat Abbes de Sétif 1"]
[null,"Université_Ferhat_Abbes_de_Sétif_1","Systèmes Intelligents","Université Ferhat Abbes de Sétif 1"]
[null,"Université_Ferhat_Abbes_de_Sétif_1","Valorisation Des Ressources Biologiques Naturelles","Université Ferhat Abbes de Sétif 1"]
[null,"Université_Ferhat_Abbes_de_Sétif_1","Automatique","Université Ferhat Abbes de Sétif 1"]
[null,"Université_Ferhat_Abbes_de_Sétif_1","Croissance Et Caractérisation De Nouveaux Semi-Conducteurs","Université Ferhat Abbes de Sétif 1"]
[null,"Université_Ferhat_Abbes_de_Sétif_1","Etudes Des Surfaces Et Interfaces Des Matériaux Solides","Université Ferhat Abbes de Sétif 1"]
[null,"Université_Ferhat_Abbes_de_Sétif_1","Matériaux Non Métalliques","Université Ferhat Abbes de Sétif 1"]
[null,"Université_Ferhat_Abbes_de_Sétif_1","Mécanique De Précision Appliquée","Université Ferhat Abbes de Sétif 1"]
[null,"Université_Ferhat_Abbes_de_Sétif_1","Optique Appliquée","Université Ferhat Abbes de Sétif 1"]
[null,"Université_Ferhat_Abbes_de_Sétif_1","Physique Et Mécanique Des Matériaux Métalliques","Université Ferhat Abbes de Sétif 1"]
[null,"Université_Ferhat_Abbes_de_Sétif_1","Physique Quantique Et Systèmes Dynamiques","Université Ferhat Abbes de Sétif 1"]
[null,"Université_Ferhat_Abbes_de_Sétif_1","Qualité De L'Énergie Dans Les Réseaux Électriques","Université Ferhat Abbes de Sétif 1"]
[null,"Université_Ferhat_Abbes_de_Sétif_1","Système Photonique Et Optique Non Linéaire","Université Ferhat Abbes de Sétif 1"]
[null,"Université_Ferhat_Abbes_de_Sétif_1","Electrochimie, Ingénierie Moléculaire Et Catalyses Redox","Université Ferhat Abbes de Sétif 1"]
[null,"Université_Ferhat_Abbes_de_Sétif_1","Electronique De Puissance Et Commande Industrielle","Université Ferhat Abbes de Sétif 1"]
[null,"Université_Ferhat_Abbes_de_Sétif_1","Partenariat Et Investissement Dans Les Petites Et Moyennes Entreprises Euro-Maghreb – Etude Économique Et Juridique","Université Ferhat Abbes de Sétif 1"]
[null,"Université_Ferhat_Abbes_de_Sétif_1","Chimie Ingénierie Moléculaire Et Nanostructures","Université Ferhat Abbes de Sétif 1"]
[null,"Université_Ferhat_Abbes_de_Sétif_1","Electrochimie Et Matériaux","Université Ferhat Abbes de Sétif 1"]
[null,"Université_Ferhat_Abbes_de_Sétif_1","Evaluation Des Marchés Des Capitaux Algériens Dans La Perspective De Leur Développement Dans Le Cadre De La Globalisation","Université Ferhat Abbes de Sétif 1"]
[null,"Université_Ferhat_Abbes_de_Sétif_1","Habitat Et Environnement","Université Ferhat Abbes de Sétif 1"]
[null,"Université_Ferhat_Abbes_de_Sétif_1","Réseaux & Systèmes Distribués","Université Ferhat Abbes de Sétif 1"]
[null,"Université_Ferhat_Abbes_de_Sétif_1","Unité De Recherche : Matériaux Émergents","Université Ferhat Abbes de Sétif 1"]
[null,"Université_Ferhat_Abbes_de_Sétif_1","Maladies Cardiovasculaires Génétiques Et Nutritionnelles","Université Ferhat Abbes de Sétif 1"]
[null,"Université_Frères_Mentouri_de_Constantine_1","Aménagement Du Territoire","Université Frères Mentouri de Constantine 1"]
[null,"Université_Frères_Mentouri_de_Constantine_1","Biochimie Génétique Et Biotechnologie Végétale","Université Frères Mentouri de Constantine 1"]
[null,"Université_Frères_Mentouri_de_Constantine_1","Céramiques","Université Frères Mentouri de Constantine 1"]
[null,"Université_Frères_Mentouri_de_Constantine_1","Couche Mince Et Interfaces","Université Frères Mentouri de Constantine 1"]
[null,"Université_Frères_Mentouri_de_Constantine_1","Cristallographie","Université Frères Mentouri de Constantine 1"]
[null,"Université_Frères_Mentouri_de_Constantine_1","Développement Et Valorisation Des Ressources Phytogénétiques","Université Frères Mentouri de Constantine 1"]
[null,"Université_Frères_Mentouri_de_Constantine_1","Droit Et Dynamique Sociale","Université Frères Mentouri de Constantine 1"]
[null,"Université_Frères_Mentouri_de_Constantine_1","Electrotechnique De Constantine","Université Frères Mentouri de Constantine 1"]
[null,"Université_Frères_Mentouri_de_Constantine_1","Equations Différentielles","Université Frères Mentouri de Constantine 1"]
[null,"Université_Frères_Mentouri_de_Constantine_1","Génie Climatique De Constantine","Université Frères Mentouri de Constantine 1"]
[null,"Université_Frères_Mentouri_de_Constantine_1","Génie Microbiologie Et Applications","Université Frères Mentouri de Constantine 1"]
[null,"Université_Frères_Mentouri_de_Constantine_1","Matériaux Et Durabilité Des Constructions","Université Frères Mentouri de Constantine 1"]
[null,"Université_Frères_Mentouri_de_Constantine_1","Mécanique","Université Frères Mentouri de Constantine 1"]
[null,"Université_Frères_Mentouri_de_Constantine_1","Mécanique Des Sols Et Des Structures","Université Frères Mentouri de Constantine 1"]
[null,"Université_Frères_Mentouri_de_Constantine_1","Microstructure Et Défauts Dans Les Matériaux","Université Frères Mentouri de Constantine 1"]
[null,"Université_Frères_Mentouri_de_Constantine_1","Microsystèmes Et Instrumentation","Université Frères Mentouri de Constantine 1"]
[null,"Université_Frères_Mentouri_de_Constantine_1","Nutrition Et Technologie Alimentaire","Université Frères Mentouri de Constantine 1"]
[null,"Université_Frères_Mentouri_de_Constantine_1","Pathologie Animale, Développement Des Élevages Et Surveillance De La Chaîne Alimentaire Des Denrées Animales","Université Frères Mentouri de Constantine 1"]
[null,"Université_Frères_Mentouri_de_Constantine_1","Physique Mathematique Et De Physique Subatomique","Université Frères Mentouri de Constantine 1"]
[null,"Université_Frères_Mentouri_de_Constantine_1","Physique-Chimie Des Semi-Conducteurs","Université Frères Mentouri de Constantine 1"]
[null,"Université_Frères_Mentouri_de_Constantine_1","Pollution Et Traitement Des Eaux","Université Frères Mentouri de Constantine 1"]
[null,"Université_Frères_Mentouri_de_Constantine_1","Produits Naturels D'Origine Végitale Et De Synthèse Organique","Université Frères Mentouri de Constantine 1"]
[null,"Université_Frères_Mentouri_de_Constantine_1","Science Du Langage, Discours Et Didactique","Université Frères Mentouri de Constantine 1"]
[null,"Université_Frères_Mentouri_de_Constantine_1","Sciences Et Technologies De L'Enevironnement","Université Frères Mentouri de Constantine 1"]
[null,"Université_Frères_Mentouri_de_Constantine_1","Traitement Du Signal","Université Frères Mentouri de Constantine 1"]
[null,"Université_Frères_Mentouri_de_Constantine_1","Biologie Et Environnement","Université Frères Mentouri de Constantine 1"]
[null,"Université_Frères_Mentouri_de_Constantine_1","Electromagnetisme Et Télecomminication","Université Frères Mentouri de Constantine 1"]
[null,"Université_Frères_Mentouri_de_Constantine_1","Etude Et Recherche Sur Le Maghreb Et La Méditerranée","Université Frères Mentouri de Constantine 1"]
[null,"Université_Frères_Mentouri_de_Constantine_1","Etude Sur Le Patrimoine","Université Frères Mentouri de Constantine 1"]
[null,"Université_Frères_Mentouri_de_Constantine_1","Etudes Du Language","Université Frères Mentouri de Constantine 1"]
[null,"Université_Frères_Mentouri_de_Constantine_1","Hyperfréquence Et Semi-Conducteurs","Université Frères Mentouri de Constantine 1"]
[null,"Université_Frères_Mentouri_de_Constantine_1","Langues Et Traduction","Université Frères Mentouri de Constantine 1"]
[null,"Université_Frères_Mentouri_de_Constantine_1","Modilisation Mathématique Et Simulation","Université Frères Mentouri de Constantine 1"]
[null,"Université_Frères_Mentouri_de_Constantine_1","Narrative Arabe","Université Frères Mentouri de Constantine 1"]
[null,"Université_Frères_Mentouri_de_Constantine_1","Pathologie Des Animaux Et Gestion De La Reproduction","Université Frères Mentouri de Constantine 1"]
[null,"Université_Frères_Mentouri_de_Constantine_1","Pharmacologie Et Toxicologie","Université Frères Mentouri de Constantine 1"]
[null,"Université_Frères_Mentouri_de_Constantine_1","Physique Énergétique","Université Frères Mentouri de Constantine 1"]
[null,"Université_Frères_Mentouri_de_Constantine_1","Traduction","Université Frères Mentouri de Constantine 1"]
[null,"Université_Frères_Mentouri_de_Constantine_1","Etude Des Matériaux Electroniques Pour Applications Médicales","Université Frères Mentouri de Constantine 1"]
[null,"Université_Frères_Mentouri_de_Constantine_1","Geologie Et Environnement","Université Frères Mentouri de Constantine 1"]
[null,"Université_Frères_Mentouri_de_Constantine_1","Méthodologie Mathématiques Etudes Et Resolustion D'Équations","Université Frères Mentouri de Constantine 1"]
[null,"Université_Frères_Mentouri_de_Constantine_1","Obtention De Substances Thérapeutiques","Université Frères Mentouri de Constantine 1"]
[null,"Université_Frères_Mentouri_de_Constantine_1","Physique Théorique","Université Frères Mentouri de Constantine 1"]
[null,"Université_Frères_Mentouri_de_Constantine_1","Thermodynamique Et Traitement De Surfaces Des Matériaux","Université Frères Mentouri de Constantine 1"]
[null,"Université_Frères_Mentouri_de_Constantine_1","Automatique Et Robotique","Université Frères Mentouri de Constantine 1"]
[null,"Université_Frères_Mentouri_de_Constantine_1","Biosystematique Et Ecologie Des Arthropodes","Université Frères Mentouri de Constantine 1"]
[null,"Université_Frères_Mentouri_de_Constantine_1","Energétique Appliquée Et De Pollution","Université Frères Mentouri de Constantine 1"]
[null,"Université_Frères_Mentouri_de_Constantine_1","Mathematiques Apliquées Et Modelisation","Université Frères Mentouri de Constantine 1"]
[null,"Université_Frères_Mentouri_de_Constantine_1","Signaux Et Systèmes De Communication","Université Frères Mentouri de Constantine 1"]
[null,"Université_Frères_Mentouri_de_Constantine_1","Biologie Moléculaire Et Cellulaire","Université Frères Mentouri de Constantine 1"]
[null,"Université_Frères_Mentouri_de_Constantine_1","Mathématiques Et Sciences De La Décision","Université Frères Mentouri de Constantine 1"]
[null,"Université_Frères_Mentouri_de_Constantine_1","Réhabilitation Des Écosystèmes Et Développement Durable","Université Frères Mentouri de Constantine 1"]
[null,"Université_Frères_Mentouri_de_Constantine_1","Unité De Recherche: Chimie De L'Environnement Et Moléculaire Structurale (Remplace Le Lr 2000 \"Chimie Moléculaire Et Contrôle De L'Environnement Et Mesures Physico-Chimiques\")","Université Frères Mentouri de Constantine 1"]
[null,"Université_Frères_Mentouri_de_Constantine_1","Gestion De La Santé Et Productions Animales","Université Frères Mentouri de Constantine 1"]
[null,"Université_Frères_Mentouri_de_Constantine_1","Ingénierie Des Transports Et Environnement","Université Frères Mentouri de Constantine 1"]
[null,"Université_Frères_Mentouri_de_Constantine_1","Modelisation Des Dispositifs À Energie Renouvelable Et Nanometriques","Université Frères Mentouri de Constantine 1"]
[null,"Université_Frères_Mentouri_de_Constantine_1","Sciences Du Territoire, Ressources Naturelles Et Environnement","Université Frères Mentouri de Constantine 1"]
[null,"Université_Frères_Mentouri_de_Constantine_1","Techniques Innovantes De Préservation De L'Environnement","Université Frères Mentouri de Constantine 1"]
[null,"Université_Frères_Mentouri_de_Constantine_1","Chimie Des Matériaux Constantine","Université Frères Mentouri de Constantine 1"]
[null,"Université_Frères_Mentouri_de_Constantine_1","Encyclopédie De La Littérature Algérienne","Université Frères Mentouri de Constantine 1"]
[null,"Université_Frères_Mentouri_de_Constantine_1","Energies Renouvelables Et Développement Durable","Université Frères Mentouri de Constantine 1"]
[null,"Université_Frères_Mentouri_de_Constantine_1","Ethnobotany-Palynology And Ethnopharmacology- Toxicology.","Université Frères Mentouri de Constantine 1"]
[null,"Université_Frères_Mentouri_de_Constantine_1","Génie Electrique De Constantine","Université Frères Mentouri de Constantine 1"]
[null,"Université_Frères_Mentouri_de_Constantine_1","Mycologie, De Biotechnologies Et De L’Activité Microbienne","Université Frères Mentouri de Constantine 1"]
[null,"Université_Frères_Mentouri_de_Constantine_1","Physicochimie Analytique Et Cristallochimie De Matériaux Organométalliques Et Biomoléculaires","Université Frères Mentouri de Constantine 1"]
[null,"Université_Frères_Mentouri_de_Constantine_1","Synthèse De Molécules D’Intérêts Biologiques","Université Frères Mentouri de Constantine 1"]
[null,"Université_Frères_Mentouri_de_Constantine_1","Unité De Recherche : Sciences Des Matériaux Et Applications (Remplace Lr2000 Transformations De Phases)","Université Frères Mentouri de Constantine 1"]
[null,"Université_Frères_Mentouri_de_Constantine_1","Unité De Recherche : Valorisation Des Ressources Naturelles, Molécules Bioactives Et Analyses Physico-Chimiques Et Biologiques (Fusion: Lr2000 Valorisation Des Ressources Naturelles + Lr2002 Phytochimie Et Analyses)","Université Frères Mentouri de Constantine 1"]
[null,"Université_Frères_Mentouri_de_Constantine_1","Biotechnologie Et Qualité Des Aliments","Université Frères Mentouri de Constantine 1"]
[null,"Université_Frères_Mentouri_de_Constantine_1","Des contrats et droit des affaires   ","Université Frères Mentouri de Constantine 1"]
[null,"Université_Hassiba_Ben_Bouali_de_Chlef","Développement, Conditionnement, Stockage Et Transformation Des Céréales: Cas Du Blé","Université Hassiba Ben Bouali de Chlef"]
[null,"Université_Hassiba_Ben_Bouali_de_Chlef","Sciences Des Matériaux Et Environnement","Université Hassiba Ben Bouali de Chlef"]
[null,"Université_Hassiba_Ben_Bouali_de_Chlef","Eau Et Environnement","Université Hassiba Ben Bouali de Chlef"]
[null,"Université_Hassiba_Ben_Bouali_de_Chlef","Mondialisation Et Ses Retombées Sur Les Économies Des Pays Nord-Africains Et Études De La Possibilité De Construire Une Union Nord-Africaine","Université Hassiba Ben Bouali de Chlef"]
[null,"Université_Hassiba_Ben_Bouali_de_Chlef","Physique Théorique Et De Physique Des Matériaux","Université Hassiba Ben Bouali de Chlef"]
[null,"Université_Hassiba_Ben_Bouali_de_Chlef","Bioressources Naturelles Locales","Université Hassiba Ben Bouali de Chlef"]
[null,"Université_Hassiba_Ben_Bouali_de_Chlef","Systèmes Financiers Et Bancaires Et Les Politiques Macro-Économique Face Aux Fluctuations Internationales","Université Hassiba Ben Bouali de Chlef"]
[null,"Université_Hassiba_Ben_Bouali_de_Chlef","Théorie De La Langue Fonctionnelle","Université Hassiba Ben Bouali de Chlef"]
[null,"Université_Hassiba_Ben_Bouali_de_Chlef","Chimie Végétale – Eau – Énergie","Université Hassiba Ben Bouali de Chlef"]
[null,"Université_Hassiba_Ben_Bouali_de_Chlef","Génie Électrique Et Énergies Renouvelables","Université Hassiba Ben Bouali de Chlef"]
[null,"Université_Hassiba_Ben_Bouali_de_Chlef","Géomatériaux","Université Hassiba Ben Bouali de Chlef"]
[null,"Université_Hassiba_Ben_Bouali_de_Chlef","Mécanique Et Energétique","Université Hassiba Ben Bouali de Chlef"]
[null,"Université_Hassiba_Ben_Bouali_de_Chlef","Rhéologie Et Mécanique","Université Hassiba Ben Bouali de Chlef"]
[null,"Université_Hassiba_Ben_Bouali_de_Chlef","Développement De La Compétitivité Des Pme Algérienne Dans Les Industries Locales De Substitution","Université Hassiba Ben Bouali de Chlef"]
[null,"Université_Hassiba_Ben_Bouali_de_Chlef","Innovation, Performance Motrice","Université Hassiba Ben Bouali de Chlef"]
[null,"Université_Hassiba_Ben_Bouali_de_Chlef","Réforme Des Politiques Arabe Sous Contraintes De La Mondialisation","Université Hassiba Ben Bouali de Chlef"]
[null,"Université_Hassiba_Ben_Bouali_de_Chlef","Aps, Société, Éducation Et Santé","Université Hassiba Ben Bouali de Chlef"]
[null,"Université_Hassiba_Ben_Bouali_de_Chlef","Biologie Moléculaire, Génomique Et Bioinformatique","Université Hassiba Ben Bouali de Chlef"]
[null,"Université_Hassiba_Ben_Bouali_de_Chlef","Contrôle, Essai, Mesure Et Simulation Mécanique","Université Hassiba Ben Bouali de Chlef"]
[null,"Université_Hassiba_Ben_Bouali_de_Chlef","Didactique Des Langues Et Analyse Du Discours","Université Hassiba Ben Bouali de Chlef"]
[null,"Université_Hassiba_Ben_Bouali_de_Chlef","Droit Et Sécurité Humanitaire","Université Hassiba Ben Bouali de Chlef"]
[null,"Université_Hassiba_Ben_Bouali_de_Chlef","Droit Privé Comparé","Université Hassiba Ben Bouali de Chlef"]
[null,"Université_Hassiba_Ben_Bouali_de_Chlef","Mathématiques Et Applications","Université Hassiba Ben Bouali de Chlef"]
[null,"Université_Hassiba_Ben_Bouali_de_Chlef","Société, Problèmes Du Développement Local En Algérie","Université Hassiba Ben Bouali de Chlef"]
[null,"Université_Hassiba_Ben_Bouali_de_Chlef","Structures, Géotechnique Et Risques","Université Hassiba Ben Bouali de Chlef"]
[null,"Université_Hassiba_Ben_Bouali_de_Chlef","Technologie de l'information et de la communication dans l'enseignement des langues étrangères ","Université Hassiba Ben Bouali de Chlef"]
[null,"Université_Ibn_Khaldoun_de_Tiaret","Agro-Biotechnologie Et Nutrition En Zones Semi-Arides","Université Ibn Khaldoun de Tiaret"]
[null,"Université_Ibn_Khaldoun_de_Tiaret","Génie Physique","Université Ibn Khaldoun de Tiaret"]
[null,"Université_Ibn_Khaldoun_de_Tiaret","Synthèse Et Catalyse","Université Ibn Khaldoun de Tiaret"]
[null,"Université_Ibn_Khaldoun_de_Tiaret","Technologies Industrielles","Université Ibn Khaldoun de Tiaret"]
[null,"Université_Ibn_Khaldoun_de_Tiaret","Etude Grammaticale Et Langagiére Entre Tradition Et Modérnité En Algérie","Université Ibn Khaldoun de Tiaret"]
[null,"Université_Ibn_Khaldoun_de_Tiaret","Législation De Protection Du Système D'Environnement","Université Ibn Khaldoun de Tiaret"]
[null,"Université_Ibn_Khaldoun_de_Tiaret","Génie Électrique Et Des Plasmas","Université Ibn Khaldoun de Tiaret"]
[null,"Université_Ibn_Khaldoun_de_Tiaret","Hygiène Et De Pathologie Animale","Université Ibn Khaldoun de Tiaret"]
[null,"Université_Ibn_Khaldoun_de_Tiaret","Amélioration Et Valorisation Des Productions Animales Locales","Université Ibn Khaldoun de Tiaret"]
[null,"Université_Ibn_Khaldoun_de_Tiaret","Discours Argumentatif Ses Origines , Ses Références Et Ses Perspectives En Algérie","Université Ibn Khaldoun de Tiaret"]
[null,"Université_Ibn_Khaldoun_de_Tiaret","Génie Energétique Et Génie Informatique","Université Ibn Khaldoun de Tiaret"]
[null,"Université_Ibn_Khaldoun_de_Tiaret","Informatique Et Mathématiques","Université Ibn Khaldoun de Tiaret"]
[null,"Université_Ibn_Khaldoun_de_Tiaret","Reproduction Des Animaux De Le Ferme","Université Ibn Khaldoun de Tiaret"]
[null,"Université_Ibn_Khaldoun_de_Tiaret","Physiologie Végétale Appliquée Aux Cultures Hors Sol","Université Ibn Khaldoun de Tiaret"]
[null,"Université_Ibn_Khaldoun_de_Tiaret","Etudes historiques et archéologiques de l’Afrique du nord  ","Université Ibn Khaldoun de Tiaret"]
[null,"Université_Ibn_Khaldoun_de_Tiaret","Géomatique et développement durable","Université Ibn Khaldoun de Tiaret"]
[null,"Université_Kasdi_Merbah_de_Ouargla","Développement Des Énergies Nouvelles Et Renouvelables Dans Les Zones Arides Et Sahariennes","Université Kasdi Merbah de Ouargla"]
[null,"Université_Kasdi_Merbah_de_Ouargla","Protection Des Écosystèmes En Zones Arides Et Semi-Arides","Université Kasdi Merbah de Ouargla"]
[null,"Université_Kasdi_Merbah_de_Ouargla","Valorisation Et Promotion Des Ressources Sahariennes","Université Kasdi Merbah de Ouargla"]
[null,"Université_Kasdi_Merbah_de_Ouargla","Exploitation Et Valorisation Des Ressources Naturelles En Zones Arides","Université Kasdi Merbah de Ouargla"]
[null,"Université_Kasdi_Merbah_de_Ouargla","Bioressources Sahariennes Préservation Et Valorisation","Université Kasdi Merbah de Ouargla"]
[null,"Université_Kasdi_Merbah_de_Ouargla","Pratiques Psychologiques Éducatives Dans L'Enseignement","Université Kasdi Merbah de Ouargla"]
[null,"Université_Kasdi_Merbah_de_Ouargla","Role De L'Université Et Les Entreprises Économiques Dans Le Développement Locale Durable","Université Kasdi Merbah de Ouargla"]
[null,"Université_Kasdi_Merbah_de_Ouargla","Biogéochimie Des Milieux Désertiques","Université Kasdi Merbah de Ouargla"]
[null,"Université_Kasdi_Merbah_de_Ouargla","Critique Et Sa Terminologie","Université Kasdi Merbah de Ouargla"]
[null,"Université_Kasdi_Merbah_de_Ouargla","Economie Des Organisations Et L'Environnement Naturel Econature","Université Kasdi Merbah de Ouargla"]
[null,"Université_Kasdi_Merbah_de_Ouargla","Financement, Finance Des Marchés Et Finance D'Entreprise","Université Kasdi Merbah de Ouargla"]
[null,"Université_Kasdi_Merbah_de_Ouargla","Génie Des Procédés","Université Kasdi Merbah de Ouargla"]
[null,"Université_Kasdi_Merbah_de_Ouargla","Patrimoine Linguistique Et Littéraire Dans Le Sud-Est Algérien","Université Kasdi Merbah de Ouargla"]
[null,"Université_Kasdi_Merbah_de_Ouargla","Performance Des Entreprises Et Des Économies Dans Le Cadre De La Mondialisation","Université Kasdi Merbah de Ouargla"]
[null,"Université_Kasdi_Merbah_de_Ouargla","Transition Politico-Economique Et Social Dont Le Cas De L'Algérie","Université Kasdi Merbah de Ouargla"]
[null,"Université_Kasdi_Merbah_de_Ouargla","Géologie De Sahara","Université Kasdi Merbah de Ouargla"]
[null,"Université_Kasdi_Merbah_de_Ouargla","Mathématiques Appliqués","Université Kasdi Merbah de Ouargla"]
[null,"Université_Kasdi_Merbah_de_Ouargla","Psychologie Et Qualité De Vie","Université Kasdi Merbah de Ouargla"]
[null,"Université_Kasdi_Merbah_de_Ouargla","Rayonnement Et Plasmas, Physique De Surface","Université Kasdi Merbah de Ouargla"]
[null,"Université_Kasdi_Merbah_de_Ouargla","Transformation Des Construits Sociaux Et Son Impact Sur L'Identité Et L'Action Sociale Dans Les Sociétés En Transition","Université Kasdi Merbah de Ouargla"]
[null,"Université_Kasdi_Merbah_de_Ouargla","Dynamique, Interaction Et Reactivité Des Systèmes","Université Kasdi Merbah de Ouargla"]
[null,"Université_Kasdi_Merbah_de_Ouargla","Exigences Pour La Réhabilitation Et Le Développement Des Économies En Développement Dans L'Ouverture De L'Économie Mondial","Université Kasdi Merbah de Ouargla"]
[null,"Université_Kasdi_Merbah_de_Ouargla","Français Des Écrits Universitaires","Université Kasdi Merbah de Ouargla"]
[null,"Université_Kasdi_Merbah_de_Ouargla","Génie De L’Eau Et De L’Environnement En Milieu Saharien","Université Kasdi Merbah de Ouargla"]
[null,"Université_Kasdi_Merbah_de_Ouargla","Génie Electrique","Université Kasdi Merbah de Ouargla"]
[null,"Université_Kasdi_Merbah_de_Ouargla","Linguistique Textuelle Et L’Analyse De Discours","Université Kasdi Merbah de Ouargla"]
[null,"Université_Kasdi_Merbah_de_Ouargla","Applications Quantitatives En Sciences Economiques Et Financières","Université Kasdi Merbah de Ouargla"]
[null,"Université_Kasdi_Merbah_de_Ouargla","La Phœniciculture","Université Kasdi Merbah de Ouargla"]
[null,"Université_Kasdi_Merbah_de_Ouargla","Qualité Des Programmes En Education Spécialisée Et L'Enseignement Adapté","Université Kasdi Merbah de Ouargla"]
[null,"Université_Kasdi_Merbah_de_Ouargla","Science Et Technologie Des Activités Physiques Et Sportives","Université Kasdi Merbah de Ouargla"]
[null,"Université_Kasdi_Merbah_de_Ouargla","Les Réservoirs Souterrains Pétroliers, Gaziers Et Aquifères","Université Kasdi Merbah de Ouargla"]
[null,"Université_Kasdi_Merbah_de_Ouargla","English language ,literature","Université Kasdi Merbah de Ouargla"]
[null,"Université_Kasdi_Merbah_de_Ouargla","Inteligence artificiele des technologies de l'information","Université Kasdi Merbah de Ouargla"]
[null,"Université_Kasdi_Merbah_de_Ouargla","La Neuropsychologie et Troubles: Cognitives et Socio-affectives.","Université Kasdi Merbah de Ouargla"]
[null,"Université_Lamine_Debaghine_de_Sétif_2","Etudes Et Recherches Sur Les Droits De L'Homme","Université Lamine Debaghine de Sétif 2"]
[null,"Université_Lamine_Debaghine_de_Sétif_2","Dictionnaire Des Termes Linguistiques Et Rhétorique Dans L'Héritage Arabe Jusqu'À La Fin Du 7 E Siècle H","Université Lamine Debaghine de Sétif 2"]
[null,"Université_Lamine_Debaghine_de_Sétif_2","Psychologie Clinique","Université Lamine Debaghine de Sétif 2"]
[null,"Université_Lamine_Debaghine_de_Sétif_2","Méthodes Critiques Contemporaines Et Analyse Du Discours","Université Lamine Debaghine de Sétif 2"]
[null,"Université_Lamine_Debaghine_de_Sétif_2","La Société Algérienne Contemporaine","Université Lamine Debaghine de Sétif 2"]
[null,"Université_Lamine_Debaghine_de_Sétif_2","Unité De Recherche Dèveloppement Des Ressources Humaines","Université Lamine Debaghine de Sétif 2"]
[null,"Université_Lamine_Debaghine_de_Sétif_2","Acculturation Arabe Dans La Littérature Et La Critique","Université Lamine Debaghine de Sétif 2"]
[null,"Université_Lamine_Debaghine_de_Sétif_2","Esthétiques Dans Les Tues Littéraires Et Critiques","Université Lamine Debaghine de Sétif 2"]
[null,"Université_Lamine_Debaghine_de_Sétif_2","Approche pragmatique et stratégies du discours.","Université Lamine Debaghine de Sétif 2"]
[null,"Université_Lamine_Debaghine_de_Sétif_2","Etudes et recherches sur massacres coloniaux","Université Lamine Debaghine de Sétif 2"]
[null,"Université_Lamine_Debaghine_de_Sétif_2","Narratologie et systèmes culturels","Université Lamine Debaghine de Sétif 2"]
[null,"Université_Lamine_Debaghine_de_Sétif_2","Patrimoine et Etudes Archéologiques","Université Lamine Debaghine de Sétif 2"]
[null,"Université_Larbi_Ben_Mhidi_de_Oum_El_Bouaghi","Chimie Appliquée Et Technologie Des Matériaux","Université Larbi Ben Mhidi de Oum El Bouaghi"]
[null,"Université_Larbi_Ben_Mhidi_de_Oum_El_Bouaghi","Matériaux Et Structures Des Systèmes Electromécaniques Et Leurs Fiabilités","Université Larbi Ben Mhidi de Oum El Bouaghi"]
[null,"Université_Larbi_Ben_Mhidi_de_Oum_El_Bouaghi","Ressources Naturelles Et Aménagement Des Milieux Sensibles","Université Larbi Ben Mhidi de Oum El Bouaghi"]
[null,"Université_Larbi_Ben_Mhidi_de_Oum_El_Bouaghi","Système Dynamique Et Contrôle","Université Larbi Ben Mhidi de Oum El Bouaghi"]
[null,"Université_Larbi_Ben_Mhidi_de_Oum_El_Bouaghi","Biomolécules Végétales Et Amélioration Des Plantes","Université Larbi Ben Mhidi de Oum El Bouaghi"]
[null,"Université_Larbi_Ben_Mhidi_de_Oum_El_Bouaghi","Composants Actifs Et Matériaux","Université Larbi Ben Mhidi de Oum El Bouaghi"]
[null,"Université_Larbi_Ben_Mhidi_de_Oum_El_Bouaghi","Comptabilité, Finance, Fiscalité Et Assurance","Université Larbi Ben Mhidi de Oum El Bouaghi"]
[null,"Université_Larbi_Ben_Mhidi_de_Oum_El_Bouaghi","Société Et Développement Juridique Et Politique","Université Larbi Ben Mhidi de Oum El Bouaghi"]
[null,"Université_Larbi_Ben_Mhidi_de_Oum_El_Bouaghi","Research Laboratory On Computer Science’S Complex Systems","Université Larbi Ben Mhidi de Oum El Bouaghi"]
[null,"Université_Larbi_Ben_Mhidi_de_Oum_El_Bouaghi","Didactique De La Langue Arabe Et Du Texte Littéraire Dans Le Système D’Enseignement Algérien ; (Objectif Et Réalité).","Université Larbi Ben Mhidi de Oum El Bouaghi"]
[null,"Université_Larbi_Ben_Mhidi_de_Oum_El_Bouaghi","Génie Électronique Automatique","Université Larbi Ben Mhidi de Oum El Bouaghi"]
[null,"Université_Larbi_Ben_Mhidi_de_Oum_El_Bouaghi","Sciences Analytiques Matériaux et Environnement","Université Larbi Ben Mhidi de Oum El Bouaghi"]
[null,"Université_Larbi_Tebessi_de_Tébessa","Matériaux Organiques Et Hétérochimie","Université Larbi Tebessi de Tébessa"]
[null,"Université_Larbi_Tebessi_de_Tébessa","Energétique Et Turbomachine","Université Larbi Tebessi de Tébessa"]
[null,"Université_Larbi_Tebessi_de_Tébessa","Environnement","Université Larbi Tebessi de Tébessa"]
[null,"Université_Larbi_Tebessi_de_Tébessa","Mines","Université Larbi Tebessi de Tébessa"]
[null,"Université_Larbi_Tebessi_de_Tébessa","Physique Appliquée Et Théorique","Université Larbi Tebessi de Tébessa"]
[null,"Université_Larbi_Tebessi_de_Tébessa","Eau Et Environnement","Université Larbi Tebessi de Tébessa"]
[null,"Université_Larbi_Tebessi_de_Tébessa","Environnement Sédimentaire, Ressources Minérales Et Hydriques De L’Algérie Orientale","Université Larbi Tebessi de Tébessa"]
[null,"Université_Larbi_Tebessi_de_Tébessa","Etudes Environnementales Et Developpement Durable","Université Larbi Tebessi de Tébessa"]
[null,"Université_Larbi_Tebessi_de_Tébessa","Etudes Humaines Et Littéraires","Université Larbi Tebessi de Tébessa"]
[null,"Université_Larbi_Tebessi_de_Tébessa","Genie Civil Appliqué","Université Larbi Tebessi de Tébessa"]
[null,"Université_Larbi_Tebessi_de_Tébessa","Génie Electrique","Université Larbi Tebessi de Tébessa"]
[null,"Université_Larbi_Tebessi_de_Tébessa","Mathematiques, Informatiques Et Systemes","Université Larbi Tebessi de Tébessa"]
[null,"Université_Larbi_Tebessi_de_Tébessa","Molécules Bioactives Et Applications","Université Larbi Tebessi de Tébessa"]
[null,"Université_Lounici_Ali_de_Blida_2","Langue Arabe Et Sa Littérature","Université Lounici Ali de Blida 2"]
[null,"Université_Lounici_Ali_de_Blida_2","Innovation Et Le Changement Des Organisations Et Institutions","Université Lounici Ali de Blida 2"]
[null,"Université_Lounici_Ali_de_Blida_2","Etudes De Linguistique Théorique Et Pratique Généralev Et De L'Arabe","Université Lounici Ali de Blida 2"]
[null,"Université_Lounici_Ali_de_Blida_2","Développement Économique Et Humain En Algérie","Université Lounici Ali de Blida 2"]
[null,"Université_Lounici_Ali_de_Blida_2","Entreprenariat, La Gestion Des Ressources Humaines Et Le Développement Durable","Université Lounici Ali de Blida 2"]
[null,"Université_Lounici_Ali_de_Blida_2","Défis Du Système Fiscal Algérien Dans Le Cadre Des Changements Économiques","Université Lounici Ali de Blida 2"]
[null,"Université_Lounici_Ali_de_Blida_2","Enfance Et Éducation Préscolaire","Université Lounici Ali de Blida 2"]
[null,"Université_Lounici_Ali_de_Blida_2","Gestion Des Collectivités Locales Et Leur Rôle Dans La Réalisation De Développement","Université Lounici Ali de Blida 2"]
[null,"Université_Lounici_Ali_de_Blida_2","Psychométrie Et D'Études Psychologiques","Université Lounici Ali de Blida 2"]
[null,"Université_Lounici_Ali_de_Blida_2","Crime Et Déviance Entre Culture Et Représentions Sociales.","Université Lounici Ali de Blida 2"]
[null,"Université_Lounici_Ali_de_Blida_2","Développement Organisationnel Et Management Des Ressources Humaines","Université Lounici Ali de Blida 2"]
[null,"Université_Lounici_Ali_de_Blida_2","Droit Et Foncier","Université Lounici Ali de Blida 2"]
[null,"Université_Lounici_Ali_de_Blida_2","Etude De La Population, De La Santé Et Du Développement Durable En Algérie","Université Lounici Ali de Blida 2"]
[null,"Université_Lounici_Ali_de_Blida_2","Etudes Littératures Et Critiques","Université Lounici Ali de Blida 2"]
[null,"Université_Lounici_Ali_de_Blida_2","Santé, Psychologie, Education, Douance Et Créativité","Université Lounici Ali de Blida 2"]
[null,"Université_Mohamed_Ben_Ahmed_Oran_2","Création D'Outils Pédagogiques En Langues Étrangères","Université Mohamed Ben Ahmed Oran 2"]
[null,"Université_Mohamed_Ben_Ahmed Oran_2","Développement, Culture Et Politique : Cas De La Ville D'Oran","Université Mohamed Ben Ahmed Oran 2"]
[null,"Université_Mohamed_Ben_Ahmed Oran_2","Economie Et Gestion Des Entreprises","Université Mohamed Ben Ahmed Oran 2"]
[null,"Université_Mohamed_Ben_Ahmed Oran_2","Education Et Développement","Université Mohamed Ben Ahmed Oran 2"]
[null,"Université_Mohamed_Ben_Ahmed Oran_2","Espace Géographique Et Aménagement Du Territoire","Université Mohamed Ben Ahmed Oran 2"]
[null,"Université_Mohamed_Ben_Ahmed Oran_2","Linguistique, Dynamique Du Langage Et Didactique","Université Mohamed Ben Ahmed Oran 2"]
[null,"Université_Mohamed_Ben_Ahmed Oran_2","Macro-Économie Organisationnelle","Université Mohamed Ben Ahmed Oran 2"]
[null,"Université_Mohamed_Ben_Ahmed Oran_2","Ouvrages Pour Le Supérieur : Civilisation Et Didactique","Université Mohamed Ben Ahmed Oran 2"]
[null,"Université_Mohamed_Ben_Ahmed Oran_2","Paléontologie Stratigraphique Et Paléoenvironnement","Université Mohamed Ben Ahmed Oran 2"]
[null,"Université_Mohamed_Ben_Ahmed Oran_2","Philosophie Et Son Histoire","Université Mohamed Ben Ahmed Oran 2"]
[null,"Université_Mohamed_Ben_Ahmed Oran_2","Psychologie Et Sciences De L'Éducation","Université Mohamed Ben Ahmed Oran 2"]
[null,"Université_Mohamed_Ben_Ahmed Oran_2","Entreprise Et Commerce","Université Mohamed Ben Ahmed Oran 2"]
[null,"Université_Mohamed_Ben_Ahmed Oran_2","Processus Éducatifs Et Contexte Social En Algérie","Université Mohamed Ben Ahmed Oran 2"]
[null,"Université_Mohamed_Ben_Ahmed Oran_2","Traduction Et Méthodologie","Université Mohamed Ben Ahmed Oran 2"]
[null,"Université_Mohamed_Ben_Ahmed Oran_2","Application De La Psychologie Et De La Pédagogie Pour Le Développement En Algérie","Université Mohamed Ben Ahmed Oran 2"]
[null,"Université_Mohamed_Ben_Ahmed Oran_2","Droit Économique Et Environnement","Université Mohamed Ben Ahmed Oran 2"]
[null,"Université_Mohamed_Ben_Ahmed Oran_2","Droit Social (Labdros)","Université Mohamed Ben Ahmed Oran 2"]
[null,"Université_Mohamed_Ben_Ahmed Oran_2","Economies Euroméditéranéennes","Université Mohamed Ben Ahmed Oran 2"]
[null,"Université_Mohamed_Ben_Ahmed Oran_2","Protection Juridique Et Sociale De L'Enfant En Droit Algérien Et En Droit Comparé","Université Mohamed Ben Ahmed Oran 2"]
[null,"Université_Mohamed_Ben_Ahmed Oran_2","Dimensions Et Valeurs Des Transformations Idéologiques Et Politiques En Algérie","Université Mohamed Ben Ahmed Oran 2"]
[null,"Université_Mohamed_Ben_Ahmed Oran_2","Langues, Littératures Et Civilisation/Histoires En Afrique","Université Mohamed Ben Ahmed Oran 2"]
[null,"Université_Mohamed_Ben_Ahmed Oran_2","Droits De Transport Et Des Activités Portuaires","Université Mohamed Ben Ahmed Oran 2"]
[null,"Université_Mohamed_Ben_Ahmed Oran_2","Droit, Société Et Pouvoir","Université Mohamed Ben Ahmed Oran 2"]
[null,"Université_Mohamed_Ben_Ahmed Oran_2","Reformes Économiques Et Intégration Régionale Et Internationale","Université Mohamed Ben Ahmed Oran 2"]
[null,"Université_Mohamed_Ben_Ahmed Oran_2","Langues Étrangères Appliquées, Sciences Exactes, Technologie Et Développement","Université Mohamed Ben Ahmed Oran 2"]
[null,"Université_Mohamed_Ben_Ahmed Oran_2","Stratégies De Population Et Développement Durable","Université Mohamed Ben Ahmed Oran 2"]
[null,"Université_Mohamed_Ben_Ahmed Oran_2","Géoressources, Environnement Et Risques Naturels","Université Mohamed Ben Ahmed Oran 2"]
[null,"Université_Mohamed_Ben_Ahmed Oran_2","Philosophie Et Histoire Du Temps Présent","Université Mohamed Ben Ahmed Oran 2"]
[null,"Université_Mohamed_Ben_Ahmed Oran_2","Philosophie, Sciences Et Develpppement En Algérie","Université Mohamed Ben Ahmed Oran 2"]
[null,"Université_Mohamed_Ben_Ahmed Oran_2","Recherche Appliquée Sur La Firme, L'Industrie Et Le Territoire","Université Mohamed Ben Ahmed Oran 2"]
[null,"Université_Mohamed_Ben_Ahmed Oran_2","Systèmes, Structures, Modèles Et Pratiques : Philosophie, Sciences Sociales Et Traduction","Université Mohamed Ben Ahmed Oran 2"]
[null,"Université_Mohamed_Ben_Ahmed Oran_2","Dynamiques Urbaines Et Evolution Sociale En Algerie","Université Mohamed Ben Ahmed Oran 2"]
[null,"Université_Mohamed_Ben_Ahmed Oran_2","Ergonomie Et Prévention Des Risques","Université Mohamed Ben Ahmed Oran 2"]
[null,"Université_Mohamed_Ben_Ahmed Oran_2","Géodynamique Des Bassins Et Bilan Sédimentaire","Université Mohamed Ben Ahmed Oran 2"]
[null,"Université_Mohamed_Ben_Ahmed Oran_2","Investissement Et Développement Durable","Université Mohamed Ben Ahmed Oran 2"]
[null,"Université_Mohamed_Ben_Ahmed Oran_2","Langue Française Au Maghreb ; Pratiques De Suivi Et Évaluation De Compétences En Francophonie","Université Mohamed Ben Ahmed Oran 2"]
[null,"Université_Mohamed_Ben_Ahmed Oran_2","Langue, Discours, Civilisations Et Littératures","Université Mohamed Ben Ahmed Oran 2"]
[null,"Université_Mohamed_Ben_Ahmed Oran_2","Système, Contrats Et Responsabilité Bancaires","Université Mohamed Ben Ahmed Oran 2"]
[null,"Université_Mohamed_Ben_Ahmed Oran_2","Unité De Recherche: Sciences Sociales (Remplace Lr2001 Anthropologie De La Santé)","Université Mohamed Ben Ahmed Oran 2"]
[null,"Université_Mohamed_Ben_Ahmed Oran_2","Sciences Criminelles","Université Mohamed Ben Ahmed Oran 2"]
[null,"Université_Mohamed_Ben_Ahmed Oran_2","Ingénierie De La Sécurité Industrielle Et Du Développement Durable","Université Mohamed Ben Ahmed Oran 2"]
[null,"Université_Mohamed_Ben_Ahmed Oran_2","Moyens D'Investigation Et Techniques Thérapeutiques Des Troubles Du Comportement","Université Mohamed Ben Ahmed Oran 2"]
[null,"Université_Mohamed_Boudiaf_de_Msila","Matériaux Inorganiques","Université Mohamed Boudiaf de Msila"]
[null,"Université_Mohamed_Boudiaf_de_Msila","Mathématiques Pures Et Appliquées","Université Mohamed Boudiaf de Msila"]
[null,"Université_Mohamed_Boudiaf_de_Msila","Physique Et Chimie Des Matériaux","Université Mohamed Boudiaf de Msila"]
[null,"Université_Mohamed_Boudiaf_de_Msila","Développement Des Géo-Matériaux","Université Mohamed Boudiaf de Msila"]
[null,"Université_Mohamed_Boudiaf_de_Msila","Technique Urbaine Et Environnement","Université Mohamed Boudiaf de Msila"]
[null,"Université_Mohamed_Boudiaf_de_Msila","Analyse Des Signaux Et Systèmes","Université Mohamed Boudiaf de Msila"]
[null,"Université_Mohamed_Boudiaf_de_Msila","Poésie Algérienne","Université Mohamed Boudiaf de Msila"]
[null,"Université_Mohamed_Boudiaf_de_Msila","Stratégies Et Politiques Economiques En Algérie","Université Mohamed Boudiaf de Msila"]
[null,"Université_Mohamed_Boudiaf_de_Msila","Etudes Historiques, De Sociologie Et Des Changements Sociaux Et Économiques","Université Mohamed Boudiaf de Msila"]
[null,"Université_Mohamed_Boudiaf_de_Msila","Analyse Fonctionnelle Et Géométrie Des Espaces","Université Mohamed Boudiaf de Msila"]
[null,"Université_Mohamed_Boudiaf_de_Msila","Apprentissage Et Contrôle Moteur","Université Mohamed Boudiaf de Msila"]
[null,"Université_Mohamed_Boudiaf_de_Msila","Communication Et Société","Université Mohamed Boudiaf de Msila"]
[null,"Université_Mohamed_Boudiaf_de_Msila","Etudes De Linguistique Théorique Et Pratique","Université Mohamed Boudiaf de Msila"]
[null,"Université_Mohamed_Boudiaf_de_Msila","Etudes Et Recherche Sur La Révolution Algérienne","Université Mohamed Boudiaf de Msila"]
[null,"Université_Mohamed_Boudiaf_de_Msila","Exécution Des Jugements De Justice, Civil, Commercial, Administratif, Pénal Et En Référé","Université Mohamed Boudiaf de Msila"]
[null,"Université_Mohamed_Boudiaf_de_Msila","Genie Electrique","Université Mohamed Boudiaf de Msila"]
[null,"Université_Mohamed_Boudiaf_de_Msila","Life Skills","Université Mohamed Boudiaf de Msila"]
[null,"Université_Mohamed_Boudiaf_de_Msila","Matériaux Et Mécanique Des Structures","Université Mohamed Boudiaf de Msila"]
[null,"Université_Mohamed_Boudiaf_de_Msila","Nouvelles Sciences Politiques","Université Mohamed Boudiaf de Msila"]
[null,"Université_Mohamed_Boudiaf_de_Msila","Planification Des Ressources Humaines Et L'Amélioration Des Performances","Université Mohamed Boudiaf de Msila"]
[null,"Université_Mohamed_Boudiaf_de_Msila","Programmes Des Activités Physiques Et Sportives Adaptées","Université Mohamed Boudiaf de Msila"]
[null,"Université_Mohamed_Boudiaf_de_Msila","Psychologie De Santé Et Du Développement","Université Mohamed Boudiaf de Msila"]
[null,"Université_Mohamed_Boudiaf_de_Msila","Physique Des Matrèriaux Et Ses Applications","Université Mohamed Boudiaf de Msila"]
[null,"Université_Mohamed_Boudiaf_de_Msila","Sémiologie De Théâtre Entre La Théorie Et Le Pratique","Université Mohamed Boudiaf de Msila"]
[null,"Université_Mohamed_Boudiaf_de_Msila","études anthropologiques et problèmes sociaux","Université Mohamed Boudiaf de Msila"]
[null,"Université_Mohamed_Boudiaf_de_Msila","Etudes et Recherches en Droit, Famille et Développement Administratif","Université Mohamed Boudiaf de Msila"]
[null,"Université_Mohamed_Boudiaf_de_Msila","Sociologie de la Qualité du Service Public","Université Mohamed Boudiaf de Msila"]
[null,"Université_Mohamed_Boudiaf_de_Msila","Ville, Environnement, Société et Développement Durable","Université Mohamed Boudiaf de Msila"]
[null,"Université_Mohamed_Cherif_Mesaadia_de_Souk_Ahras","Gestion Maintenance Et Réhalibilitation Des Infrastructures Urbaines","Université Mohamed Cherif Mesaadia de Souk Ahras"]
[null,"Université_Mohamed_Cherif_Mesaadia_de_Souk_Ahras","Sciences Et Technique De L'Eau Et Environnement","Université Mohamed Cherif Mesaadia de Souk Ahras"]
[null,"Université_Mohamed_Cherif_Mesaadia_de_Souk_Ahras","Ecosystèmes Aquatiques Et Terrestres","Université Mohamed Cherif Mesaadia de Souk Ahras"]
[null,"Université_Mohamed_Cherif_Mesaadia_de_Souk_Ahras","Electrotechnique Et Energies Renouvelables","Université Mohamed Cherif Mesaadia de Souk Ahras"]
[null,"Université_Mohamed_Cherif_Mesaadia_de_Souk_Ahras","Etudes Linguistiques Et Littéraires","Université Mohamed Cherif Mesaadia de Souk Ahras"]
[null,"Université_Mohamed_Cherif_Mesaadia_de_Souk_Ahras","Physique De La Matière Et Du Rayonnement","Université Mohamed Cherif Mesaadia de Souk Ahras"]
[null,"Université_Mohamed_Cherif_Mesaadia_de_Souk_Ahras","Psychologie Des Activités Physiques Et Sportives","Université Mohamed Cherif Mesaadia de Souk Ahras"]
[null,"Université_Mohamed_Cherif_Mesaadia_de_Souk_Ahras","Recherches Et Études Économiques","Université Mohamed Cherif Mesaadia de Souk Ahras"]
[null,"Université_Mohamed_Cherif_Mesaadia_de_Souk_Ahras","Informatique Et Mathématiques","Université Mohamed Cherif Mesaadia de Souk Ahras"]
[null,"Université_Mohamed_Cherif_Mesaadia_de_Souk_Ahras","Jeunes Et Problèmes Sociaux","Université Mohamed Cherif Mesaadia de Souk Ahras"]
[null,"Université_Mohamed_Cherif_Mesaadia_de_Souk_Ahras","Sciences Et Techniques Du Vivant","Université Mohamed Cherif Mesaadia de Souk Ahras"]
[null,"Université_Mohamed_Cherif_Mesaadia_de_Souk_Ahras","Finance, comptabilité,  fiscalité et assurance","Université Mohamed Cherif Mesaadia de Souk Ahras"]
[null,"Université_Mohamed_Cherif_Mesaadia_de_Souk_Ahras","Productions Animales, Biotechnologie et Santé","Université Mohamed Cherif Mesaadia de Souk Ahras"]
[null,"Université_Mohamed_El_Bachir_El_Ibrahimi_de_Bordj_Bou_Arréridj","Matériaux Et Systèmes Électroniques","Université Mohamed El Bachir El Ibrahimi de Bordj Bou Arréridj"]
[null,"Université_Mohamed_El_Bachir_El_Ibrahimi_de_Bordj_Bou_Arréridj","Caractérisation Et Valorisation Des Ressources Naturelles","Université Mohamed El Bachir El Ibrahimi de Bordj Bou Arréridj"]
[null,"Université_Mohamed_El_Bachir_El_Ibrahimi_de_Bordj_Bou_Arréridj","Etudes Et Recherche En Développement Rural Lerdr","Université Mohamed El Bachir El Ibrahimi de Bordj Bou Arréridj"]
[null,"Université_Mohamed_El_Bachir_El_Ibrahimi_de_Bordj_Bou_Arréridj","Études Économiques Sur Les Zones Industrielles Et Le Nouveau Rôle De L'Université, \"Le Cas De Bordj Bou Arreridj\"","Université Mohamed El Bachir El Ibrahimi de Bordj Bou Arréridj"]
[null,"Université_Mohamed_El_Bachir_El_Ibrahimi_de_Bordj_Bou_Arréridj","Physique Des Matériaux, Rayonnements Et Nanostructures.","Université Mohamed El Bachir El Ibrahimi de Bordj Bou Arréridj"]
[null,"Université_Mohamed_El_Bachir_El_Ibrahimi_de_Bordj_Bou_Arréridj","Electronique et des Télécommunications Avancées","Université Mohamed El Bachir El Ibrahimi de Bordj Bou Arréridj"]
[null,"Université_Mohamed_Essedik_Ben_Yahia_de_Jijel","Essais Non-Destructifs","Université Mohamed Essedik Ben Yahia de Jijel"]
[null,"Université_Mohamed_Essedik_Ben_Yahia_de_Jijel","Etudes Des Interactions Matériaux Et Environnement","Université Mohamed Essedik Ben Yahia de Jijel"]
[null,"Université_Mohamed_Essedik_Ben_Yahia_de_Jijel","Etudes Des Matériaux","Université Mohamed Essedik Ben Yahia de Jijel"]
[null,"Université_Mohamed_Essedik_Ben_Yahia_de_Jijel","Pharmacologie Et Phytochimie","Université Mohamed Essedik Ben Yahia de Jijel"]
[null,"Université_Mohamed_Essedik_Ben_Yahia_de_Jijel","Génie Géologique","Université Mohamed Essedik Ben Yahia de Jijel"]
[null,"Université_Mohamed_Essedik_Ben_Yahia_de_Jijel","Cadre Bati Et Environnement","Université Mohamed Essedik Ben Yahia de Jijel"]
[null,"Université_Mohamed_Essedik_Ben_Yahia_de_Jijel","Physique Théorique","Université Mohamed Essedik Ben Yahia de Jijel"]
[null,"Université_Mohamed_Essedik_Ben_Yahia_de_Jijel","Mathématiques Pures Et Appliquées","Université Mohamed Essedik Ben Yahia de Jijel"]
[null,"Université_Mohamed_Essedik_Ben_Yahia_de_Jijel","Toxicologie Moléculaire","Université Mohamed Essedik Ben Yahia de Jijel"]
[null,"Université_Mohamed_Essedik_Ben_Yahia_de_Jijel","Physique De Rayonnement Et Applications","Université Mohamed Essedik Ben Yahia de Jijel"]
[null,"Université_Mohamed_Essedik_Ben_Yahia_de_Jijel","Automatique De Jijel","Université Mohamed Essedik Ben Yahia de Jijel"]
[null,"Université_Mohamed_Essedik_Ben_Yahia_de_Jijel","Biologie Moléculaire Et Cellulaire","Université Mohamed Essedik Ben Yahia de Jijel"]
[null,"Université_Mohamed_Essedik_Ben_Yahia_de_Jijel","Biotechnologie, Environnement Et Santé","Université Mohamed Essedik Ben Yahia de Jijel"]
[null,"Université_Mohamed_Essedik_Ben_Yahia_de_Jijel","Droit Bancaire Et Financier","Université Mohamed Essedik Ben Yahia de Jijel"]
[null,"Université_Mohamed_Essedik_Ben_Yahia_de_Jijel","Electrotechnique Et D'Electronique Industrielle","Université Mohamed Essedik Ben Yahia de Jijel"]
[null,"Université_Mohamed_Essedik_Ben_Yahia_de_Jijel","Energétique Appliquée Et Matériaux","Université Mohamed Essedik Ben Yahia de Jijel"]
[null,"Université_Mohamed_Essedik_Ben_Yahia_de_Jijel","Energies Renouvelables","Université Mohamed Essedik Ben Yahia de Jijel"]
[null,"Université_Mohamed_Essedik_Ben_Yahia_de_Jijel","Matériaux : Élaborations-Propriétés-Applications","Université Mohamed Essedik Ben Yahia de Jijel"]
[null,"Université_Mohamed_Essedik_Ben_Yahia_de_Jijel","Mathématiques Et Applications Des Mathématiques","Université Mohamed Essedik Ben Yahia de Jijel"]
[null,"Université_Mohamed_Essedik_Ben_Yahia_de_Jijel","Physique De La Matière Condensée Et Nanomatériaux","Université Mohamed Essedik Ben Yahia de Jijel"]
[null,"Université_Mohamed_Essedik_Ben_Yahia_de_Jijel","Sociolinguistique, Socio- Didactique Et Socio-Littérature","Université Mohamed Essedik Ben Yahia de Jijel"]
[null,"Université_Mohamed_Essedik_Ben_Yahia_de_Jijel","Gènie Civil Et Environnement","Université Mohamed Essedik Ben Yahia de Jijel"]
[null,"Université_Mohamed_Essedik_Ben_Yahia_de_Jijel","Mécatronique De Jijel","Université Mohamed Essedik Ben Yahia de Jijel"]
[null,"Université_Mohamed_Essedik_Ben_Yahia_de_Jijel","Langue et analyse du discours","Université Mohamed Essedik Ben Yahia de Jijel"]
[null,"Université_Mohamed_Khider_de_Biskra","Aménagements Hydrauliques Et Environnement","Université Mohamed Khider de Biskra"]
[null,"Université_Mohamed_Khider_de_Biskra","Chimie Appliquée","Université Mohamed Khider de Biskra"]
[null,"Université_Mohamed_Khider_de_Biskra","Génie Civil","Université Mohamed Khider de Biskra"]
[null,"Université_Mohamed_Khider_de_Biskra","Hydraulique Souterraine Et Surface","Université Mohamed Khider de Biskra"]
[null,"Université_Mohamed_Khider_de_Biskra","Matériaux Semi-Conducteurs Et Métalliques","Université Mohamed Khider de Biskra"]
[null,"Université_Mohamed_Khider_de_Biskra","Mathématiques Appliquées","Université Mohamed Khider de Biskra"]
[null,"Université_Mohamed_Khider_de_Biskra","Modélisation Des Systèmes Energétiques","Université Mohamed Khider de Biskra"]
[null,"Université_Mohamed_Khider_de_Biskra","Systèmes Experts, L'Imagerie Et Leurs Applications Dans L'Ingénierie","Université Mohamed Khider de Biskra"]
[null,"Université_Mohamed_Khider_de_Biskra","Impact De La Jurisprudence Sur La Dynamique De La Législation","Université Mohamed Khider de Biskra"]
[null,"Université_Mohamed_Khider_de_Biskra","Langue Et Littérature Algériennes","Université Mohamed Khider de Biskra"]
[null,"Université_Mohamed_Khider_de_Biskra","Problématique De L'Éducation En Algérie À L'Ombre Des Contraintes Actuelles","Université Mohamed Khider de Biskra"]
[null,"Université_Mohamed_Khider_de_Biskra","Sciences Économiques Et Sciences De Gestion","Université Mohamed Khider de Biskra"]
[null,"Université_Mohamed_Khider_de_Biskra","Génie Électrique De Biskra","Université Mohamed Khider de Biskra"]
[null,"Université_Mohamed_Khider_de_Biskra","Conception Et Modélisation Des Formes Et Des Ambiances Architecturales Urbaines","Université Mohamed Khider de Biskra"]
[null,"Université_Mohamed_Khider_de_Biskra","Génie Mécanique","Université Mohamed Khider de Biskra"]
[null,"Université_Mohamed_Khider_de_Biskra","Unité De Formation Et La Recherche Dans Les Théories Des Lecteurs Et Ses Méthodes","Université Mohamed Khider de Biskra"]
[null,"Université_Mohamed_Khider_de_Biskra","Changement Social Et Relation Publique En Algérie","Université Mohamed Khider de Biskra"]
[null,"Université_Mohamed_Khider_de_Biskra","Finances, Banque Et Management","Université Mohamed Khider de Biskra"]
[null,"Université_Mohamed_Khider_de_Biskra","Chimie Moléculaire Et Environnement","Université Mohamed Khider de Biskra"]
[null,"Université_Mohamed_Khider_de_Biskra","Génie Civil Et Hydraulique, Développement Durable Et Environnement","Université Mohamed Khider de Biskra"]
[null,"Université_Mohamed_Khider_de_Biskra","Linguistique Et Langue Arabe","Université Mohamed Khider de Biskra"]
[null,"Université_Mohamed_Khider_de_Biskra","Droits Et Libertés Dans Les Systèmes Comparés","Université Mohamed Khider de Biskra"]
[null,"Université_Mohamed_Khider_de_Biskra","Génie Énergétique Et Matériaux","Université Mohamed Khider de Biskra"]
[null,"Université_Mohamed_Khider_de_Biskra","Modélisation Numérique Et Instrumentation En Interaction Sol-Structure","Université Mohamed Khider de Biskra"]
[null,"Université_Mohamed_Khider_de_Biskra","Diversité Des Écosystèmes Et Dynamiques Des Systèmes De Production Agricoles En Zones Arides","Université Mohamed Khider de Biskra"]
[null,"Université_Mohamed_Khider_de_Biskra","Etudes Et Recherches Dans Les Sciences Et Techniques Des Activités Physiques Et Sportives","Université Mohamed Khider de Biskra"]
[null,"Université_Mohamed_Khider_de_Biskra","Etudes Psychologiques Et Sociologiques","Université Mohamed Khider de Biskra"]
[null,"Université_Mohamed_Khider_de_Biskra","Identification, Commande, Contrôle Et Communication","Université Mohamed Khider de Biskra"]
[null,"Université_Mohamed_Khider_de_Biskra","Informatique Intelligente","Université Mohamed Khider de Biskra"]
[null,"Université_Mohamed_Khider_de_Biskra","Physique Des Couches Minces Et Applications","Université Mohamed Khider de Biskra"]
[null,"Université_Mohamed_Khider_de_Biskra","Physique Photonique Et Nanomatériaux Multifonctionnels","Université Mohamed Khider de Biskra"]
[null,"Université_Mohamed_Khider_de_Biskra","Génétique, Biotechnologie et Valorisation de Bio-ressources","Université Mohamed Khider de Biskra"]
[null,"Université_Mohamed_Lakhdar_Ben_Amara_dit_Hamma_Lakhdar_El_Oued","Valorisation Et Technologie Des Ressources Sahariennes","Université Mohamed Lakhdar Ben Amara dit Hamma Lakhdar El Oued"]
[null,"Université_Mohamed_Lakhdar_Ben_Amara_dit_Hamma_Lakhdar_El_Oued","Exploitation Et De Valorisation Des Ressources Énergétiques Sahariennes","Université Mohamed Lakhdar Ben Amara dit Hamma Lakhdar El Oued"]
[null,"Université_Mohamed_Lakhdar_Ben_Amara_dit_Hamma_Lakhdar_El_Oued","Théorie Des Opérateurs Et Edp","Université Mohamed Lakhdar Ben Amara dit Hamma Lakhdar El Oued"]
[null,"Université_Mohamed_Lakhdar_Ben_Amara_dit_Hamma_Lakhdar_El_Oued","Algerian Scientists Contributions To enrich The Islamic Studies   ","Université Mohamed Lakhdar Ben Amara dit Hamma Lakhdar El Oued"]
[null,"Université_Mohamed_Lakhdar_Ben_Amara_dit_Hamma_Lakhdar_El_Oued","Etudes Doctrinales et Judiciares","Université Mohamed Lakhdar Ben Amara dit Hamma Lakhdar El Oued"]
[null,"Université_Mohamed_Lakhdar_Ben_Amara_dit_Hamma_Lakhdar_El_Oued","La croissance et le développement économique dans les pays arabes","Université Mohamed Lakhdar Ben Amara dit Hamma Lakhdar El Oued"]
[null,"Université_Mohamed_Lakhdar_Ben_Amara_dit_Hamma_Lakhdar_El_Oued","Neuropsychologie Cognitive et Sociale ","Université Mohamed Lakhdar Ben Amara dit Hamma Lakhdar El Oued"]
[null,"Université_Mohamed_Lakhdar_Ben_Amara_dit_Hamma_Lakhdar_El_Oued","Politique de détective et d'améliorer le service public en Algérie ","Université Mohamed Lakhdar Ben Amara dit Hamma Lakhdar El Oued"]
[null,"Université_Mouloud_Maameri_de_Tizi_Ouzou","Biochimie Analytique Et Biotechnologies","Université Mouloud Maameri de Tizi Ouzou"]
[null,"Université_Mouloud_Maameri_de_Tizi_Ouzou","Chimie Appliquée Et Génie Chimique","Université Mouloud Maameri de Tizi Ouzou"]
[null,"Université_Mouloud_Maameri_de_Tizi_Ouzou","Eau","Université Mouloud Maameri de Tizi Ouzou"]
[null,"Université_Mouloud_Maameri_de_Tizi_Ouzou","Physique Et Chimie Quantique","Université Mouloud Maameri de Tizi Ouzou"]
[null,"Université_Mouloud_Maameri_de_Tizi_Ouzou","Réformes Économiques Et Dynamiques Locales","Université Mouloud Maameri de Tizi Ouzou"]
[null,"Université_Mouloud_Maameri_de_Tizi_Ouzou","Analyse Et Modélisation Des Phénomènes Aléatoires","Université Mouloud Maameri de Tizi Ouzou"]
[null,"Université_Mouloud_Maameri_de_Tizi_Ouzou","Conception Et Conduite Des Systèmes De Production","Université Mouloud Maameri de Tizi Ouzou"]
[null,"Université_Mouloud_Maameri_de_Tizi_Ouzou","Immunologie","Université Mouloud Maameri de Tizi Ouzou"]
[null,"Université_Mouloud_Maameri_de_Tizi_Ouzou","Mécanique, Structures Et Énergétique","Université Mouloud Maameri de Tizi Ouzou"]
[null,"Université_Mouloud_Maameri_de_Tizi_Ouzou","Mondialisation Et Droit National","Université Mouloud Maameri de Tizi Ouzou"]
[null,"Université_Mouloud_Maameri_de_Tizi_Ouzou","Production, Amélioration Et Protection Des Végétaux Et Des Denrées Alimentaires","Université Mouloud Maameri de Tizi Ouzou"]
[null,"Université_Mouloud_Maameri_de_Tizi_Ouzou","Ressources Naturelles","Université Mouloud Maameri de Tizi Ouzou"]
[null,"Université_Mouloud_Maameri_de_Tizi_Ouzou","Géomatériaux, Environnement Et Aménagements","Université Mouloud Maameri de Tizi Ouzou"]
[null,"Université_Mouloud_Maameri_de_Tizi_Ouzou","Informatique","Université Mouloud Maameri de Tizi Ouzou"]
[null,"Université_Mouloud_Maameri_de_Tizi_Ouzou","Mathématiques Pures Et Appliquées","Université Mouloud Maameri de Tizi Ouzou"]
[null,"Université_Mouloud_Maameri_de_Tizi_Ouzou","Modélisation Expérimentale Et Numérique Des Matériaux Et Structures En Génie Civil","Université Mouloud Maameri de Tizi Ouzou"]
[null,"Université_Mouloud_Maameri_de_Tizi_Ouzou","Analyse De Discours","Université Mouloud Maameri de Tizi Ouzou"]
[null,"Université_Mouloud_Maameri_de_Tizi_Ouzou","Technologie Avancée En Génie Électrique","Université Mouloud Maameri de Tizi Ouzou"]
[null,"Université_Mouloud_Maameri_de_Tizi_Ouzou","Energétique mécanique et matériaux","Université Mouloud Maameri de Tizi Ouzou"]
[null,"Université_Mouloud_Maameri_de_Tizi_Ouzou","Génie Electrique","Université Mouloud Maameri de Tizi Ouzou"]
[null,"Université_Mouloud_Maameri_de_Tizi_Ouzou","Aménagement Et Ensignement De La Langue Amazighe","Université Mouloud Maameri de Tizi Ouzou"]
[null,"Université_Mouloud_Maameri_de_Tizi_Ouzou","Pratiques Langagières En Algérie","Université Mouloud Maameri de Tizi Ouzou"]
[null,"Université_Mouloud_Maameri_de_Tizi_Ouzou","Physique Et Chimie Des Matériaux","Université Mouloud Maameri de Tizi Ouzou"]
[null,"Université_Mouloud_Maameri_de_Tizi_Ouzou","Elaboration Et Caractérisation Des Matériaux Et Modélisation (Lec2M)","Université Mouloud Maameri de Tizi Ouzou"]
[null,"Université_Mouloud_Maameri_de_Tizi_Ouzou","Production, Sauvegarde Des Espèces Menacées Et Des Récoltes. Influence Des Variations Climatiques","Université Mouloud Maameri de Tizi Ouzou"]
[null,"Université_Mouloud_Maameri_de_Tizi_Ouzou","Recherche Opérationnelle Et Mathématiques De La Décision","Université Mouloud Maameri de Tizi Ouzou"]
[null,"Université_Mouloud_Maameri_de_Tizi_Ouzou","Droit Et Nouvelles Technologies","Université Mouloud Maameri de Tizi Ouzou"]
[null,"Université_Mouloud_Maameri_de_Tizi_Ouzou","Langues Et Cultures Etrangeres","Université Mouloud Maameri de Tizi Ouzou"]
[null,"Université_Mouloud_Maameri_de_Tizi_Ouzou","Management Des Organisations","Université Mouloud Maameri de Tizi Ouzou"]
[null,"Université_Mouloud_Maameri_de_Tizi_Ouzou","Métallurgie Et De Génie Des Matériaux Métalliques","Université Mouloud Maameri de Tizi Ouzou"]
[null,"Université_Mouloud_Maameri_de_Tizi_Ouzou","Recherches En Traduction","Université Mouloud Maameri de Tizi Ouzou"]
[null,"Université_Mouloud_Maameri_de_Tizi_Ouzou","Représentation Intellectuelle Et Culturelle","Université Mouloud Maameri de Tizi Ouzou"]
[null,"Université_Mouloud_Maameri_de_Tizi_Ouzou","Société-Éducation-Travail","Université Mouloud Maameri de Tizi Ouzou"]
[null,"Université_Mouloud_Maameri_de_Tizi_Ouzou","Ecologie Et Biologie Des Ecosystèmes Terrestres","Université Mouloud Maameri de Tizi Ouzou"]
[null,"Université_Mouloud_Maameri_de_Tizi_Ouzou","Qualité Et Sécurité Des Aliments","Université Mouloud Maameri de Tizi Ouzou"]
[null,"Université_Mouloud_Maameri_de_Tizi_Ouzou","Vision Artificielle Et Automatique Des Systèmes","Université Mouloud Maameri de Tizi Ouzou"]
[null,"Université_Mustapha_Stambouli_de_Mascara","Systèmes Biologiques Et La Géomatique","Université Mustapha Stambouli de Mascara"]
[null,"Université_Mustapha_Stambouli_de_Mascara","Management Des Collectivités Locales Et Développement Local","Université Mustapha Stambouli de Mascara"]
[null,"Université_Mustapha_Stambouli_de_Mascara","Physique Quantique De La Matière Et Modélisations Mathématiques","Université Mustapha Stambouli de Mascara"]
[null,"Université_Mustapha_Stambouli_de_Mascara","Sciences Et Techniques De L'Eau","Université Mustapha Stambouli de Mascara"]
[null,"Université_Mustapha_Stambouli_de_Mascara","Chimie Organique, Macromoléculaire Et Des Matériaux","Université Mustapha Stambouli de Mascara"]
[null,"Université_Mustapha_Stambouli_de_Mascara","Recherches Sociologiques Et Historiques","Université Mustapha Stambouli de Mascara"]
[null,"Université_Mustapha_Stambouli_de_Mascara","Chimie Physique Des Macromolécules Et Interfaces Biologiques","Université Mustapha Stambouli de Mascara"]
[null,"Université_Mustapha_Stambouli_de_Mascara","Géo-Environnement Et Développement Des Espaces","Université Mustapha Stambouli de Mascara"]
[null,"Université_Mustapha_Stambouli_de_Mascara","Matériaux, Applications Et Environnement","Université Mustapha Stambouli de Mascara"]
[null,"Université_Mustapha_Stambouli_de_Mascara","Bioconversion, Génie Microbiologique Et Sécurité Sanitaire","Université Mustapha Stambouli de Mascara"]
[null,"Université_Mustapha_Stambouli_de_Mascara","Législations En Droit Economique","Université Mustapha Stambouli de Mascara"]
[null,"Université_Mustapha_Stambouli_de_Mascara","Méthodologies De La Critique Moderne Et L’Analyse Du Discours","Université Mustapha Stambouli de Mascara"]
[null,"Université_Mustapha_Stambouli_de_Mascara","Outils Juridiques De La Politique Foncière","Université Mustapha Stambouli de Mascara"]
[null,"Université_Mustapha_Stambouli_de_Mascara","Analyse, De Prospective Et De Développement Des Emplois Et Des Compétences","Université Mustapha Stambouli de Mascara"]
[null,"Université_Mustapha_Stambouli_de_Mascara","Génie Des Procédes Et Chimie Des Solutions","Université Mustapha Stambouli de Mascara"]
[null,"Université_Mustapha_Stambouli_de_Mascara","Géomatique, Ecologie Et Environnement","Université Mustapha Stambouli de Mascara"]
[null,"Université_Mustapha_Stambouli_de_Mascara","Pme, Recherches Et Innovation","Université Mustapha Stambouli de Mascara"]
[null,"Université_Mustapha_Stambouli_de_Mascara","Ingénierie Des Programmes De Langue Dans Les Filières De Spécialité","Université Mustapha Stambouli de Mascara"]
[null,"Université_Omar_Telidji_de_Laghouat","Génie Civil","Université Omar Telidji de Laghouat"]
[null,"Université_Omar_Telidji_de_Laghouat","Langue Arabe Et Sa Littérature","Université Omar Telidji de Laghouat"]
[null,"Université_Omar_Telidji_de_Laghouat","Sciences Économiques Et Gestion","Université Omar Telidji de Laghouat"]
[null,"Université_Omar_Telidji_de_Laghouat","Sciences Fondamentales","Université Omar Telidji de Laghouat"]
[null,"Université_Omar_Telidji_de_Laghouat","Etude Et Développement Des Matériaux Semi-Conducteurs Et Diélectriques","Université Omar Telidji de Laghouat"]
[null,"Université_Omar_Telidji_de_Laghouat","Génie Des Procédés","Université Omar Telidji de Laghouat"]
[null,"Université_Omar_Telidji_de_Laghouat","Informatique Et Mathématiques","Université Omar Telidji de Laghouat"]
[null,"Université_Omar_Telidji_de_Laghouat","Mécanique","Université Omar Telidji de Laghouat"]
[null,"Université_Omar_Telidji_de_Laghouat","Analyse Et De Commande Des Systèmes D'Énergie Et Réseaux Électriques","Université Omar Telidji de Laghouat"]
[null,"Université_Omar_Telidji_de_Laghouat","Sciences Du Langage","Université Omar Telidji de Laghouat"]
[null,"Université_Omar_Telidji_de_Laghouat","Télécommunications, Signaux Et Systèmes","Université Omar Telidji de Laghouat"]
[null,"Université_Omar_Telidji_de_Laghouat","Etude Du Développement Économique","Université Omar Telidji de Laghouat"]
[null,"Université_Omar_Telidji_de_Laghouat","Linguistique Contrastive Et Caractères Des Langues","Université Omar Telidji de Laghouat"]
[null,"Université_Omar_Telidji_de_Laghouat","Linguistique Pragmatique Et Analyse De Discours Littéraire","Université Omar Telidji de Laghouat"]
[null,"Université_Omar_Telidji_de_Laghouat","Matériaux Et Réhabilitation De Structures","Université Omar Telidji de Laghouat"]
[null,"Université_Omar_Telidji_de_Laghouat","Mathematiques Pures Et Appliques","Université Omar Telidji de Laghouat"]
[null,"Université_Omar_Telidji_de_Laghouat","Ressources En Eau, Sols Et Environnement","Université Omar Telidji de Laghouat"]
[null,"Université_Omar_Telidji_de_Laghouat","Semi-Conducteurs Et Matériaux Fonctionnels","Université Omar Telidji de Laghouat"]
[null,"Université_Omar_Telidji_de_Laghouat","Counseling Psychologique Et Développement Des Outils De Mesure Dans Le Milieu Scolaire","Université Omar Telidji de Laghouat"]
[null,"Université_Omar_Telidji_de_Laghouat","Droit Et Sciences Politique","Université Omar Telidji de Laghouat"]
[null,"Université_Omar_Telidji_de_Laghouat","Islamiques Et Linguistiques","Université Omar Telidji de Laghouat"]
[null,"Université_Omar_Telidji_de_Laghouat","La Santé Psychique","Université Omar Telidji de Laghouat"]
[null,"Université_Omar_Telidji_de_Laghouat","Physico-Chimie Des Matériaux","Université Omar Telidji de Laghouat"]
[null,"Université_Omar_Telidji_de_Laghouat","Physique Des Matériaux","Université Omar Telidji de Laghouat"]
[null,"Université_Saad_Dahlab_de_Blida_1","Chimie Physique Moléculaire Et Macromoléculaire","Université Saad Dahlab de Blida 1"]
[null,"Université_Saad_Dahlab_de_Blida_1","Surface, Interfaces Et Couches Minces","Université Saad Dahlab de Blida 1"]
[null,"Université_Saad_Dahlab_de_Blida_1","Systèmes Électriques Et Télécommandes","Université Saad Dahlab de Blida 1"]
[null,"Université_Saad_Dahlab_de_Blida_1","Traitement De Signal Et D'Imagerie","Université Saad Dahlab de Blida 1"]
[null,"Université_Saad_Dahlab_de_Blida_1","Traitement De Surface Et Matériaux","Université Saad Dahlab de Blida 1"]
[null,"Université_Saad_Dahlab_de_Blida_1","Structures","Université Saad Dahlab de Blida 1"]
[null,"Université_Saad_Dahlab_de_Blida_1","Analyse Fonctionnelle Des Procédés Chimiques","Université Saad Dahlab de Blida 1"]
[null,"Université_Saad_Dahlab_de_Blida_1","Développement Des Systèmes Informatisés","Université Saad Dahlab de Blida 1"]
[null,"Université_Saad_Dahlab_de_Blida_1","Géomatériaux Et Génie Civil","Université Saad Dahlab de Blida 1"]
[null,"Université_Saad_Dahlab_de_Blida_1","Applications Énergétiques De L'Hydrogène","Université Saad Dahlab de Blida 1"]
[null,"Université_Saad_Dahlab_de_Blida_1","Biotechnologies Des Productions Végétales","Université Saad Dahlab de Blida 1"]
[null,"Université_Saad_Dahlab_de_Blida_1","Physique Théorique & Physique De L'Interaction Rayonnement-Matière","Université Saad Dahlab de Blida 1"]
[null,"Université_Saad_Dahlab_de_Blida_1","Génie Chimique","Université Saad Dahlab de Blida 1"]
[null,"Université_Saad_Dahlab_de_Blida_1","Biotechnologies Liées À La Reproduction Des Animaux","Université Saad Dahlab de Blida 1"]
[null,"Université_Saad_Dahlab_de_Blida_1","Plantes Médicinales Et Aromatiques","Université Saad Dahlab de Blida 1"]
[null,"Université_Saad_Dahlab_de_Blida_1","Modélisation Et Développement D'Algorithme De La Recherche Opérationnelle","Université Saad Dahlab de Blida 1"]
[null,"Université_Saad_Dahlab_de_Blida_1","Sciences Aéronautiques","Université Saad Dahlab de Blida 1"]
[null,"Université_Saad_Dahlab_de_Blida_1","Aéronefs","Université Saad Dahlab de Blida 1"]
[null,"Université_Saad_Dahlab_de_Blida_1","Physique Fondamentale Et Appliquée","Université Saad Dahlab de Blida 1"]
[null,"Université_Saad_Dahlab_de_Blida_1","Cancérologie","Université Saad Dahlab de Blida 1"]
[null,"Université_Saad_Dahlab_de_Blida_1","Détections Informations & Communications","Université Saad Dahlab de Blida 1"]
[null,"Université_Saad_Dahlab_de_Blida_1","Eau, Environnement Et Developpement Durable","Université Saad Dahlab de Blida 1"]
[null,"Université_Saad_Dahlab_de_Blida_1","Appareil Locomoteur Et Qualité Des Soins En Santé Publique","Université Saad Dahlab de Blida 1"]
[null,"Université_Saad_Dahlab_de_Blida_1","Chimie Des Substances Naturelles Et De Biomolécules","Université Saad Dahlab de Blida 1"]
[null,"Université_Saad_Dahlab_de_Blida_1","Environnement Et Technologie Pour L'Architecture Et Le Patrimoine","Université Saad Dahlab de Blida 1"]
[null,"Université_Saad_Dahlab_de_Blida_1","Protection Et Valorisation Des Ressources Agrobiologiques","Université Saad Dahlab de Blida 1"]
[null,"Université_Saad_Dahlab_de_Blida_1","Biotchnologies, Environnement et Santé","Université Saad Dahlab de Blida 1"]
[null,"Université_Saad_Dahlab_de_Blida_1","Chimie Physique des Interfaces des matériaux Appliquées à L'environnement","Université Saad Dahlab de Blida 1"]
[null,"Université_Tahar_Moulay_de_Saida","Etudes Physico-Chimiques","Université Tahar Moulay de Saida"]
[null,"Université_Tahar_Moulay_de_Saida","Géométrie, Analyse, Contrôle Et Applications","Université Tahar Moulay de Saida"]
[null,"Université_Tahar_Moulay_de_Saida","Modélisation Et Méthodes De Calcul","Université Tahar Moulay de Saida"]
[null,"Université_Tahar_Moulay_de_Saida","Ressources Hydriques Et Environnement","Université Tahar Moulay de Saida"]
[null,"Université_Tahar_Moulay_de_Saida","Mouvement De La Critique Littéraire En Algérie","Université Tahar Moulay de Saida"]
[null,"Université_Tahar_Moulay_de_Saida","Didactique Du Français Fos","Université Tahar Moulay de Saida"]
[null,"Université_Tahar_Moulay_de_Saida","Modèles Stochastiques, Statistiques Et Applications","Université Tahar Moulay de Saida"]
[null,"Université_Tahar_Moulay_de_Saida","Développement Dans Les Sciences Sociales Et Sciences Humaines","Université Tahar Moulay de Saida"]
[null,"Université_Tahar_Moulay_de_Saida","Génie Electrotechnique","Université Tahar Moulay de Saida"]
[null,"Université_Tahar_Moulay_de_Saida","Linguistique Et Traduction","Université Tahar Moulay de Saida"]
[null,"Université_Tahar_Moulay_de_Saida","Management Et Évaluation De Performance Des Entreprises","Université Tahar Moulay de Saida"]
[null,"Université_Tahar_Moulay_de_Saida","Sociolinguistique Et Analyse De Discours","Université Tahar Moulay de Saida"]
[null,"Université_Tahar_Moulay_de_Saida","Technologies Des Communications","Université Tahar Moulay de Saida"]
[null,"Université_Tahar_Moulay_de_Saida","Gestion Des Connaissances Et Des Données Complexes","Université Tahar Moulay de Saida"]
[null,"Université_Tahar_Moulay_de_Saida","La Protection Des Droits De Lhomme Entre Les Textes Internationaux Et Nationaux Et Leurs Effectivitès En Algèrie","Université Tahar Moulay de Saida"]
[null,"Université_Tahar_Moulay_de_Saida","Bio toxicologie, Pharmacognosie  et valorisation biologiques des plantes  ","Université Tahar Moulay de Saida"]
[null,"Université_Tahar_Moulay_de_Saida","Etudes juridiques comparées","Université Tahar Moulay de Saida"]
[null,"Université_Tahar_Moulay_de_Saida","Traduction et interprétation au sein de la communication multilingue","Université Tahar Moulay de Saida"]
[null,"Université_Tahri_Mohamed_de_Béchar","Physique Et Dispositifs Semi-Conducteurs","Université Tahri Mohamed de Béchar"]
[null,"Université_Tahri_Mohamed_de_Béchar","Phytochimie Et Synthèse Organique","Université Tahri Mohamed de Béchar"]
[null,"Université_Tahri_Mohamed_de_Béchar","Commande Analyse Et Optimisation Des Systémes Électro Énergétiques","Université Tahri Mohamed de Béchar"]
[null,"Université_Tahri_Mohamed_de_Béchar","Fiabilités Des Matériaux Et Des Structures En Régions Sahariennes","Université Tahri Mohamed de Béchar"]
[null,"Université_Tahri_Mohamed_de_Béchar","Energétique En Zones Arides","Université Tahri Mohamed de Béchar"]
[null,"Université_Tahri_Mohamed_de_Béchar","Valorisation Des Ressources Végétales Et Sécurité Alimentaire Des Zones Semi Arides Du Sud Ouest Algérien","Université Tahri Mohamed de Béchar"]
[null,"Université_Tahri_Mohamed_de_Béchar","Etudes Sahariennes","Université Tahri Mohamed de Béchar"]
[null,"Université_Tahri_Mohamed_de_Béchar","Mécanique Des Structures Lms","Université Tahri Mohamed de Béchar"]
[null,"Université_Tahri_Mohamed_de_Béchar","Mécanique: Modélisation Et Expérimentation","Université Tahri Mohamed de Béchar"]
[null,"Université_Tahri_Mohamed_de_Béchar","Molécules Bioactives Et Séparation Chirale","Université Tahri Mohamed de Béchar"]
[null,"Université_Tahri_Mohamed_de_Béchar","Etudes Économiques Et Développement Local Dans Le Sud Ouest","Université Tahri Mohamed de Béchar"]
[null,"Université_Tahri_Mohamed_de_Béchar","Architecture et Patrimoine Environnemental","Université Tahri Mohamed de Béchar"]
[null,"Université_Tahri_Mohamed_de_Béchar","Chimie et sciences de l'environnement ","Université Tahri Mohamed de Béchar"]
[null,"Université_Tahri_Mohamed_de_Béchar","Fiabilité du Génie Mécanique ","Université Tahri Mohamed de Béchar"]
[null,"Université_Tahri_Mohamed_de_Béchar","Réseaux Intelligents et Energies Renouvlables ","Université Tahri Mohamed de Béchar"]
[null,"Université_Tahri_Mohamed_de_Béchar","Traitement de l'Information et Télécommunication","Université Tahri Mohamed de Béchar"]
[null,"Université_Yahia_Farès_de_Médéa","Biomatériaux Et Phénomènes De Transport","Université Yahia Farès de Médéa"]
[null,"Université_Yahia_Farès_de__Médéa","Procédés De Traitement Et Recyclage Des Rejets, 2003, Demande De Changement D’Intitulé À Matériaux Et Environnement Acceptée En 2010)","Université Yahia Farès de Médéa"]
[null,"Université_Yahia_Farès_de__Médéa","Mécanique, Physique Et Modélisation Mathématique","Université Yahia Farès de Médéa"]
[null,"Université_Yahia_Farès_de__Médéa","Didactique De La Langue Et Des Textes","Université Yahia Farès de Médéa"]
[null,"Université_Yahia_Farès_de__Médéa","Electrotechnique Et Automatique","Université Yahia Farès de Médéa"]
[null,"Université_Yahia_Farès_de__Médéa","Développement Local Durable","Université Yahia Farès de Médéa"]
[null,"Université_Yahia_Farès_de__Médéa","Souveraineté Et Mondialisation","Université Yahia Farès de Médéa"]
[null,"Université_Yahia_Farès_de__Médéa","Langue Et Art De La Communication","Université Yahia Farès de Médéa"]
[null,"Université_Yahia_Farès_de__Médéa","Physique Des Techniques Expérimentales Et Ses Applications","Université Yahia Farès de Médéa"]
[null,"Université_Yahia_Farès_de__Médéa","Systèmes Électroniques Avancés","Université Yahia Farès de Médéa"]
[null,"Université_Yahia_Farès_de__Médéa","Etudes Historiques De La Méditerranée À Travers Les Âges","Université Yahia Farès de Médéa"]
[null,"Université_Yahia_Farès_de__Médéa","Macroeconomie Et Finance International","Université Yahia Farès de Médéa"]
[null,"Université_Ziane_Achour_de_Djelfa","Chimie Organique Et Substances Naturelles","Université Ziane Achour de Djelfa"]
[null,"Université_Ziane_Achour_de_Djelfa","Stratégies De Prévention Et De Lutte Contre La Drogue En Algérie","Université Ziane Achour de Djelfa"]
[null,"Université_Ziane_Achour_de_Djelfa","Corpus, Étude Et Critique Des Manuscrits De La Région Et Autre","Université Ziane Achour de Djelfa"]
[null,"Université_Ziane_Achour_de_Djelfa","Développement En Mécanique Et Matériaux","Université Ziane Achour de Djelfa"]
[null,"Université_Ziane_Achour_de_Djelfa","Développement, Démocratie Et Droits De L'Homme En Algérie","Université Ziane Achour de Djelfa"]
[null,"Université_Ziane_Achour_de_Djelfa","Sciences Et Informatique Des Matériaux","Université Ziane Achour de Djelfa"]
[null,"Université_Ziane_Achour_de_Djelfa","Terme, Manuscrit Et Littérature Algérienne Écrite Dans La Presse","Université Ziane Achour de Djelfa"]
[null,"Université_Ziane_Achour_de_Djelfa","Droit De L’Environnement","Université Ziane Achour de Djelfa"]
[null,"Université_Ziane_Achour_de_Djelfa","Exploration Et Valorisation Des Ecosystèmes Steppiques","Université Ziane Achour de Djelfa"]
[null,"Université_Ziane_Achour_de_Djelfa","Automatique Appliquée Et Diagnostic Industriel","Université Ziane Achour de Djelfa"]
[null,"Université_Ziane_Achour_de_Djelfa","Politique De Développement Rural Dans La Steppe","Université Ziane Achour de Djelfa"]
[null,"Université_Ziane_Achour_de_Djelfa","Réformes Du Système Constitutionnel Et La Bonne Gouvernance","Université Ziane Achour de Djelfa"]
[null,"Université_Ziane_Achour_de_Djelfa","Staps - Système Sportif En Algérie","Université Ziane Achour de Djelfa"]
[null,"Université_Ahmed_Bougara_dit_Si_Mhamed_de_Boumerdès","Electrification Des Entreprises Industrielles","Université Ahmed Bougara dit Si Mhamed de Boumerdès"]
[null,"Université_Ahmed_Bougara_dit_Si_Mhamed_de_Boumerdès","Fiabilité Des Équipements Pétroliers Et Matériaux","Université Ahmed Bougara dit Si Mhamed de Boumerdès"]
[null,"Université_Ahmed_Bougara_dit_Si_Mhamed_de_Boumerdès","Génie Physique Des Hydrocarbures","Université Ahmed Bougara dit Si Mhamed de Boumerdès"]
[null,"Université_Ahmed_Bougara_dit_Si_Mhamed_de_Boumerdès","Physique De La Terre","Université Ahmed Bougara dit Si Mhamed de Boumerdès"]
[null,"Université_Ahmed_Bougara_dit_Si_Mhamed_de_Boumerdès","Synthèse Pétrochimique","Université Ahmed Bougara dit Si Mhamed de Boumerdès"]
[null,"Université_Ahmed_Bougara_dit_Si_Mhamed_de_Boumerdès","Technologies Des Hydrocarbures","Université Ahmed Bougara dit Si Mhamed de Boumerdès"]
[null,"Université_Ahmed_Bougara_dit_Si_Mhamed_de_Boumerdès","Automatique Appliquée","Université Ahmed Bougara dit Si Mhamed de Boumerdès"]
[null,"Université_Ahmed_Bougara_dit_Si_Mhamed_de_Boumerdès","Génie Mécanique Des Solides Et Systèmes","Université Ahmed Bougara dit Si Mhamed de Boumerdès"]
[null,"Université_Ahmed_Bougara_dit_Si_Mhamed_de_Boumerdès","Revêtement, Matériaux Et Environnement","Université Ahmed Bougara dit Si Mhamed de Boumerdès"]
[null,"Université_Ahmed_Bougara_dit_Si_Mhamed_de_Boumerdès","Signaux Et Systèmes","Université Ahmed Bougara dit Si Mhamed de Boumerdès"]
[null,"Université_Ahmed_Bougara_dit_Si_Mhamed_de_Boumerdès","Technologie Alimentaire","Université Ahmed Bougara dit Si Mhamed de Boumerdès"]
[null,"Université_Ahmed_Bougara_dit_Si_Mhamed_de_Boumerdès","Traitement Et Mise En Forme Des Polymères Fibraux","Université Ahmed Bougara dit Si Mhamed de Boumerdès"]
[null,"Université_Ahmed_Bougara_dit_Si_Mhamed_de_Boumerdès","Dynamique Des Moteurs Et Vibroacoustique","Université Ahmed Bougara dit Si Mhamed de Boumerdès"]
[null,"Université_Ahmed_Bougara_dit_Si_Mhamed_de_Boumerdès","Ressources Minérales Et Énergétiques","Université Ahmed Bougara dit Si Mhamed de Boumerdès"]
[null,"Université_Ahmed_Bougara_dit_Si_Mhamed_de_Boumerdès","Conservation Et Valorisation Des Ressources Biologiques","Université Ahmed Bougara dit Si Mhamed de Boumerdès"]
[null,"Université_Ahmed_Bougara_dit_Si_Mhamed_de_Boumerdès","Energétique, Mécanique Et Ingénieries","Université Ahmed Bougara dit Si Mhamed de Boumerdès"]
[null,"Université_Ahmed_Bougara_dit_Si_Mhamed_de_Boumerdès","Informatique, De Modélisation, D'Optimisation Et Des Systèmes Électroniques","Université Ahmed Bougara dit Si Mhamed de Boumerdès"]
[null,"Université_Ahmed_Bougara_dit_Si_Mhamed_de_Boumerdès","Technologies Douces, Valorisation, Physico-Chimie Des Matériaux Biologiques Et Biodiversité","Université Ahmed Bougara dit Si Mhamed de Boumerdès"]
[null,"Université_Ahmed_Bougara_dit_Si_Mhamed_de_Boumerdès","Unité De Recherche: Matériaux, Procédés Et Environnement (Remplace Le Lr 2000 \"Matériaux Minéraux Et Composites\")","Université Ahmed Bougara dit Si Mhamed de Boumerdès"]
[null,"Université_Ahmed_Bougara_dit_Si_Mhamed_de_Boumerdès","L’Avenir De L’Économie Algérien Hors Les Hydrocarbures","Université Ahmed Bougara dit Si Mhamed de Boumerdès"]
[null,"Université_Ahmed_Bougara_dit_Si_Mhamed_de_Boumerdès","Performance Des Entreprises Économiques Algériennes Dans Le Cadre De La Dynamique Économique Internationale","Université Ahmed Bougara dit Si Mhamed de Boumerdès"]
[null,"Université_Ahmed_Bougara_dit_Si_Mhamed_de_Boumerdès","Etudes Politiques Et Internationales","Université Ahmed Bougara dit Si Mhamed de Boumerdès"]